﻿Department Family,Entity,Date,Expense Type,Expense Area,Supplier,Transaction Number,Amount,Description
Department for Education,Core,15/07/2021,Staff - Temporary Staff,Operational Finance,Allen Lane Limited,CORE-PINV-023495,25080,Short term & agency staff
Department for Education,Core,19/07/2021,Other Costs,Operational Finance,IBM UK LTD,CORE-PINV-023557,62712.39,Software Development
Department for Education,Core,07/07/2021,IS/IT,Operational Finance,Agile Management Solutions Limited,CORE-PINV-023150,38907,Systems Development
Department for Education,Core,12/07/2021,IS/IT,Operational Finance,Total Enterprise Solutions,CORE-PCR-000840,-81033.5,ICT Support & Services
Department for Education,Core,12/07/2021,IS/IT,Operational Finance,Total Enterprise Solutions,CORE-PINV-022207,81033.5,ICT Support & Services
Department for Education,Core,16/07/2021,IS/IT,Operational Finance,Total Enterprise Solutions,CORE-PINV-023263,24496.25,ICT Support & Services
Department for Education,Core,07/07/2021,IS/IT,Operational Finance,Agile Management Solutions Limited,CORE-PINV-023151,155628,Systems Development
Department for Education,Core,12/07/2021,IS/IT,Operational Finance,Total Enterprise Solutions,CORE-PINV-023213,37770,End User Software & Hardware
Department for Education,Core,13/07/2021,Other Costs,Operational Finance,Total Enterprise Solutions,CORE-PINV-023280,24854.5,Software Development
Department for Education,Core,20/07/2021,IS/IT,Operational Finance,Total Enterprise Solutions,CORE-PINV-023282,30705,End User Software & Hardware
Department for Education,Core,02/07/2021,Accommodation & Estates - Maintenance,Operational Finance,Government Property Agency,CORE-PINV-022383,338767.46,Maintenance & Repairs
Department for Education,Core,02/07/2021,Accommodation & Estates - Other,Operational Finance,Government Property Agency,CORE-PINV-022383,21951.44,Estates Management
Department for Education,Core,02/07/2021,Accommodation & Estates - Rent & Rates,Operational Finance,Government Property Agency,CORE-PINV-022383,80333.85,Rentals
Department for Education,Core,01/07/2021,Accommodation & Estates - Rent & Rates,Operational Finance,Government Property Agency,CORE-PINV-022797,53964.6,Rentals
Department for Education,Core,01/07/2021,Accommodation & Estates - Maintenance,Operational Finance,Government Property Agency,CORE-PINV-022796,160821.86,Maintenance & Repairs
Department for Education,Core,01/07/2021,Accommodation & Estates - Other,Operational Finance,Government Property Agency,CORE-PINV-022796,10651.26,Estates Management
Department for Education,Core,01/07/2021,Accommodation & Estates - Rent & Rates,Operational Finance,Government Property Agency,CORE-PINV-022796,28909.61,Rentals
Department for Education,Core,06/07/2021,Accommodation & Estates - Rent & Rates,Operational Finance,Government Property Agency,CORE-PINV-022295,38397.9,Rentals
Department for Education,Core,06/07/2021,Accommodation & Estates - Maintenance,Operational Finance,Government Property Agency,CORE-PINV-022558,20468.7,Maintenance & Repairs
Department for Education,Core,06/07/2021,Accommodation & Estates - Other,Operational Finance,Government Property Agency,CORE-PINV-022558,5335.37,Estates Management
Department for Education,Core,06/07/2021,Accommodation & Estates - Rent & Rates,Operational Finance,Government Property Agency,CORE-PINV-022558,21793.88,Rentals
Department for Education,Core,22/07/2021,Accommodation & Estates - Rent & Rates,Operational Finance,Government Property Agency,CORE-PINV-023750,53964.6,Rentals
Department for Education,Core,22/07/2021,Accommodation & Estates - Rent & Rates,Operational Finance,Government Property Agency,CORE-PINV-023751,54435.69,Rentals
Department for Education,Core,23/07/2021,Accommodation & Estates - Maintenance,Operational Finance,Government Property Agency,CORE-PINV-023758,22894.98,Maintenance & Repairs
Department for Education,Core,23/07/2021,Accommodation & Estates - Other,Operational Finance,Government Property Agency,CORE-PINV-023758,4551.19,Estates Management
Department for Education,Core,23/07/2021,Accommodation & Estates - Rent & Rates,Operational Finance,Government Property Agency,CORE-PINV-023758,26286.39,Rentals
Department for Education,Core,23/07/2021,Accommodation & Estates - Other,Operational Finance,Government Property Agency,CORE-PINV-023757,7395,Estates Management
Department for Education,Core,23/07/2021,Accommodation & Estates - Rent & Rates,Operational Finance,Government Property Agency,CORE-PINV-023757,55520.33,Rentals
Department for Education,Core,23/07/2021,Accommodation & Estates - Other,Operational Finance,Government Property Agency,CORE-PINV-023753,107402.05,Building Service Charge
Department for Education,Core,21/07/2021,Accommodation & Estates - Fuel & Utilities,Operational Finance,MINISTRY OF JUSTICE,CORE-PINV-022708,39600.99,"Other energy, utility, waste"
Department for Education,Core,01/07/2021,Other Costs,Operational Finance,Arcadis LLP,CORE-PINV-022107,238909.38,Buildings additions
Department for Education,Core,02/07/2021,Other Costs,Operational Finance,Arcadis LLP,CORE-PINV-022876,84359.38,Buildings additions
Department for Education,Core,26/07/2021,Other Costs,Operational Finance,Mace Ltd,CORE-PINV-023795,1447138.16,Buildings additions
Department for Education,Core,26/07/2021,Other Costs,Operational Finance,Mace Ltd,CORE-PINV-023800,32215.5,Buildings additions
Department for Education,Core,21/07/2021,"Marketing, Media and Comms",Funding,SOFTWARE FOR DATA ANALYSIS LTD,CORE-PINV-023651,44000,Publicity production costs
Department for Education,Core,06/07/2021,IS/IT,Funding,WellData Ltd,CORE-PINV-022955,94835,ICT Support & Services
Department for Education,Core,19/07/2021,Other Goods & Services,Commercial,2BUY2.COM LTD,CORE-PINV-023507,160233,Professional Services
Department for Education,Core,01/07/2021,Other Goods & Services,Commercial,PLACE GROUP LTD,CORE-PINV-022267,126076,Professional Services
Department for Education,Core,28/07/2021,Other Goods & Services,Commercial,GOVERNMENT ACTUARYS DEPT,CORE-PINV-023928,239149.76,Professional Services
Department for Education,Core,08/07/2021,Other Goods & Services,Commercial,TOPMARK CLAIMS MANAGEMENT LTD,CORE-PINV-023173,40835.12,Professional Services
Department for Education,Core,26/07/2021,Other Goods & Services,Commercial,WILLIS LIMITED,CORE-PINV-023789,60529.2,Professional Services
Department for Education,Core,30/07/2021,Other Goods & Services,Commercial,WILLIS LIMITED,CORE-PINV-024028,75995.1,Professional Services
Department for Education,Core,29/07/2021,Legal,Commercial Delivery,GOVERNMENT LEGAL DEPARTMENT,CORE-PINV-023786,357250,Professional Services - Legal
Department for Education,Core,09/07/2021,Staff - Other,Human Resources,EDENRED,CORE-PINV-023198,30110,Personnel Related
Department for Education,Core,08/07/2021,IS/IT,Human Resources,KAINOS WORKSMART LTD,CORE-PINV-023195,39166,ICT Support & Services
Department for Education,Core,07/07/2021,IS/IT,Digital and Technology,COMPUTACENTER PLC,CORE-PINV-022964,723873.88,ICT Support & Services
Department for Education,Core,06/07/2021,IS/IT,Digital and Technology,VODAFONE ENTERPRISE U.K.,CORE-PINV-023004,29877.77,Mobile phones
Department for Education,Core,16/07/2021,IS/IT,Digital and Technology,VODAFONE ENTERPRISE U.K.,CORE-PINV-023525,26385.28,Telecoms
Department for Education,Core,23/07/2021,IS/IT,Digital and Technology,VODAFONE ENTERPRISE U.K.,CORE-PINV-022129,25936.93,Telecoms
Department for Education,Core,15/07/2021,IS/IT,Digital and Technology,AKHTER COMPUTERS LTD,CORE-PINV-022795,77053.2,End User Software & Hardware
Department for Education,Core,13/07/2021,Grants Expenditure,Digital and Technology,SANDRINGHAM SCHOOL,CORE-MAIN-021886,30850,Grant – digital capability
Department for Education,Core,26/07/2021,Other Goods & Services,Digital and Technology,ImpactEd Limited,CORE-PINV-023788,61359,Professional Services
Department for Education,Core,13/07/2021,Grants Expenditure,Digital and Technology,United Learning Trust,CORE-MAIN-021887,995828,Grant – digital capability
Department for Education,Core,21/07/2021,Other Goods & Services,Digital and Technology,United Learning Trust,CORE-PINV-023695,151099.87,Professional Services
Department for Education,Core,27/07/2021,IS/IT,Digital and Technology,Bae Systems Applied Intelligence Ltd,CORE-PINV-023790,64330.56,Systems Operations
Department for Education,Core,09/07/2021,IS/IT,Digital and Technology,Bytes Software Services Ltd,CORE-PINV-022790,120210.04,End User Software & Hardware
Department for Education,Core,19/07/2021,IS/IT,Digital and Technology,Bytes Software Services Ltd,CORE-PINV-022786,99940.56,End User Software & Hardware
Department for Education,Core,12/07/2021,IS/IT,Digital and Technology,Complete University Guide Limited ,CORE-PINV-023188,22512.48,Systems Operations
Department for Education,Core,29/07/2021,IS/IT,Digital and Technology,Phoenix Software Ltd,CORE-PINV-023933,335042.95,End User Software & Hardware
Department for Education,Core,08/07/2021,Office Costs,Digital and Technology,Xerox UK Limited,CORE-PINV-022962,104528.98,Printing
Department for Education,Core,08/07/2021,Office Costs,Digital and Technology,Xerox UK Limited,CORE-PINV-023008,26580.32,Printing
Department for Education,Core,19/07/2021,IS/IT,Digital and Technology,Bae Systems Applied Intelligence Ltd,CORE-PINV-023548,106232.13,Systems Development
Department for Education,Core,19/07/2021,IS/IT,Digital and Technology,Bae Systems Applied Intelligence Ltd,CORE-PINV-023547,87291.88,Systems Development
Department for Education,Core,22/07/2021,IS/IT,Digital and Technology,Bytes Software Services Ltd,CORE-PINV-023739,1166675.06,Systems Development
Department for Education,Core,26/07/2021,IS/IT,Digital and Technology,Bytes Software Services Ltd,CORE-PINV-023801,1071338.04,Systems Development
Department for Education,Core,06/07/2021,IS/IT,Digital and Technology,SOL-TEC LIMITED,CORE-PINV-022944,111709.34,Systems Development
Department for Education,Core,06/07/2021,IS/IT,Digital and Technology,SOL-TEC LIMITED,CORE-PINV-022942,74032.14,Systems Development
Department for Education,Core,06/07/2021,IS/IT,Digital and Technology,SOL-TEC LIMITED,CORE-PINV-022936,77930.04,Systems Development
Department for Education,Core,15/07/2021,Staff - Temporary Staff,Digital and Technology,Methods Business and Digital Technology Ltd,CORE-PINV-023475,37620,Short term & agency staff
Department for Education,Core,08/07/2021,Staff - Temporary Staff,Digital and Technology,Methods Business and Digital Technology Ltd,CORE-PINV-023209,29070,Short term & agency staff
Department for Education,Core,19/07/2021,IS/IT,Digital and Technology,Methods Business and Digital Technology Ltd,CORE-PINV-023553,206310,Systems Operations
Department for Education,Core,07/07/2021,IS/IT,Digital and Technology,Nimbus Digital & Technology Innovations,CORE-PINV-023159,58073.8,ICT Support & Services
Department for Education,Core,08/07/2021,Consultancy,Digital and Technology,Nimbus Digital & Technology Innovations,CORE-PINV-023205,45522.66,Consultancy - Technical
Department for Education,Core,29/07/2021,Consultancy,Analysis,Altiar Limited,CORE-PINV-023967,96000,Consultancy - IT/IS
Department for Education,Core,14/07/2021,Other Goods & Services,Analysis,DEPARTMENT OF HEALTH,CORE-PINV-023442,52288.47,Research & Evaluation
Department for Education,Core,30/07/2021,Other Goods & Services,Analysis,IFF RESEARCH LTD,CORE-PINV-024009,32262,Research & Evaluation
Department for Education,Core,22/07/2021,Other Costs,Analysis,IPSOS MORI,CORE-PINV-023566,103776.95,Research & development
Department for Education,Core,26/07/2021,Other Goods & Services,Analysis,ISOS PARTNERSHIP,CORE-PINV-023787,36112.5,Research & Evaluation
Department for Education,Core,02/07/2021,Other Costs,Analysis,Kantar UK Ltd,CORE-PINV-022773,46480,Research & development
Department for Education,Core,05/07/2021,Other Goods & Services,Analysis,Kantar UK Ltd,CORE-PINV-022921,26795,Research & Evaluation
Department for Education,Core,05/07/2021,Other Goods & Services,Analysis,NATIONAL CENTRE FOR SOCIAL RESEARCH,CORE-PINV-022910,65000,Research & Evaluation
Department for Education,Core,20/07/2021,Other Goods & Services,Analysis,NATIONAL CENTRE FOR SOCIAL RESEARCH,CORE-PINV-023613,27580.33,Research & Evaluation
Department for Education,Core,30/07/2021,Other Costs,Analysis,RAND Europe Community Interest Company,CORE-PINV-024015,23664,Research & development
Department for Education,Core,27/07/2021,Other Goods & Services,Analysis,UCL CONSULTANTS LTD,CORE-PINV-022967,37297.5,Research & Evaluation
Department for Education,Core,06/07/2021,IS/IT,Data,CAPGEMINI UK PLC,CORE-PINV-022958,55200,ICT repair & maintenance
Department for Education,Core,12/07/2021,IS/IT,Data,AGILE SOLUTIONS GB LTD,CORE-PINV-023271,72204,ICT repair & maintenance
Department for Education,Core,27/07/2021,IS/IT,Data,CDW LTD,CORE-PINV-023823,30284.56,ICT repair & maintenance
Department for Education,Core,12/07/2021,IS/IT,Data,Engine Partners UK LLP - Engine Transformation,CORE-PINV-023229,82414,ICT repair & maintenance
Department for Education,Core,19/07/2021,IS/IT,Data,Engine Partners UK LLP - Engine Transformation,CORE-PINV-023230,28497.2,ICT repair & maintenance
Department for Education,Core,15/07/2021,IS/IT,Data,HIPPO DIGITAL LTD,CORE-PINV-023474,52530,ICT repair & maintenance
Department for Education,Core,09/07/2021,IS/IT,Data,OLIVE JAR DIGITAL LTD,CORE-PINV-023180,98245.97,ICT repair & maintenance
Department for Education,Core,09/07/2021,IS/IT,Data,OLIVE JAR DIGITAL LTD,CORE-PINV-023183,99612,ICT repair & maintenance
Department for Education,Core,06/07/2021,IS/IT,Data,SOL-TEC LIMITED,CORE-PINV-022943,125809.99,ICT repair & maintenance
Department for Education,Core,09/07/2021,IS/IT,Data,HIVE IT LIMITED,CORE-PINV-023155,77736,Systems Operations
Department for Education,Core,06/07/2021,IS/IT,Data,RM EDUCATION PLC,CORE-PINV-022971,388200,Systems Operations
Department for Education,Core,26/07/2021,IS/IT,Data,RM EDUCATION PLC,CORE-PINV-023793,390873.84,Systems Operations
Department for Education,Core,09/07/2021,IS/IT,Data,CADENCE INNOVA,CORE-PINV-023190,337912.5,Systems Operations
Department for Education,Core,27/07/2021,Learning & Development,"Planning, Performance and Risk",Oxford Saïd Business School Ltd (OSBS),CORE-PINV-022926,20833.33,Talent Development
Department for Education,Core,20/07/2021,Grants Expenditure,Capital Directorate,Antony Church of England School,CAY082721,37875.38,Capital grants - Academy Trust
Department for Education,Core,20/07/2021,Grants Expenditure,Capital Directorate,Bilsthorpe Flying High Academy,CAY082736,31848.46,Capital grants - Academy Trust
Department for Education,Core,20/07/2021,Grants Expenditure,Capital Directorate,Captains Close Primary School,CAY082737,27623,Capital grants - Academy Trust
Department for Education,Core,20/07/2021,Grants Expenditure,Capital Directorate,CHESHIRE WEST & CHESTER COUNCIL,CL038146,40462.31,Capital grants - Local Government
Department for Education,Core,20/07/2021,Grants Expenditure,Capital Directorate,CHESHIRE WEST & CHESTER COUNCIL,CL038162,35160,Capital grants - Local Government
Department for Education,Core,20/07/2021,Grants Expenditure,Capital Directorate,CHESTER DIOCESAN BOARD OF EDUCATION,CV012551,31696.01,Capital grants - Local Government
Department for Education,Core,20/07/2021,Grants Expenditure,Capital Directorate,DURHAM COUNTY COUNCIL,CL038150,33636.92,Capital grants - Local Government
Department for Education,Core,20/07/2021,Grants Expenditure,Capital Directorate,Easton Royal Academy,CAY082719,27589.23,Capital grants - Academy Trust
Department for Education,Core,20/07/2021,Grants Expenditure,Capital Directorate,ESSEX COUNTY COUNCIL,CL038181,26354.62,Capital grants - Local Government
Department for Education,Core,20/07/2021,Grants Expenditure,Capital Directorate,Great Addington CofE (VA) Primary School,CAY082725,49920,Capital grants - Academy Trust
Department for Education,Core,20/07/2021,Grants Expenditure,Capital Directorate,HERTFORDSHIRE COUNTY COUNCIL,CL038157,32250.77,Capital grants - Local Government
Department for Education,Core,20/07/2021,Grants Expenditure,Capital Directorate,HERTFORDSHIRE COUNTY COUNCIL,CL038160,40909.23,Capital grants - Local Government
Department for Education,Core,20/07/2021,Grants Expenditure,Capital Directorate,ISLE OF WIGHT COUNCIL,CL038170,37465.62,Capital grants - Local Government
Department for Education,Core,20/07/2021,Grants Expenditure,Capital Directorate,Little Horsted CE Primary School,CV012547,41982.76,Capital grants - Local Government
Department for Education,Core,20/07/2021,Grants Expenditure,Capital Directorate,Nancledra School,CAY082735,46780,Capital grants - Academy Trust
Department for Education,Core,20/07/2021,Grants Expenditure,Capital Directorate,Norton Juxta Kempsey First School,CAY082742,25548,Capital grants - Academy Trust
Department for Education,Core,20/07/2021,Grants Expenditure,Capital Directorate,Princefield First School,CAY082738,40301,Capital grants - Academy Trust
Department for Education,Core,20/07/2021,Grants Expenditure,Capital Directorate,SALISBURY DIOCESAN BOARD OF EDUCATION,DU00064934,26968.62,Capital grants - Local Government
Department for Education,Core,20/07/2021,Grants Expenditure,Capital Directorate,SOUTH GLOUCESTERSHIRE COUNCIL,CL038178,25962.31,Capital grants - Local Government
Department for Education,Core,20/07/2021,Grants Expenditure,Capital Directorate,SOUTHWELL DIOCESAN EDUCATION COMMITTEE N,CV012542,50298.65,Capital grants - Local Government
Department for Education,Core,20/07/2021,Grants Expenditure,Capital Directorate,St Ippolyts CE Aided Primary School,CV012545,44143.38,Capital grants - Local Government
Department for Education,Core,20/07/2021,Grants Expenditure,Capital Directorate,St Leonards CofE (C) First School,CAY082714,35811.54,Capital grants - Academy Trust
Department for Education,Core,20/07/2021,Grants Expenditure,Capital Directorate,St Winnow CofE School,CAY082717,51171.54,Capital grants - Academy Trust
Department for Education,Core,20/07/2021,Grants Expenditure,Capital Directorate,Ulceby St Nicholas Church of England Primary Schoo,CAY082732,45119.46,Capital grants - Academy Trust
Department for Education,Core,20/07/2021,Grants Expenditure,Capital Directorate,West Northamptonshire Council,CL038174,26577.08,Capital grants - Local Government
Department for Education,Core,20/07/2021,Grants Expenditure,Capital Directorate,West Northamptonshire Council,CL038176,30969.38,Capital grants - Local Government
Department for Education,Core,20/07/2021,Grants Expenditure,Capital Directorate,West Sussex County Council,CL038167,39192.31,Capital grants - Local Government
Department for Education,Core,20/07/2021,Grants Expenditure,Capital Directorate,WILTSHIRE COUNTY COUNCIL,CL038179,49122.85,Capital grants - Local Government
Department for Education,Core,20/07/2021,Grants Expenditure,Capital Directorate,Worcestershire County Council,CL038180,26215.38,Capital grants - Local Government
Department for Education,Core,20/07/2021,Grants Expenditure,Capital Directorate,BARKING & DAGENHAM LONDON BOROUGH COUNCIL,CL038053,49261.8,Capital grants - Local Government
Department for Education,Core,20/07/2021,Grants Expenditure,Capital Directorate,BARNSLEY METROPOLITAN BOROUGH COUNCIL,CL038078,593303.13,Capital grants - Local Government
Department for Education,Core,20/07/2021,Grants Expenditure,Capital Directorate,BATH & NORTH EAST SOMERSET COUNCIL,CL038091,539144.13,Capital grants - Local Government
Department for Education,Core,20/07/2021,Grants Expenditure,Capital Directorate,BEDFORD BOROUGH COUNCIL,CL038100,663205.31,Capital grants - Local Government
Department for Education,Core,20/07/2021,Grants Expenditure,Capital Directorate,Blackburn with Darwen Borough Council,CL038124,314625.02,Capital grants - Local Government
Department for Education,Core,20/07/2021,Grants Expenditure,Capital Directorate,BLACKPOOL BOROUGH COUNCIL,CL038125,49378.7,Capital grants - Local Government
Department for Education,Core,20/07/2021,Grants Expenditure,Capital Directorate,BRADFORD CITY COUNCIL,CL038082,317451.79,Capital grants - Local Government
Department for Education,Core,20/07/2021,Grants Expenditure,Capital Directorate,BRENT LONDON BOROUGH COUNCIL,CL038054,1029321.14,Capital grants - Local Government
Department for Education,Core,20/07/2021,Grants Expenditure,Capital Directorate,BRIGHTON & HOVE CITY COUNCIL,CL038106,546199.11,Capital grants - Local Government
Department for Education,Core,20/07/2021,Grants Expenditure,Capital Directorate,BRISTOL CITY COUNCIL,CL038092,1090206.84,Capital grants - Local Government
Department for Education,Core,20/07/2021,Grants Expenditure,Capital Directorate,BROMLEY LONDON BOROUGH COUNCIL,CL038055,248607.29,Capital grants - Local Government
Department for Education,Core,20/07/2021,Grants Expenditure,Capital Directorate,Buckinghamshire Council,CL038102,671970.65,Capital grants - Local Government
Department for Education,Core,20/07/2021,Grants Expenditure,Capital Directorate,BURY METRO BOROUGH COUNCIL,CL038073,209695.17,Capital grants - Local Government
Department for Education,Core,20/07/2021,Grants Expenditure,Capital Directorate,CALDERDALE METRO BOROUGH COUNCIL,CL038083,460654.04,Capital grants - Local Government
Department for Education,Core,20/07/2021,Grants Expenditure,Capital Directorate,CENTRAL BEDFORDSHIRE COUNCIL,CL038101,825993.73,Capital grants - Local Government
Department for Education,Core,20/07/2021,Grants Expenditure,Capital Directorate,Cheshire East Council,CL038128,664115.55,Capital grants - Local Government
Department for Education,Core,20/07/2021,Grants Expenditure,Capital Directorate,CHESHIRE WEST & CHESTER COUNCIL,CL038129,2750535.68,Capital grants - Local Government
Department for Education,Core,20/07/2021,Grants Expenditure,Capital Directorate,CITY OF YORK COUNCIL,CL038099,762204.45,Capital grants - Local Government
Department for Education,Core,20/07/2021,Grants Expenditure,Capital Directorate,COVENTRY CITY COUNCIL,CL038064,2637055.99,Capital grants - Local Government
Department for Education,Core,20/07/2021,Grants Expenditure,Capital Directorate,CROYDON LONDON BOROUGH COUNCIL,CL038056,473190.58,Capital grants - Local Government
Department for Education,Core,20/07/2021,Grants Expenditure,Capital Directorate,CUMBRIA COUNTY COUNCIL,CL038130,217588.61,Capital grants - Local Government
Department for Education,Core,20/07/2021,Grants Expenditure,Capital Directorate,DEVON COUNTY COUNCIL,CL038117,1374776.58,Capital grants - Local Government
Department for Education,Core,20/07/2021,Grants Expenditure,Capital Directorate,DONCASTER METRO BOROUGH COUNCIL,CL038079,154739.17,Capital grants - Local Government
Department for Education,Core,20/07/2021,Grants Expenditure,Capital Directorate,DORSET COUNCIL,CL038103,235515.11,Capital grants - Local Government
Department for Education,Core,20/07/2021,Grants Expenditure,Capital Directorate,DUDLEY METRO BOROUGH COUNCIL,CL038065,157912.35,Capital grants - Local Government
Department for Education,Core,20/07/2021,Grants Expenditure,Capital Directorate,DURHAM COUNTY COUNCIL,CL038104,159997.13,Capital grants - Local Government
Department for Education,Core,20/07/2021,Grants Expenditure,Capital Directorate,EAST RIDING OF YORKSHIRE COUNCIL,CL038097,144902.72,Capital grants - Local Government
Department for Education,Core,20/07/2021,Grants Expenditure,Capital Directorate,EAST SUSSEX COUNTY COUNCIL,CL038105,221148.32,Capital grants - Local Government
Department for Education,Core,20/07/2021,Grants Expenditure,Capital Directorate,ESSEX COUNTY COUNCIL,CL038119,2416977.07,Capital grants - Local Government
Department for Education,Core,20/07/2021,Grants Expenditure,Capital Directorate,GREENWICH LONDON BOROUGH COUNCIL,CL038050,1394122.9,Capital grants - Local Government
Department for Education,Core,20/07/2021,Grants Expenditure,Capital Directorate,HAMPSHIRE COUNTY COUNCIL,CL038107,4544861.67,Capital grants - Local Government
Department for Education,Core,20/07/2021,Grants Expenditure,Capital Directorate,HARROW LONDON BOROUGH COUNCIL,CL038058,1663711.52,Capital grants - Local Government
Department for Education,Core,20/07/2021,Grants Expenditure,Capital Directorate,HERTFORDSHIRE COUNTY COUNCIL,CL038131,1487341.06,Capital grants - Local Government
Department for Education,Core,20/07/2021,Grants Expenditure,Capital Directorate,HOUNSLOW LONDON BOROUGH COUNCIL,CL038059,286742.12,Capital grants - Local Government
Department for Education,Core,20/07/2021,Grants Expenditure,Capital Directorate,ISLE OF WIGHT COUNCIL,CL038132,132441.39,Capital grants - Local Government
Department for Education,Core,20/07/2021,Grants Expenditure,Capital Directorate,KENT COUNTY COUNCIL,CL038122,2691770.28,Capital grants - Local Government
Department for Education,Core,20/07/2021,Grants Expenditure,Capital Directorate,KINGSTON UPON HULL CITY COUNCIL,CL038096,641950.3,Capital grants - Local Government
Department for Education,Core,20/07/2021,Grants Expenditure,Capital Directorate,KNOWSLEY METRO BOROUGH COUNCIL,CL038070,44908.34,Capital grants - Local Government
Department for Education,Core,20/07/2021,Grants Expenditure,Capital Directorate,LANCASHIRE COUNTY COUNCIL,CL038123,1395391.85,Capital grants - Local Government
Department for Education,Core,20/07/2021,Grants Expenditure,Capital Directorate,LEEDS CITY COUNCIL,CL038084,7240704.89,Capital grants - Local Government
Department for Education,Core,20/07/2021,Grants Expenditure,Capital Directorate,LEICESTERSHIRE COUNTY COUNCIL,CL038109,2460920.7,Capital grants - Local Government
Department for Education,Core,20/07/2021,Grants Expenditure,Capital Directorate,LINCOLNSHIRE COUNTY COUNCIL,CL038133,322264.34,Capital grants - Local Government
Department for Education,Core,20/07/2021,Grants Expenditure,Capital Directorate,LIVERPOOL CITY COUNCIL,CL038071,353546.69,Capital grants - Local Government
Department for Education,Core,20/07/2021,Grants Expenditure,Capital Directorate,London Borough of Sutton,CL038063,1796725.8,Capital grants - Local Government
Department for Education,Core,20/07/2021,Grants Expenditure,Capital Directorate,London Borough of Tower Hamlets,CL038051,270751.85,Capital grants - Local Government
Department for Education,Core,20/07/2021,Grants Expenditure,Capital Directorate,Middlesbrough Council,CL038094,1075826.12,Capital grants - Local Government
Department for Education,Core,20/07/2021,Grants Expenditure,Capital Directorate,NEWCASTLE CITY COUNCIL,CL038087,193773.35,Capital grants - Local Government
Department for Education,Core,20/07/2021,Grants Expenditure,Capital Directorate,NEWHAM LONDON BOROUGH COUNCIL,CL038061,115100.39,Capital grants - Local Government
Department for Education,Core,20/07/2021,Grants Expenditure,Capital Directorate,NORFOLK COUNTY COUNCIL,CL038134,866972.22,Capital grants - Local Government
Department for Education,Core,20/07/2021,Grants Expenditure,Capital Directorate,North Northamptonshire Council,CL038141,115874.26,Capital grants - Local Government
Department for Education,Core,20/07/2021,Grants Expenditure,Capital Directorate,NORTH TYNESIDE METRO BOROUGH COUNCIL,CL038088,211199.36,Capital grants - Local Government
Department for Education,Core,20/07/2021,Grants Expenditure,Capital Directorate,NORTH YORKSHIRE COUNTY COUNCIL,CL038098,375742.25,Capital grants - Local Government
Department for Education,Core,20/07/2021,Grants Expenditure,Capital Directorate,NOTTINGHAMSHIRE COUNTY COUNCIL,CL038126,1822663.91,Capital grants - Local Government
Department for Education,Core,20/07/2021,Grants Expenditure,Capital Directorate,OLDHAM METRO BOROUGH COUNCIL,CL038074,759179.53,Capital grants - Local Government
Department for Education,Core,20/07/2021,Grants Expenditure,Capital Directorate,PETERBOROUGH CITY COUNCIL,CL038116,315131.14,Capital grants - Local Government
Department for Education,Core,20/07/2021,Grants Expenditure,Capital Directorate,Reading Borough Council,CL038114,1039524.07,Capital grants - Local Government
Department for Education,Core,20/07/2021,Grants Expenditure,Capital Directorate,REDCAR & CLEVELAND BOROUGH COUNCIL,CL038095,38213.97,Capital grants - Local Government
Department for Education,Core,20/07/2021,Grants Expenditure,Capital Directorate,RICHMOND UPON THAMES LONDON BOROUGH COUNCIL,CL038062,46291.85,Capital grants - Local Government
Department for Education,Core,20/07/2021,Grants Expenditure,Capital Directorate,ROTHERHAM BOROUGH COUNCIL,CL038080,382164.8,Capital grants - Local Government
Department for Education,Core,20/07/2021,Grants Expenditure,Capital Directorate,ROYAL BOROUGH OF KINGSTON UPON THAMES COUNCIL,CL038060,116625.14,Capital grants - Local Government
Department for Education,Core,20/07/2021,Grants Expenditure,Capital Directorate,ROYAL BOROUGH OF WINDSOR & MAIDENHEAD,CL038113,87883.82,Capital grants - Local Government
Department for Education,Core,20/07/2021,Grants Expenditure,Capital Directorate,RUTLAND COUNTY COUNCIL,CL038110,187665.54,Capital grants - Local Government
Department for Education,Core,20/07/2021,Grants Expenditure,Capital Directorate,Sandwell Metro Borough Council,CL038066,992458.24,Capital grants - Local Government
Department for Education,Core,20/07/2021,Grants Expenditure,Capital Directorate,SHEFFIELD CITY COUNCIL,CL038081,513057.32,Capital grants - Local Government
Department for Education,Core,20/07/2021,Grants Expenditure,Capital Directorate,SHROPSHIRE COUNCIL,CL038127,337501.66,Capital grants - Local Government
Department for Education,Core,20/07/2021,Grants Expenditure,Capital Directorate,SOLIHULL METRO BOROUGH COUNCIL,CL038067,487580.01,Capital grants - Local Government
Department for Education,Core,20/07/2021,Grants Expenditure,Capital Directorate,SOUTH GLOUCESTERSHIRE COUNCIL,CL038093,459341.97,Capital grants - Local Government
Department for Education,Core,20/07/2021,Grants Expenditure,Capital Directorate,SOUTHAMPTON CITY COUNCIL,CL038108,908861.83,Capital grants - Local Government
Department for Education,Core,20/07/2021,Grants Expenditure,Capital Directorate,ST HELENS METRO BOROUGH COUNCIL,CL038072,313130.72,Capital grants - Local Government
Department for Education,Core,20/07/2021,Grants Expenditure,Capital Directorate,STOKE ON TRENT CITY COUNCIL,CL038111,1285422.33,Capital grants - Local Government
Department for Education,Core,20/07/2021,Grants Expenditure,Capital Directorate,SUFFOLK COUNTY COUNCIL,CL038135,539296.26,Capital grants - Local Government
Department for Education,Core,20/07/2021,Grants Expenditure,Capital Directorate,SUNDERLAND CITY METRO BOROUGH COUNCIL,CL038089,382271.72,Capital grants - Local Government
Department for Education,Core,20/07/2021,Grants Expenditure,Capital Directorate,SURREY COUNTY COUNCIL,CL038136,10068657.67,Capital grants - Local Government
Department for Education,Core,20/07/2021,Grants Expenditure,Capital Directorate,TAMESIDE METRO BOROUGH COUNCIL,CL038075,1359090.65,Capital grants - Local Government
Department for Education,Core,20/07/2021,Grants Expenditure,Capital Directorate,THURROCK BOROUGH COUNCIL,CL038120,711104.08,Capital grants - Local Government
Department for Education,Core,20/07/2021,Grants Expenditure,Capital Directorate,TORBAY COUNCIL,CL038118,1005632.51,Capital grants - Local Government
Department for Education,Core,20/07/2021,Grants Expenditure,Capital Directorate,Trafford Borough Council,CL038076,871308.04,Capital grants - Local Government
Department for Education,Core,20/07/2021,Grants Expenditure,Capital Directorate,Wakefield City Council,CL038085,123153.54,Capital grants - Local Government
Department for Education,Core,20/07/2021,Grants Expenditure,Capital Directorate,WALSALL METRO BOROUGH COUNCIL,CL038068,146652.34,Capital grants - Local Government
Department for Education,Core,20/07/2021,Grants Expenditure,Capital Directorate,WARWICKSHIRE COUNTY COUNCIL,CL038137,2681812.95,Capital grants - Local Government
Department for Education,Core,20/07/2021,Grants Expenditure,Capital Directorate,West Northamptonshire Council,CL038142,251825.75,Capital grants - Local Government
Department for Education,Core,20/07/2021,Grants Expenditure,Capital Directorate,West Sussex County Council,CL038138,781635.41,Capital grants - Local Government
Department for Education,Core,20/07/2021,Grants Expenditure,Capital Directorate,WESTMINSTER CITY COUNCIL,CL038052,245630.06,Capital grants - Local Government
Department for Education,Core,20/07/2021,Grants Expenditure,Capital Directorate,Wigan Metropolitan Borough Council,CL038077,244103.11,Capital grants - Local Government
Department for Education,Core,20/07/2021,Grants Expenditure,Capital Directorate,WILTSHIRE COUNTY COUNCIL,CL038112,347953.81,Capital grants - Local Government
Department for Education,Core,20/07/2021,Grants Expenditure,Capital Directorate,WOKINGHAM COUNCIL,CL038115,794971.17,Capital grants - Local Government
Department for Education,Core,20/07/2021,Grants Expenditure,Capital Directorate,WOLVERHAMPTON CITY COUNCIL,CL038069,2090046.79,Capital grants - Local Government
Department for Education,Core,20/07/2021,Grants Expenditure,Capital Directorate,Worcestershire County Council,CL038121,546613.37,Capital grants - Local Government
Department for Education,Core,02/07/2021,Grants Expenditure,Capital Directorate,Carlton Bolling,CAY071097,29017.19,Capital grants - Academy Trust
Department for Education,Core,02/07/2021,Grants Expenditure,Capital Directorate,Neston High School,CAY064263,33818.12,Capital grants - Academy Trust
Department for Education,Core,02/07/2021,Grants Expenditure,Capital Directorate,Plantsbrook School,CAY063268,30198.44,Capital grants - Academy Trust
Department for Education,Core,02/07/2021,Grants Expenditure,Capital Directorate,President Kennedy School Academy,CAY065776,32288.12,Capital grants - Academy Trust
Department for Education,Core,20/07/2021,Grants Expenditure,Capital Directorate,Abbey Multi Academy Trust,CAY082265,212797.98,Capital grants - Academy Trust
Department for Education,Core,20/07/2021,Grants Expenditure,Capital Directorate,Academies Enterprise Trust,CAY082266,1332182.42,Capital grants - Academy Trust
Department for Education,Core,20/07/2021,Grants Expenditure,Capital Directorate,Academy Transformation Trust,CAY082267,1274954.88,Capital grants - Academy Trust
Department for Education,Core,20/07/2021,Grants Expenditure,Capital Directorate,Acer Trust,CAY082268,411809.73,Capital grants - Academy Trust
Department for Education,Core,20/07/2021,Grants Expenditure,Capital Directorate,Acorn Education Trust ,CAY082269,160195.41,Capital grants - Academy Trust
Department for Education,Core,20/07/2021,Grants Expenditure,Capital Directorate,Advance Learning Partnership,CAY082270,225882.13,Capital grants - Academy Trust
Department for Education,Core,20/07/2021,Grants Expenditure,Capital Directorate,ALBAN ACADEMIES TRUST,CAY082271,217610.23,Capital grants - Academy Trust
Department for Education,Core,20/07/2021,Grants Expenditure,Capital Directorate,Aldridge Education,CAY082272,197674.06,Capital grants - Academy Trust
Department for Education,Core,20/07/2021,Grants Expenditure,Capital Directorate,Aletheia Anglican Academies Trust,CAY082273,128656.72,Capital grants - Academy Trust
Department for Education,Core,20/07/2021,Grants Expenditure,Capital Directorate,Alpha Academies Trust,CAY082274,75034.35,Capital grants - Academy Trust
Department for Education,Core,20/07/2021,Grants Expenditure,Capital Directorate,Ambitions Academies Trust,CAY082275,303947.78,Capital grants - Academy Trust
Department for Education,Core,20/07/2021,Grants Expenditure,Capital Directorate,Anglian Learning,CAY082276,355500.62,Capital grants - Academy Trust
Department for Education,Core,20/07/2021,Grants Expenditure,Capital Directorate,Anthem Schools Trust,CAY082277,446763.71,Capital grants - Academy Trust
Department for Education,Core,20/07/2021,Grants Expenditure,Capital Directorate,Aquinas C of E Education Trust Limited,CAY082278,188004.17,Capital grants - Academy Trust
Department for Education,Core,20/07/2021,Grants Expenditure,Capital Directorate,Archway Learning Trust,CAY082279,223475.08,Capital grants - Academy Trust
Department for Education,Core,20/07/2021,Grants Expenditure,Capital Directorate,ARK Schools,CAY082280,1342988.67,Capital grants - Academy Trust
Department for Education,Core,20/07/2021,Grants Expenditure,Capital Directorate,Aspirations Academies Trust,CAY082281,365251.85,Capital grants - Academy Trust
Department for Education,Core,20/07/2021,Grants Expenditure,Capital Directorate,Aspire Academy Trust ,CAY082282,159929.32,Capital grants - Academy Trust
Department for Education,Core,20/07/2021,Grants Expenditure,Capital Directorate,ASSET Education,CAY082283,205030.23,Capital grants - Academy Trust
Department for Education,Core,20/07/2021,Grants Expenditure,Capital Directorate,ASSISI CATHOLIC TRUST,CAY082284,151431.6,Capital grants - Academy Trust
Department for Education,Core,20/07/2021,Grants Expenditure,Capital Directorate,Aston Community Education Trust,CAY082285,327876.95,Capital grants - Academy Trust
Department for Education,Core,20/07/2021,Grants Expenditure,Capital Directorate,Astrea Academy Trust,CAY082286,518523.69,Capital grants - Academy Trust
Department for Education,Core,20/07/2021,Grants Expenditure,Capital Directorate,Avanti Schools Trust,CAY082287,132801.04,Capital grants - Academy Trust
Department for Education,Core,20/07/2021,Grants Expenditure,Capital Directorate,Batley Multi Academy Trust,CAY082288,128952.75,Capital grants - Academy Trust
Department for Education,Core,20/07/2021,Grants Expenditure,Capital Directorate,Beckfoot Trust,CAY082289,279843.93,Capital grants - Academy Trust
Department for Education,Core,20/07/2021,Grants Expenditure,Capital Directorate,Bedfordshire Schools Trust Limited,CAY082290,149818.78,Capital grants - Academy Trust
Department for Education,Core,20/07/2021,Grants Expenditure,Capital Directorate,Berlesduna Academy Trust,CAY082291,106225.59,Capital grants - Academy Trust
Department for Education,Core,20/07/2021,Grants Expenditure,Capital Directorate,Birmingham Diocesan Academies Trust,CAY082292,160528.18,Capital grants - Academy Trust
Department for Education,Core,20/07/2021,Grants Expenditure,Capital Directorate,Bishop Bewick Catholic Education Trust,CAY082293,282066.7,Capital grants - Academy Trust
Department for Education,Core,20/07/2021,Grants Expenditure,Capital Directorate,Bishop Chadwick Catholic Education Trust,CAY082294,334059.24,Capital grants - Academy Trust
Department for Education,Core,20/07/2021,Grants Expenditure,Capital Directorate,Bishop Hogarth Catholic Education Trust,CAY082295,562853.43,Capital grants - Academy Trust
Department for Education,Core,20/07/2021,Grants Expenditure,Capital Directorate,Bishop Wilkinson Catholic Education Trust,CAY082635,473992.05,Capital grants - Academy Trust
Department for Education,Core,20/07/2021,Grants Expenditure,Capital Directorate,Bohunt Education Trust,CAY082297,622287.62,Capital grants - Academy Trust
Department for Education,Core,20/07/2021,Grants Expenditure,Capital Directorate,Boleyn Trust,CAY082298,195964.23,Capital grants - Academy Trust
Department for Education,Core,20/07/2021,Grants Expenditure,Capital Directorate,Boudica Schools Trust,CAY082299,184091.74,Capital grants - Academy Trust
Department for Education,Core,20/07/2021,Grants Expenditure,Capital Directorate,Bourne Education Trust,CAY082300,525895.55,Capital grants - Academy Trust
Department for Education,Core,20/07/2021,Grants Expenditure,Capital Directorate,Bradford Diocesan Academies Trust,CAY082301,254377.54,Capital grants - Academy Trust
Department for Education,Core,20/07/2021,Grants Expenditure,Capital Directorate,Bradgate Education Partnership,CAY082302,265810.47,Capital grants - Academy Trust
Department for Education,Core,20/07/2021,Grants Expenditure,Capital Directorate,Bridge Academy Trust,CAY082303,150252.01,Capital grants - Academy Trust
Department for Education,Core,20/07/2021,Grants Expenditure,Capital Directorate,Bridgwater & Taunton College Trust,CAY082304,159186.96,Capital grants - Academy Trust
Department for Education,Core,20/07/2021,Grants Expenditure,Capital Directorate,Brigantia Learning Trust Limited,CAY082305,116620.38,Capital grants - Academy Trust
Department for Education,Core,20/07/2021,Grants Expenditure,Capital Directorate,Bright Futures Educational Trust,CAY082306,164404.52,Capital grants - Academy Trust
Department for Education,Core,20/07/2021,Grants Expenditure,Capital Directorate,Brooke Weston Trust,CAY082496,315035.08,Capital grants - Academy Trust
Department for Education,Core,20/07/2021,Grants Expenditure,Capital Directorate,Burnt Mill Academy Trust,CAY082296,457538.36,Capital grants - Academy Trust
Department for Education,Core,20/07/2021,Grants Expenditure,Capital Directorate,Cabot Learning Federation,CAY082307,344140.85,Capital grants - Academy Trust
Department for Education,Core,20/07/2021,Grants Expenditure,Capital Directorate,Cambridge Meridian Academies Trust,CAY082308,409481.68,Capital grants - Academy Trust
Department for Education,Core,20/07/2021,Grants Expenditure,Capital Directorate,Castle Phoenix Trust,CAY082309,222811.81,Capital grants - Academy Trust
Department for Education,Core,20/07/2021,Grants Expenditure,Capital Directorate,Castle School Education Trust,CAY082310,380909.88,Capital grants - Academy Trust
Department for Education,Core,20/07/2021,Grants Expenditure,Capital Directorate,Castleford Academy Trust,CAY082703,506433.06,Capital grants - Academy Trust
Department for Education,Core,20/07/2021,Grants Expenditure,Capital Directorate,Cathedral Schools Trust,CAY082311,104697.91,Capital grants - Academy Trust
Department for Education,Core,20/07/2021,Grants Expenditure,Capital Directorate,Central Learning Partnership Trust,CAY082312,237467.83,Capital grants - Academy Trust
Department for Education,Core,20/07/2021,Grants Expenditure,Capital Directorate,Central RSA Academies Trust,CAY082313,217742.09,Capital grants - Academy Trust
Department for Education,Core,20/07/2021,Grants Expenditure,Capital Directorate,CHILDREN FIRST ACADEMY TRUST,CAY082314,169448.02,Capital grants - Academy Trust
Department for Education,Core,20/07/2021,Grants Expenditure,Capital Directorate,Chiltern Learning Trust,CAY082315,427095.42,Capital grants - Academy Trust
Department for Education,Core,20/07/2021,Grants Expenditure,Capital Directorate,Cirrus Primary Academy Trust,CAY082316,115200.45,Capital grants - Academy Trust
Department for Education,Core,20/07/2021,Grants Expenditure,Capital Directorate,City of London Academies Trust,CAY082317,268905.08,Capital grants - Academy Trust
Department for Education,Core,20/07/2021,Grants Expenditure,Capital Directorate,Clevedon Learning Trust,CAY082318,135121.53,Capital grants - Academy Trust
Department for Education,Core,20/07/2021,Grants Expenditure,Capital Directorate,Coastal Learning Partnership,CAY082319,189816.22,Capital grants - Academy Trust
Department for Education,Core,20/07/2021,Grants Expenditure,Capital Directorate,Community Academies Trust,CAY082320,336552.78,Capital grants - Academy Trust
Department for Education,Core,20/07/2021,Grants Expenditure,Capital Directorate,Community Inclusive Trust,CAY082321,183939.91,Capital grants - Academy Trust
Department for Education,Core,20/07/2021,Grants Expenditure,Capital Directorate,Consilium Academies,CAY082322,198790.85,Capital grants - Academy Trust
Department for Education,Core,20/07/2021,Grants Expenditure,Capital Directorate,Co-operative Academies Trust,CAY082500,497942.51,Capital grants - Academy Trust
Department for Education,Core,20/07/2021,Grants Expenditure,Capital Directorate,Cornwall Education Learning Trust,CAY082325,317986.67,Capital grants - Academy Trust
Department for Education,Core,20/07/2021,Grants Expenditure,Capital Directorate,Creative Education Trust,CAY082326,705743.42,Capital grants - Academy Trust
Department for Education,Core,20/07/2021,Grants Expenditure,Capital Directorate,Cumbria Education Trust,CAY082327,246398.42,Capital grants - Academy Trust
Department for Education,Core,20/07/2021,Grants Expenditure,Capital Directorate,Dartmoor Multi Academy Trust,CAY082328,230083.05,Capital grants - Academy Trust
Department for Education,Core,20/07/2021,Grants Expenditure,Capital Directorate,Delta Academies Trust,CAY082329,823187.72,Capital grants - Academy Trust
Department for Education,Core,20/07/2021,Grants Expenditure,Capital Directorate,Derby Diocesan Academy Trust,CAY082330,271572.47,Capital grants - Academy Trust
Department for Education,Core,20/07/2021,Grants Expenditure,Capital Directorate,Diocese of Bristol Academies Trust,CAY082331,79900.41,Capital grants - Academy Trust
Department for Education,Core,20/07/2021,Grants Expenditure,Capital Directorate,Diocese of Chichester Academy Trust,CAY082332,161978.62,Capital grants - Academy Trust
Department for Education,Core,20/07/2021,Grants Expenditure,Capital Directorate,Diocese of Liverpool Academies Trust (Merseyside),CAY082412,161389.18,Capital grants - Academy Trust
Department for Education,Core,20/07/2021,Grants Expenditure,Capital Directorate,Diocese of Salisbury Multi Academy Trust,CAY082334,103116.43,Capital grants - Academy Trust
Department for Education,Core,20/07/2021,Grants Expenditure,Capital Directorate,Diocese of Southwell and Nottingham MAT,CAY082335,201210.13,Capital grants - Academy Trust
Department for Education,Core,20/07/2021,Grants Expenditure,Capital Directorate,Discovery Schools Academies Trust,CAY082336,158122.83,Capital grants - Academy Trust
Department for Education,Core,20/07/2021,Grants Expenditure,Capital Directorate,Diverse Academies Trust,CAY082337,459531.94,Capital grants - Academy Trust
Department for Education,Core,20/07/2021,Grants Expenditure,Capital Directorate,Dixons Academies Charitable Trust Ltd,CAY082338,235629.12,Capital grants - Academy Trust
Department for Education,Core,20/07/2021,Grants Expenditure,Capital Directorate,DRB Ignite Multi Academy Trust,CAY082339,161610.01,Capital grants - Academy Trust
Department for Education,Core,20/07/2021,Grants Expenditure,Capital Directorate,DUDLEY ACADEMIES TRUST,CAY082340,270404.27,Capital grants - Academy Trust
Department for Education,Core,20/07/2021,Grants Expenditure,Capital Directorate,E-ACT,CAY082341,832517.72,Capital grants - Academy Trust
Department for Education,Core,20/07/2021,Grants Expenditure,Capital Directorate,East Midlands Education Trust,CAY082343,745804.72,Capital grants - Academy Trust
Department for Education,Core,20/07/2021,Grants Expenditure,Capital Directorate,Eastern Learning Alliance,CAY082344,215246.89,Capital grants - Academy Trust
Department for Education,Core,20/07/2021,Grants Expenditure,Capital Directorate,Eastern Multi-Academy Trust,CAY082345,256014.65,Capital grants - Academy Trust
Department for Education,Core,20/07/2021,Grants Expenditure,Capital Directorate,EBOR Academy Trust,CAY082346,188183.7,Capital grants - Academy Trust
Department for Education,Core,20/07/2021,Grants Expenditure,Capital Directorate,Eden Learning Trust,CAY082348,293185.44,Capital grants - Academy Trust
Department for Education,Core,20/07/2021,Grants Expenditure,Capital Directorate,Education for the 21st Century,CAY082349,335280.38,Capital grants - Academy Trust
Department for Education,Core,20/07/2021,Grants Expenditure,Capital Directorate,Education South West,CAY082350,210755.9,Capital grants - Academy Trust
Department for Education,Core,20/07/2021,Grants Expenditure,Capital Directorate,EMLC Academy Trust,CAY082342,146310.31,Capital grants - Academy Trust
Department for Education,Core,20/07/2021,Grants Expenditure,Capital Directorate,Emmanuel Schools Foundation,CAY082351,373055.05,Capital grants - Academy Trust
Department for Education,Core,20/07/2021,Grants Expenditure,Capital Directorate,Enfield Learning Trust,CAY082352,358581.41,Capital grants - Academy Trust
Department for Education,Core,20/07/2021,Grants Expenditure,Capital Directorate,ENHANCE ACADEMY TRUST,CAY082353,122792.87,Capital grants - Academy Trust
Department for Education,Core,20/07/2021,Grants Expenditure,Capital Directorate,Enrich Learning Trust,CAY082636,233654.75,Capital grants - Academy Trust
Department for Education,Core,20/07/2021,Grants Expenditure,Capital Directorate,Epping Forest Schools Partnership Trust,CAY082354,185039.03,Capital grants - Academy Trust
Department for Education,Core,20/07/2021,Grants Expenditure,Capital Directorate,Esteem Multi-Academy Trust,CAY082355,180530.59,Capital grants - Academy Trust
Department for Education,Core,20/07/2021,Grants Expenditure,Capital Directorate,Evolution Academy Trust,CAY082356,201290.36,Capital grants - Academy Trust
Department for Education,Core,20/07/2021,Grants Expenditure,Capital Directorate,Excalibur Academies Trust,CAY082357,209373.5,Capital grants - Academy Trust
Department for Education,Core,20/07/2021,Grants Expenditure,Capital Directorate,Exceed Academies Trust,CAY082358,119681.45,Capital grants - Academy Trust
Department for Education,Core,20/07/2021,Grants Expenditure,Capital Directorate,Extend Learning Academies Network,CAY082359,88012.14,Capital grants - Academy Trust
Department for Education,Core,20/07/2021,Grants Expenditure,Capital Directorate,Finham Park Multi Academy Trust,CAY082360,220921.01,Capital grants - Academy Trust
Department for Education,Core,20/07/2021,Grants Expenditure,Capital Directorate,Flying High Trust,CAY082361,348453.73,Capital grants - Academy Trust
Department for Education,Core,20/07/2021,Grants Expenditure,Capital Directorate,Focus Academy Trust (UK) Ltd,CAY082362,147779.87,Capital grants - Academy Trust
Department for Education,Core,20/07/2021,Grants Expenditure,Capital Directorate,Fort Pitt Thomas Aveling Academies,CAY082363,188225.83,Capital grants - Academy Trust
Department for Education,Core,20/07/2021,Grants Expenditure,Capital Directorate,Future Academies (MAT),CAY082364,483299.61,Capital grants - Academy Trust
Department for Education,Core,20/07/2021,Grants Expenditure,Capital Directorate,Fylde Coast Academy Trust,CAY082365,238132.64,Capital grants - Academy Trust
Department for Education,Core,20/07/2021,Grants Expenditure,Capital Directorate,Galileo Multi Academy Trust,CAY082366,97626.24,Capital grants - Academy Trust
Department for Education,Core,20/07/2021,Grants Expenditure,Capital Directorate,Gatehouse Green Learning Trust,CAY082367,108569.42,Capital grants - Academy Trust
Department for Education,Core,20/07/2021,Grants Expenditure,Capital Directorate,GFM EDUCATION,CAY082368,634226.86,Capital grants - Academy Trust
Department for Education,Core,20/07/2021,Grants Expenditure,Capital Directorate,GLF Schools,CAY082369,675647.13,Capital grants - Academy Trust
Department for Education,Core,20/07/2021,Grants Expenditure,Capital Directorate,GREENSAND MULTI-ACADEMY TRUST,CAY082370,95673.92,Capital grants - Academy Trust
Department for Education,Core,20/07/2021,Grants Expenditure,Capital Directorate,Greenshaw Learning Trust,CAY082371,802314.27,Capital grants - Academy Trust
Department for Education,Core,20/07/2021,Grants Expenditure,Capital Directorate,Greenwood Academies Trust,CAY082372,695840.14,Capital grants - Academy Trust
Department for Education,Core,20/07/2021,Grants Expenditure,Capital Directorate,Guildford Education Partnership,CAY082373,596717.78,Capital grants - Academy Trust
Department for Education,Core,20/07/2021,Grants Expenditure,Capital Directorate,Haberdashers' Aske's Federation Trust,CAY082374,182779.92,Capital grants - Academy Trust
Department for Education,Core,20/07/2021,Grants Expenditure,Capital Directorate,Hamwic Education Trust,CAY082375,448462.4,Capital grants - Academy Trust
Department for Education,Core,20/07/2021,Grants Expenditure,Capital Directorate,Harris Federation,CAY082376,1414303,Capital grants - Academy Trust
Department for Education,Core,20/07/2021,Grants Expenditure,Capital Directorate,HCAT,CAY082377,44692.58,Capital grants - Academy Trust
Department for Education,Core,20/07/2021,Grants Expenditure,Capital Directorate,Healing Multi Academy Trust,CAY082378,218541.53,Capital grants - Academy Trust
Department for Education,Core,20/07/2021,Grants Expenditure,Capital Directorate,Holy Cross Catholic Multi Academy Company,CAY082379,274899.47,Capital grants - Academy Trust
Department for Education,Core,20/07/2021,Grants Expenditure,Capital Directorate,Holy Family Catholic Multi Academy Trust,CAY082380,163191.07,Capital grants - Academy Trust
Department for Education,Core,20/07/2021,Grants Expenditure,Capital Directorate,"Hope Learning Trust, York",CAY082381,185579.11,Capital grants - Academy Trust
Department for Education,Core,20/07/2021,Grants Expenditure,Capital Directorate,Hull Collaborative Academy Trust,CAY082382,180678.11,Capital grants - Academy Trust
Department for Education,Core,20/07/2021,Grants Expenditure,Capital Directorate,Humber Education Trust,CAY082383,141492.78,Capital grants - Academy Trust
Department for Education,Core,20/07/2021,Grants Expenditure,Capital Directorate,Impact Education Multi Academy Trust,CAY082384,225147.58,Capital grants - Academy Trust
Department for Education,Core,20/07/2021,Grants Expenditure,Capital Directorate,InMAT,CAY082385,125302.22,Capital grants - Academy Trust
Department for Education,Core,20/07/2021,Grants Expenditure,Capital Directorate,Inspiration Trust,CAY082386,511560.01,Capital grants - Academy Trust
Department for Education,Core,20/07/2021,Grants Expenditure,Capital Directorate,Inspire Education Trust,CAY082387,149296.23,Capital grants - Academy Trust
Department for Education,Core,20/07/2021,Grants Expenditure,Capital Directorate,INSPIRE PARTNERSHIP ACADEMY TRUST,CAY082388,189823.2,Capital grants - Academy Trust
Department for Education,Core,20/07/2021,Grants Expenditure,Capital Directorate,Inspiring Futures Through Learning,CAY082389,207417.68,Capital grants - Academy Trust
Department for Education,Core,20/07/2021,Grants Expenditure,Capital Directorate,Invictus Education Trust,CAY082390,570269.22,Capital grants - Academy Trust
Department for Education,Core,20/07/2021,Grants Expenditure,Capital Directorate,IVY LEARNING TRUST,CAY082391,160622.62,Capital grants - Academy Trust
Department for Education,Core,20/07/2021,Grants Expenditure,Capital Directorate,James Montgomery Academy Trust,CAY082392,129088.56,Capital grants - Academy Trust
Department for Education,Core,20/07/2021,Grants Expenditure,Capital Directorate,John Paul II Multi-academy,CAY082477,216438.73,Capital grants - Academy Trust
Department for Education,Core,20/07/2021,Grants Expenditure,Capital Directorate,John Taylor MAT,CAY082393,411422.27,Capital grants - Academy Trust
Department for Education,Core,20/07/2021,Grants Expenditure,Capital Directorate,Kent Catholic Schools' Partnership,CAY082394,671425.8,Capital grants - Academy Trust
Department for Education,Core,20/07/2021,Grants Expenditure,Capital Directorate,Kernow Learning Multi Academy Trust,CAY082395,112795.53,Capital grants - Academy Trust
Department for Education,Core,20/07/2021,Grants Expenditure,Capital Directorate,KING EDWARD VI ACADEMY TRUST BIRMINGHAM,CAY082396,457543.24,Capital grants - Academy Trust
Department for Education,Core,20/07/2021,Grants Expenditure,Capital Directorate,L.E.A.D. Academy Trust,CAY082397,479389.47,Capital grants - Academy Trust
Department for Education,Core,20/07/2021,Grants Expenditure,Capital Directorate,Landau Forte Charitable Trust,CAY082398,231941.72,Capital grants - Academy Trust
Department for Education,Core,20/07/2021,Grants Expenditure,Capital Directorate,Langley Park Learning Trust,CAY082399,171269.06,Capital grants - Academy Trust
Department for Education,Core,20/07/2021,Grants Expenditure,Capital Directorate,Learners trust,CAY082400,155500.69,Capital grants - Academy Trust
Department for Education,Core,20/07/2021,Grants Expenditure,Capital Directorate,Learning Community Trust,CAY082401,172995.77,Capital grants - Academy Trust
Department for Education,Core,20/07/2021,Grants Expenditure,Capital Directorate,Learning in Harmony Multi Academy Trust,CAY082402,211265.76,Capital grants - Academy Trust
Department for Education,Core,20/07/2021,Grants Expenditure,Capital Directorate,Leigh Academies Trust,CAY082403,684682.12,Capital grants - Academy Trust
Department for Education,Core,20/07/2021,Grants Expenditure,Capital Directorate,Leigh Trust,CAY082404,118866.62,Capital grants - Academy Trust
Department for Education,Core,20/07/2021,Grants Expenditure,Capital Directorate,LEO Academy Trust,CAY082405,108752.95,Capital grants - Academy Trust
Department for Education,Core,20/07/2021,Grants Expenditure,Capital Directorate,Leodis Academies Trust,CAY082406,147995.87,Capital grants - Academy Trust
Department for Education,Core,20/07/2021,Grants Expenditure,Capital Directorate,LiFE Multi Academy Trust,CAY082705,1673171.85,Capital grants - Academy Trust
Department for Education,Core,20/07/2021,Grants Expenditure,Capital Directorate,Lighthouse Schools Partnership,CAY082407,357348.86,Capital grants - Academy Trust
Department for Education,Core,20/07/2021,Grants Expenditure,Capital Directorate,Lime Trust,CAY082408,206748.11,Capital grants - Academy Trust
Department for Education,Core,20/07/2021,Grants Expenditure,Capital Directorate,Lincoln Anglican Academy Trust,CAY082409,109542,Capital grants - Academy Trust
Department for Education,Core,20/07/2021,Grants Expenditure,Capital Directorate,Lion Academy Trust,CAY082410,159961.52,Capital grants - Academy Trust
Department for Education,Core,20/07/2021,Grants Expenditure,Capital Directorate,Lionheart Academies Trust,CAY082411,495710.75,Capital grants - Academy Trust
Department for Education,Core,20/07/2021,Grants Expenditure,Capital Directorate,Loxford School Trust Limited,CAY082413,322274.76,Capital grants - Academy Trust
Department for Education,Core,20/07/2021,Grants Expenditure,Capital Directorate,Magna Learning Partnership,CAY082414,92651.77,Capital grants - Academy Trust
Department for Education,Core,20/07/2021,Grants Expenditure,Capital Directorate,Maiden Erlegh Trust,CAY082415,275181.15,Capital grants - Academy Trust
Department for Education,Core,20/07/2021,Grants Expenditure,Capital Directorate,Maltby Learning Trust,CAY082416,132049.75,Capital grants - Academy Trust
Department for Education,Core,20/07/2021,Grants Expenditure,Capital Directorate,Marches Academy Trust,CAY082417,319893.96,Capital grants - Academy Trust
Department for Education,Core,20/07/2021,Grants Expenditure,Capital Directorate,Maritime AcademyTrust,CAY082418,169289.16,Capital grants - Academy Trust
Department for Education,Core,20/07/2021,Grants Expenditure,Capital Directorate,Mercia Learning Trust,CAY082419,86544.41,Capital grants - Academy Trust
Department for Education,Core,20/07/2021,Grants Expenditure,Capital Directorate,Midsomer Norton Schools Partnership,CAY082420,343828.82,Capital grants - Academy Trust
Department for Education,Core,20/07/2021,Grants Expenditure,Capital Directorate,Minerva Learning Trust,CAY082421,208240.2,Capital grants - Academy Trust
Department for Education,Core,20/07/2021,Grants Expenditure,Capital Directorate,Nexus Education Schools Trust,CAY082422,234268.68,Capital grants - Academy Trust
Department for Education,Core,20/07/2021,Grants Expenditure,Capital Directorate,Nexus Multi Academy Trust,CAY082423,108976.09,Capital grants - Academy Trust
Department for Education,Core,20/07/2021,Grants Expenditure,Capital Directorate,Nicholas Postgate Academy Trust,CAY082424,250827.83,Capital grants - Academy Trust
Department for Education,Core,20/07/2021,Grants Expenditure,Capital Directorate,North East Learning Trust,CAY082425,271852.82,Capital grants - Academy Trust
Department for Education,Core,20/07/2021,Grants Expenditure,Capital Directorate,Northampton Primary Academy Trust,CAY082426,86318.03,Capital grants - Academy Trust
Department for Education,Core,20/07/2021,Grants Expenditure,Capital Directorate,Northern Education Trust,CAY082427,433517.54,Capital grants - Academy Trust
Department for Education,Core,20/07/2021,Grants Expenditure,Capital Directorate,Northern Star Academies Trust,CAY082428,119029.82,Capital grants - Academy Trust
Department for Education,Core,20/07/2021,Grants Expenditure,Capital Directorate,Nova Education Trust,CAY082429,716210.09,Capital grants - Academy Trust
Department for Education,Core,20/07/2021,Grants Expenditure,Capital Directorate,NRCDES,CAY082637,1435280.73,Capital grants - Academy Trust
Department for Education,Core,20/07/2021,Grants Expenditure,Capital Directorate,Oasis Community Learning,CAY082430,845302.41,Capital grants - Academy Trust
Department for Education,Core,20/07/2021,Grants Expenditure,Capital Directorate,Omega Multi Academy Trust,CAY082431,154072.42,Capital grants - Academy Trust
Department for Education,Core,20/07/2021,Grants Expenditure,Capital Directorate,Orchard Community Trust,CAY082706,164034.72,Capital grants - Academy Trust
Department for Education,Core,20/07/2021,Grants Expenditure,Capital Directorate,Ormiston Academies Trust,CAY082432,1412101.09,Capital grants - Academy Trust
Department for Education,Core,20/07/2021,Grants Expenditure,Capital Directorate,Osborne Co-operative Academy Trust,CAY082433,205799.92,Capital grants - Academy Trust
Department for Education,Core,20/07/2021,Grants Expenditure,Capital Directorate,Our Lady Immaculate Catholic Academies Trust,CAY082434,255028.42,Capital grants - Academy Trust
Department for Education,Core,20/07/2021,Grants Expenditure,Capital Directorate,Outwood Grange Academies Trust,CAY082435,857961.93,Capital grants - Academy Trust
Department for Education,Core,20/07/2021,Grants Expenditure,Capital Directorate,Oxford Diocesan Schools Trust,CAY082333,575671.18,Capital grants - Academy Trust
Department for Education,Core,20/07/2021,Grants Expenditure,Capital Directorate,Palladian Academy Trust,CAY082436,120556,Capital grants - Academy Trust
Department for Education,Core,20/07/2021,Grants Expenditure,Capital Directorate,Paradigm Trust,CAY082437,87012.06,Capital grants - Academy Trust
Department for Education,Core,20/07/2021,Grants Expenditure,Capital Directorate,Partnership Learning,CAY082438,374016.79,Capital grants - Academy Trust
Department for Education,Core,20/07/2021,Grants Expenditure,Capital Directorate,Pathfinder Multi Academy Trust,CAY082439,206096.32,Capital grants - Academy Trust
Department for Education,Core,20/07/2021,Grants Expenditure,Capital Directorate,Pathfinder Schools,CAY082440,154839.86,Capital grants - Academy Trust
Department for Education,Core,20/07/2021,Grants Expenditure,Capital Directorate,Pele Trust,CAY082441,150247.49,Capital grants - Academy Trust
Department for Education,Core,20/07/2021,Grants Expenditure,Capital Directorate,Peterborough Diocese Education Trust,CAY082442,185991.45,Capital grants - Academy Trust
Department for Education,Core,20/07/2021,Grants Expenditure,Capital Directorate,PETERBOROUGH KEYS ACADEMIES TRUST,CAY082443,104128.99,Capital grants - Academy Trust
Department for Education,Core,20/07/2021,Grants Expenditure,Capital Directorate,Plymouth CAST,CAY082444,249930.63,Capital grants - Academy Trust
Department for Education,Core,20/07/2021,Grants Expenditure,Capital Directorate,Pontefract Academies Trust,CAY082445,216631.88,Capital grants - Academy Trust
Department for Education,Core,20/07/2021,Grants Expenditure,Capital Directorate,Prospere Learning Trust,CAY082446,200951.12,Capital grants - Academy Trust
Department for Education,Core,20/07/2021,Grants Expenditure,Capital Directorate,Reach South Academy Trust,CAY082447,192939.73,Capital grants - Academy Trust
Department for Education,Core,20/07/2021,Grants Expenditure,Capital Directorate,REAch2 Academy Trust,CAY082448,726302.59,Capital grants - Academy Trust
Department for Education,Core,20/07/2021,Grants Expenditure,Capital Directorate,Red Kite Learning Trust,CAY082449,273257.98,Capital grants - Academy Trust
Department for Education,Core,20/07/2021,Grants Expenditure,Capital Directorate,Redhill Academy Trust,CAY082707,1562660.97,Capital grants - Academy Trust
Department for Education,Core,20/07/2021,Grants Expenditure,Capital Directorate,River Learning Trust,CAY082450,640015.04,Capital grants - Academy Trust
Department for Education,Core,20/07/2021,Grants Expenditure,Capital Directorate,Royal Wootton Bassett Academy Trust,CAY082451,159559.51,Capital grants - Academy Trust
Department for Education,Core,20/07/2021,Grants Expenditure,Capital Directorate,Russell Education Trust,CAY082452,167040.46,Capital grants - Academy Trust
Department for Education,Core,20/07/2021,Grants Expenditure,Capital Directorate,Saffron Academy Trust,CAY082453,429605,Capital grants - Academy Trust
Department for Education,Core,20/07/2021,Grants Expenditure,Capital Directorate,Sapientia Education Trust,CAY082454,399476.33,Capital grants - Academy Trust
Department for Education,Core,20/07/2021,Grants Expenditure,Capital Directorate,Scholars' Education Trust,CAY082455,268484.88,Capital grants - Academy Trust
Department for Education,Core,20/07/2021,Grants Expenditure,Capital Directorate,Severn Academies Educational Trust,CAY082456,193045.05,Capital grants - Academy Trust
Department for Education,Core,20/07/2021,Grants Expenditure,Capital Directorate,SHARE Multi Academy Trust,CAY082457,123365.49,Capital grants - Academy Trust
Department for Education,Core,20/07/2021,Grants Expenditure,Capital Directorate,Sharnbrook Academy Federation,CAY082458,174545.59,Capital grants - Academy Trust
Department for Education,Core,20/07/2021,Grants Expenditure,Capital Directorate,Sherborne Area Schools' Trust,CAY082459,146297.28,Capital grants - Academy Trust
Department for Education,Core,20/07/2021,Grants Expenditure,Capital Directorate,Shireland Collegiate Academy Trust,CAY082460,168103.83,Capital grants - Academy Trust
Department for Education,Core,20/07/2021,Grants Expenditure,Capital Directorate,Sidney Stringer Multi Academy Trust,CAY082461,83713.35,Capital grants - Academy Trust
Department for Education,Core,20/07/2021,Grants Expenditure,Capital Directorate,Skills For Life Trust,CAY082462,119430.88,Capital grants - Academy Trust
Department for Education,Core,20/07/2021,Grants Expenditure,Capital Directorate,South Bank Multi Academy Trust,CAY082463,199390.14,Capital grants - Academy Trust
Department for Education,Core,20/07/2021,Grants Expenditure,Capital Directorate,South East Cornwall Multi Academy Trust,CAY082464,119748.35,Capital grants - Academy Trust
Department for Education,Core,20/07/2021,Grants Expenditure,Capital Directorate,South Pennine Academies,CAY082465,133012.53,Capital grants - Academy Trust
Department for Education,Core,20/07/2021,Grants Expenditure,Capital Directorate,South Suffolk Learning Trust,CAY082466,178972.28,Capital grants - Academy Trust
Department for Education,Core,20/07/2021,Grants Expenditure,Capital Directorate,South West Essex Community Education Trust Limited,CAY082467,170499.26,Capital grants - Academy Trust
Department for Education,Core,20/07/2021,Grants Expenditure,Capital Directorate,Southend East Community Academy Trust,CAY082468,136715.64,Capital grants - Academy Trust
Department for Education,Core,20/07/2021,Grants Expenditure,Capital Directorate,Southerly Point Co-Operative Multi-Academy Trust,CAY082469,224149.18,Capital grants - Academy Trust
Department for Education,Core,20/07/2021,Grants Expenditure,Capital Directorate,St Chad's Academies Trust,CAY082471,245727.69,Capital grants - Academy Trust
Department for Education,Core,20/07/2021,Grants Expenditure,Capital Directorate,St Christopher's C of E (Primary) MAT,CAY082347,109276.18,Capital grants - Academy Trust
Department for Education,Core,20/07/2021,Grants Expenditure,Capital Directorate,St Cuthbert's Roman Catholic Academy Trust,CAY082472,143762.06,Capital grants - Academy Trust
Department for Education,Core,20/07/2021,Grants Expenditure,Capital Directorate,St Francis and St Clare Multi Academy Company,CAY082473,321395.44,Capital grants - Academy Trust
Department for Education,Core,20/07/2021,Grants Expenditure,Capital Directorate,St John The Baptist Catholic Multi Academy Trust,CAY082474,145717.78,Capital grants - Academy Trust
Department for Education,Core,20/07/2021,Grants Expenditure,Capital Directorate,St Margaret Clitherow Catholic Academy Trust,CAY082475,112495.55,Capital grants - Academy Trust
Department for Education,Core,20/07/2021,Grants Expenditure,Capital Directorate,St Thomas Catholic Academies Trust,CAY082476,217923.27,Capital grants - Academy Trust
Department for Education,Core,20/07/2021,Grants Expenditure,Capital Directorate,St. Bart's Multi Academy Trust,CAY082470,239497.9,Capital grants - Academy Trust
Department for Education,Core,20/07/2021,Grants Expenditure,Capital Directorate,Staffordshire University Academies Trust,CAY082478,174649.33,Capital grants - Academy Trust
Department for Education,Core,20/07/2021,Grants Expenditure,Capital Directorate,Star Academies,CAY082479,703414.61,Capital grants - Academy Trust
Department for Education,Core,20/07/2021,Grants Expenditure,Capital Directorate,STEP ACADEMY TRUST,CAY082480,171681.59,Capital grants - Academy Trust
Department for Education,Core,20/07/2021,Grants Expenditure,Capital Directorate,Stour Vale Academy Trust,CAY082481,325025.51,Capital grants - Academy Trust
Department for Education,Core,20/07/2021,Grants Expenditure,Capital Directorate,STOWE VALLEY MULTI ACADEMY TRUST,CAY082482,257923.62,Capital grants - Academy Trust
Department for Education,Core,20/07/2021,Grants Expenditure,Capital Directorate,Summit Learning Trust,CAY082483,321994.08,Capital grants - Academy Trust
Department for Education,Core,20/07/2021,Grants Expenditure,Capital Directorate,Swale Academies Trust,CAY082484,490619.75,Capital grants - Academy Trust
Department for Education,Core,20/07/2021,Grants Expenditure,Capital Directorate,Synergy Multi Academy Trust,CAY082485,124889.13,Capital grants - Academy Trust
Department for Education,Core,20/07/2021,Grants Expenditure,Capital Directorate,Tapton School Academy Trust,CAY082486,140421.46,Capital grants - Academy Trust
Department for Education,Core,20/07/2021,Grants Expenditure,Capital Directorate,TARKA LEARNING PARTNERSHIP,CAY082487,76045.02,Capital grants - Academy Trust
Department for Education,Core,20/07/2021,Grants Expenditure,Capital Directorate,The Active Learning Trust Limited,CAY082488,415441.03,Capital grants - Academy Trust
Department for Education,Core,20/07/2021,Grants Expenditure,Capital Directorate,The Arthur Terry Learning Partnership,CAY082489,413551.28,Capital grants - Academy Trust
Department for Education,Core,20/07/2021,Grants Expenditure,Capital Directorate,THE ASPIRE EDUCATIONAL TRUST,CAY082490,108285.02,Capital grants - Academy Trust
Department for Education,Core,20/07/2021,Grants Expenditure,Capital Directorate,The Bath and Wells Diocesan Academies Trust,CAY082491,208284.27,Capital grants - Academy Trust
Department for Education,Core,20/07/2021,Grants Expenditure,Capital Directorate,The Bishop Konstant Catholic Academy Trust,CAY082492,164411.76,Capital grants - Academy Trust
Department for Education,Core,20/07/2021,Grants Expenditure,Capital Directorate,The Bishop Wheeler Catholic Academy Trust,CAY082493,101402.68,Capital grants - Academy Trust
Department for Education,Core,20/07/2021,Grants Expenditure,Capital Directorate,The Boston Witham Academies Federation,CAY082494,123322.27,Capital grants - Academy Trust
Department for Education,Core,20/07/2021,Grants Expenditure,Capital Directorate,The Brigshaw Learning Partnership,CAY082495,103189.7,Capital grants - Academy Trust
Department for Education,Core,20/07/2021,Grants Expenditure,Capital Directorate,The Cam Academy Trust,CAY082497,261144.42,Capital grants - Academy Trust
Department for Education,Core,20/07/2021,Grants Expenditure,Capital Directorate,The Challenge Academy Trust,CAY082498,469228.57,Capital grants - Academy Trust
Department for Education,Core,20/07/2021,Grants Expenditure,Capital Directorate,The Challenger Multi Academy Trust,CAY082709,344988.92,Capital grants - Academy Trust
Department for Education,Core,20/07/2021,Grants Expenditure,Capital Directorate,The Chelmsford Learning Partnership ,CAY082499,426362.33,Capital grants - Academy Trust
Department for Education,Core,20/07/2021,Grants Expenditure,Capital Directorate,The Collegiate Trust,CAY082501,185618.23,Capital grants - Academy Trust
Department for Education,Core,20/07/2021,Grants Expenditure,Capital Directorate,The Consortium Academy Trust,CAY082502,259842.16,Capital grants - Academy Trust
Department for Education,Core,20/07/2021,Grants Expenditure,Capital Directorate,The Constellation Trust,CAY082503,171068.91,Capital grants - Academy Trust
Department for Education,Core,20/07/2021,Grants Expenditure,Capital Directorate,The Coombe Secondary Schools Academy Trust,CAY082323,213342.07,Capital grants - Academy Trust
Department for Education,Core,20/07/2021,Grants Expenditure,Capital Directorate,The Core Education Trust,CAY082324,132590.84,Capital grants - Academy Trust
Department for Education,Core,20/07/2021,Grants Expenditure,Capital Directorate,The David Ross Education Trust,CAY082504,530682.8,Capital grants - Academy Trust
Department for Education,Core,20/07/2021,Grants Expenditure,Capital Directorate,The De Ferrers Trust,CAY082505,297096.21,Capital grants - Academy Trust
Department for Education,Core,20/07/2021,Grants Expenditure,Capital Directorate,THE DEAN TRUST,CAY082506,351850.47,Capital grants - Academy Trust
Department for Education,Core,20/07/2021,Grants Expenditure,Capital Directorate,The Diamond Learning Partnership Trust,CAY082507,137580.7,Capital grants - Academy Trust
Department for Education,Core,20/07/2021,Grants Expenditure,Capital Directorate,The Diocese of Canterbury Academies Trust,CAY082508,138031.98,Capital grants - Academy Trust
Department for Education,Core,20/07/2021,Grants Expenditure,Capital Directorate,The Diocese of Chemsford Vine Schools Trust,CAY082509,190429.75,Capital grants - Academy Trust
Department for Education,Core,20/07/2021,Grants Expenditure,Capital Directorate,The Diocese of Coventry Multi-Academy Trust,CAY082510,189742.76,Capital grants - Academy Trust
Department for Education,Core,20/07/2021,Grants Expenditure,Capital Directorate,The Diocese of Ely Multi-academy Trust,CAY082511,259847.01,Capital grants - Academy Trust
Department for Education,Core,20/07/2021,Grants Expenditure,Capital Directorate,The Diocese of Gloucester Academies Trust,CAY082512,99620.29,Capital grants - Academy Trust
Department for Education,Core,20/07/2021,Grants Expenditure,Capital Directorate,The Diocese of Hereford Multi Academy Trust,CAY082704,351369.75,Capital grants - Academy Trust
Department for Education,Core,20/07/2021,Grants Expenditure,Capital Directorate,The Diocese of Norwich Education & Academies Trust,CAY082513,267180.58,Capital grants - Academy Trust
Department for Education,Core,20/07/2021,Grants Expenditure,Capital Directorate,The Diocese of Sheffield Academies Trust,CAY082514,94191.98,Capital grants - Academy Trust
Department for Education,Core,20/07/2021,Grants Expenditure,Capital Directorate,The Diocese of Westminster Academy Trust,CAY082515,432309.58,Capital grants - Academy Trust
Department for Education,Core,20/07/2021,Grants Expenditure,Capital Directorate,The Education Alliance,CAY082516,238551.89,Capital grants - Academy Trust
Department for Education,Core,20/07/2021,Grants Expenditure,Capital Directorate,The Elliot Foundation Academies Trust,CAY082517,435439.53,Capital grants - Academy Trust
Department for Education,Core,20/07/2021,Grants Expenditure,Capital Directorate,The Enquire Learning Trust,CAY082518,332119.62,Capital grants - Academy Trust
Department for Education,Core,20/07/2021,Grants Expenditure,Capital Directorate,The Fallibroome Trust,CAY082519,224108.66,Capital grants - Academy Trust
Department for Education,Core,20/07/2021,Grants Expenditure,Capital Directorate,The First Federation Trust,CAY082520,82356.87,Capital grants - Academy Trust
Department for Education,Core,20/07/2021,Grants Expenditure,Capital Directorate,The Futures Trust,CAY082521,217398.74,Capital grants - Academy Trust
Department for Education,Core,20/07/2021,Grants Expenditure,Capital Directorate,THE GOOD SHEPHERD TRUST,CAY082522,160383.28,Capital grants - Academy Trust
Department for Education,Core,20/07/2021,Grants Expenditure,Capital Directorate,The GORSE Academies Trust,CAY082523,405715.89,Capital grants - Academy Trust
Department for Education,Core,20/07/2021,Grants Expenditure,Capital Directorate,The Griffin Schools Trust,CAY082524,430638.65,Capital grants - Academy Trust
Department for Education,Core,20/07/2021,Grants Expenditure,Capital Directorate,The Harmony Trust Ltd,CAY082525,121197.81,Capital grants - Academy Trust
Department for Education,Core,20/07/2021,Grants Expenditure,Capital Directorate,The Heath Family (North West),CAY082526,105438.56,Capital grants - Academy Trust
Department for Education,Core,20/07/2021,Grants Expenditure,Capital Directorate,The Howard Partnership Trust ,CAY082527,638262.43,Capital grants - Academy Trust
Department for Education,Core,20/07/2021,Grants Expenditure,Capital Directorate,The Kemnal Academies Trust,CAY082528,1102272.1,Capital grants - Academy Trust
Department for Education,Core,20/07/2021,Grants Expenditure,Capital Directorate,THE LAIDLAW SCHOOLS TRUST,CAY082529,114114.21,Capital grants - Academy Trust
Department for Education,Core,20/07/2021,Grants Expenditure,Capital Directorate,The Laurus Trust,CAY082530,188951.87,Capital grants - Academy Trust
Department for Education,Core,20/07/2021,Grants Expenditure,Capital Directorate,The Learning Alliance,CAY082531,203230.47,Capital grants - Academy Trust
Department for Education,Core,20/07/2021,Grants Expenditure,Capital Directorate,The Mead Educational Trust,CAY082532,218434.12,Capital grants - Academy Trust
Department for Education,Core,20/07/2021,Grants Expenditure,Capital Directorate,The Mercian Trust,CAY082533,265219.74,Capital grants - Academy Trust
Department for Education,Core,20/07/2021,Grants Expenditure,Capital Directorate,The Midland Academies Trust,CAY082534,487482.09,Capital grants - Academy Trust
Department for Education,Core,20/07/2021,Grants Expenditure,Capital Directorate,The Olympus Academy Trust,CAY082535,214383.54,Capital grants - Academy Trust
Department for Education,Core,20/07/2021,Grants Expenditure,Capital Directorate,The Painsley Catholic Academy,CAY082536,192040.26,Capital grants - Academy Trust
Department for Education,Core,20/07/2021,Grants Expenditure,Capital Directorate,The Park Federation Academy Trust,CAY082537,165104.38,Capital grants - Academy Trust
Department for Education,Core,20/07/2021,Grants Expenditure,Capital Directorate,The Partnership Trust,CAY082538,97020.89,Capital grants - Academy Trust
Department for Education,Core,20/07/2021,Grants Expenditure,Capital Directorate,The Pioneer Academy,CAY082539,259860.7,Capital grants - Academy Trust
Department for Education,Core,20/07/2021,Grants Expenditure,Capital Directorate,The Priory Federation of Academies,CAY082540,374448.8,Capital grants - Academy Trust
Department for Education,Core,20/07/2021,Grants Expenditure,Capital Directorate,The Priory Learning Trust,CAY082541,210451.15,Capital grants - Academy Trust
Department for Education,Core,20/07/2021,Grants Expenditure,Capital Directorate,The Rivers C of E Multi Academy Trust,CAY082542,127262.39,Capital grants - Academy Trust
Department for Education,Core,20/07/2021,Grants Expenditure,Capital Directorate,The Romero Catholic Academy,CAY082543,145696.39,Capital grants - Academy Trust
Department for Education,Core,20/07/2021,Grants Expenditure,Capital Directorate,The Rowan Learning Trust,CAY082544,128463.65,Capital grants - Academy Trust
Department for Education,Core,20/07/2021,Grants Expenditure,Capital Directorate,The Shared Learning Trust,CAY082545,169559.51,Capital grants - Academy Trust
Department for Education,Core,20/07/2021,Grants Expenditure,Capital Directorate,The Shaw Education Trust,CAY082546,856450.61,Capital grants - Academy Trust
Department for Education,Core,20/07/2021,Grants Expenditure,Capital Directorate,The Sigma Trust,CAY082547,562570.89,Capital grants - Academy Trust
Department for Education,Core,20/07/2021,Grants Expenditure,Capital Directorate,The Skinners' Kent Academy,CAY082638,214035.02,Capital grants - Academy Trust
Department for Education,Core,20/07/2021,Grants Expenditure,Capital Directorate,The Spencer Academies Trust,CAY082548,857264.36,Capital grants - Academy Trust
Department for Education,Core,20/07/2021,Grants Expenditure,Capital Directorate,The STAR Multi Academy Trust,CAY082549,427863.44,Capital grants - Academy Trust
Department for Education,Core,20/07/2021,Grants Expenditure,Capital Directorate,The Ted Wragg Multi Academy Trust,CAY082550,157543.63,Capital grants - Academy Trust
Department for Education,Core,20/07/2021,Grants Expenditure,Capital Directorate,The Tenax Schools Trust,CAY082551,112105.76,Capital grants - Academy Trust
Department for Education,Core,20/07/2021,Grants Expenditure,Capital Directorate,THE THINKING SCHOOLS ACADEMY TRUST,CAY082552,477902.43,Capital grants - Academy Trust
Department for Education,Core,20/07/2021,Grants Expenditure,Capital Directorate,The Three Rivers Learning Trust Limited,CAY082553,184982.42,Capital grants - Academy Trust
Department for Education,Core,20/07/2021,Grants Expenditure,Capital Directorate,The Two Counties Trust,CAY082554,856090.55,Capital grants - Academy Trust
Department for Education,Core,20/07/2021,Grants Expenditure,Capital Directorate,The Wensum Trust,CAY082555,210669.5,Capital grants - Academy Trust
Department for Education,Core,20/07/2021,Grants Expenditure,Capital Directorate,The White Horse Federation,CAY082556,373212.87,Capital grants - Academy Trust
Department for Education,Core,20/07/2021,Grants Expenditure,Capital Directorate,The Yare Education Trust,CAY082557,171319.54,Capital grants - Academy Trust
Department for Education,Core,20/07/2021,Grants Expenditure,Capital Directorate,Thomas Deacon Education Trust,CAY082558,165682.17,Capital grants - Academy Trust
Department for Education,Core,20/07/2021,Grants Expenditure,Capital Directorate,Thomas Telford Multi Academy Trust,CAY082639,180300.67,Capital grants - Academy Trust
Department for Education,Core,20/07/2021,Grants Expenditure,Capital Directorate,Together Learning Trust,CAY082559,72772.6,Capital grants - Academy Trust
Department for Education,Core,20/07/2021,Grants Expenditure,Capital Directorate,Tove Learning Trust,CAY082561,481845.21,Capital grants - Academy Trust
Department for Education,Core,20/07/2021,Grants Expenditure,Capital Directorate,Transform Trust,CAY082562,355894.71,Capital grants - Academy Trust
Department for Education,Core,20/07/2021,Grants Expenditure,Capital Directorate,Trinity Multi Academy Trust,CAY082563,128503.94,Capital grants - Academy Trust
Department for Education,Core,20/07/2021,Grants Expenditure,Capital Directorate,Truro & Penwith Academy Trust,CAY082564,248024.53,Capital grants - Academy Trust
Department for Education,Core,20/07/2021,Grants Expenditure,Capital Directorate,Tudor Grange Academies Trust,CAY082565,619944.5,Capital grants - Academy Trust
Department for Education,Core,20/07/2021,Grants Expenditure,Capital Directorate,Twynham Learning,CAY082566,156341.84,Capital grants - Academy Trust
Department for Education,Core,20/07/2021,Grants Expenditure,Capital Directorate,United Learning Trust,CAY082567,2077770.52,Capital grants - Academy Trust
Department for Education,Core,20/07/2021,Grants Expenditure,Capital Directorate,Unity Schools Partnership,CAY082568,644987.07,Capital grants - Academy Trust
Department for Education,Core,20/07/2021,Grants Expenditure,Capital Directorate,University of Brighton Academies Trust,CAY082569,400510.76,Capital grants - Academy Trust
Department for Education,Core,20/07/2021,Grants Expenditure,Capital Directorate,University of Chichester (Multi) Academy Trust,CAY082570,249888,Capital grants - Academy Trust
Department for Education,Core,20/07/2021,Grants Expenditure,Capital Directorate,University of Wolverhampton MAT,CAY082640,244957.28,Capital grants - Academy Trust
Department for Education,Core,20/07/2021,Grants Expenditure,Capital Directorate,Vale Academy Trust,CAY082571,410814.18,Capital grants - Academy Trust
Department for Education,Core,20/07/2021,Grants Expenditure,Capital Directorate,Valley Invicta Academies Trust,CAY082572,267000.57,Capital grants - Academy Trust
Department for Education,Core,20/07/2021,Grants Expenditure,Capital Directorate,Ventrus Limited,CAY082573,147624.93,Capital grants - Academy Trust
Department for Education,Core,20/07/2021,Grants Expenditure,Capital Directorate,Venturers Trust,CAY082574,109898.82,Capital grants - Academy Trust
Department for Education,Core,20/07/2021,Grants Expenditure,Capital Directorate,Vision Academy Learning Trust,CAY082575,177076.62,Capital grants - Academy Trust
Department for Education,Core,20/07/2021,Grants Expenditure,Capital Directorate,Wade Deacon Trust,CAY082576,201620.47,Capital grants - Academy Trust
Department for Education,Core,20/07/2021,Grants Expenditure,Capital Directorate,Washwood Heath Multi Academy Trust,CAY082577,147969.19,Capital grants - Academy Trust
Department for Education,Core,20/07/2021,Grants Expenditure,Capital Directorate,Watergrove Trust,CAY082578,89063.56,Capital grants - Academy Trust
Department for Education,Core,20/07/2021,Grants Expenditure,Capital Directorate,Waterton Academy Trust,CAY082579,114265.91,Capital grants - Academy Trust
Department for Education,Core,20/07/2021,Grants Expenditure,Capital Directorate,Waveney Valley Academies Trust,CAY082580,240590.04,Capital grants - Academy Trust
Department for Education,Core,20/07/2021,Grants Expenditure,Capital Directorate,Wellspring Academy Trust,CAY082581,297876.82,Capital grants - Academy Trust
Department for Education,Core,20/07/2021,Grants Expenditure,Capital Directorate,Wellsway Multi Academy Trust,CAY082582,209579.59,Capital grants - Academy Trust
Department for Education,Core,20/07/2021,Grants Expenditure,Capital Directorate,Wessex Learning Trust,CAY082583,132652.2,Capital grants - Academy Trust
Department for Education,Core,20/07/2021,Grants Expenditure,Capital Directorate,West Norfolk Academies Trust,CAY082584,380986.82,Capital grants - Academy Trust
Department for Education,Core,20/07/2021,Grants Expenditure,Capital Directorate,Westcountry Schools Trust,CAY082585,536280.99,Capital grants - Academy Trust
Department for Education,Core,20/07/2021,Grants Expenditure,Capital Directorate,Weydon Multi Academy Trust,CAY082586,246291.78,Capital grants - Academy Trust
Department for Education,Core,20/07/2021,Grants Expenditure,Capital Directorate,White Woods Primary Academy Trust,CAY082587,151255.6,Capital grants - Academy Trust
Department for Education,Core,20/07/2021,Grants Expenditure,Capital Directorate,Wickersley Partnership Trust,CAY082588,199677.21,Capital grants - Academy Trust
Department for Education,Core,20/07/2021,Grants Expenditure,Capital Directorate,Wimborne Academy Trust,CAY082589,177983.85,Capital grants - Academy Trust
Department for Education,Core,20/07/2021,Grants Expenditure,Capital Directorate,Windsor Academy Trust,CAY082590,366856.56,Capital grants - Academy Trust
Department for Education,Core,20/07/2021,Grants Expenditure,Capital Directorate,Wise Academies,CAY082591,224517.68,Capital grants - Academy Trust
Department for Education,Core,20/07/2021,Grants Expenditure,Capital Directorate,Woodard Academies Trust,CAY082592,292319.4,Capital grants - Academy Trust
Department for Education,Core,20/07/2021,Grants Expenditure,Capital Directorate,Xavier Catholic Education Trust,CAY082593,390261.12,Capital grants - Academy Trust
Department for Education,Core,20/07/2021,Grants Expenditure,Capital Directorate,Yorkshire & The Humber Co-Operative Learning Trust,CAY082708,398444.28,Capital grants - Academy Trust
Department for Education,Core,20/07/2021,Grants Expenditure,Capital Directorate,Yorkshire Causeway Schools Trust,CAY082594,140093.15,Capital grants - Academy Trust
Department for Education,Core,20/07/2021,Grants Expenditure,Capital Directorate,BARKING & DAGENHAM LONDON BOROUGH COUNCIL,CL037912,580607.66,Capital grants - Local Government
Department for Education,Core,20/07/2021,Grants Expenditure,Capital Directorate,BARNET LONDON BOROUGH COUNCIL,CL037913,398429.14,Capital grants - Local Government
Department for Education,Core,20/07/2021,Grants Expenditure,Capital Directorate,BARNSLEY METROPOLITAN BOROUGH COUNCIL,CL037954,84169.5,Capital grants - Local Government
Department for Education,Core,20/07/2021,Grants Expenditure,Capital Directorate,BATH & NORTH EAST SOMERSET COUNCIL,CL037968,39806.45,Capital grants - Local Government
Department for Education,Core,20/07/2021,Grants Expenditure,Capital Directorate,BEDFORD BOROUGH COUNCIL,CL037983,248821.95,Capital grants - Local Government
Department for Education,Core,20/07/2021,Grants Expenditure,Capital Directorate,BEXLEY LONDON BOROUGH COUNCIL,CL037914,151951.09,Capital grants - Local Government
Department for Education,Core,20/07/2021,Grants Expenditure,Capital Directorate,BIRMINGHAM CITY COUNCIL,CL037932,1509254.33,Capital grants - Local Government
Department for Education,Core,20/07/2021,Grants Expenditure,Capital Directorate,Blackburn with Darwen Borough Council,CL038025,137824.4,Capital grants - Local Government
Department for Education,Core,20/07/2021,Grants Expenditure,Capital Directorate,BLACKPOOL BOROUGH COUNCIL,CL038026,63873.8,Capital grants - Local Government
Department for Education,Core,20/07/2021,Grants Expenditure,Capital Directorate,BOLTON METRO BOROUGH COUNCIL,CL037944,353789.32,Capital grants - Local Government
Department for Education,Core,20/07/2021,Grants Expenditure,Capital Directorate,Bournemouth Christchurch and Poole Council,CL037990,137769.92,Capital grants - Local Government
Department for Education,Core,20/07/2021,Grants Expenditure,Capital Directorate,BRACKNELL FOREST BOROUGH COUNCIL,CL038005,263624.4,Capital grants - Local Government
Department for Education,Core,20/07/2021,Grants Expenditure,Capital Directorate,BRADFORD CITY COUNCIL,CL037958,362738.16,Capital grants - Local Government
Department for Education,Core,20/07/2021,Grants Expenditure,Capital Directorate,BRENT LONDON BOROUGH COUNCIL,CL037915,290437.04,Capital grants - Local Government
Department for Education,Core,20/07/2021,Grants Expenditure,Capital Directorate,BRIGHTON & HOVE CITY COUNCIL,CL037994,541229.74,Capital grants - Local Government
Department for Education,Core,20/07/2021,Grants Expenditure,Capital Directorate,BRISTOL CITY COUNCIL,CL037969,231631.78,Capital grants - Local Government
Department for Education,Core,20/07/2021,Grants Expenditure,Capital Directorate,BROMLEY LONDON BOROUGH COUNCIL,CL037916,41682.24,Capital grants - Local Government
Department for Education,Core,20/07/2021,Grants Expenditure,Capital Directorate,Buckinghamshire Council,CL037985,774462.99,Capital grants - Local Government
Department for Education,Core,20/07/2021,Grants Expenditure,Capital Directorate,BURY METRO BOROUGH COUNCIL,CL037945,211041.3,Capital grants - Local Government
Department for Education,Core,20/07/2021,Grants Expenditure,Capital Directorate,CALDERDALE METRO BOROUGH COUNCIL,CL037959,194730.22,Capital grants - Local Government
Department for Education,Core,20/07/2021,Grants Expenditure,Capital Directorate,CAMBRIDGESHIRE COUNTY COUNCIL,CL038011,425375.22,Capital grants - Local Government
Department for Education,Core,20/07/2021,Grants Expenditure,Capital Directorate,CAMDEN LONDON BOROUGH COUNCIL,CL037900,227959.94,Capital grants - Local Government
Department for Education,Core,20/07/2021,Grants Expenditure,Capital Directorate,CENTRAL BEDFORDSHIRE COUNCIL,CL037984,295030.8,Capital grants - Local Government
Department for Education,Core,20/07/2021,Grants Expenditure,Capital Directorate,Cheshire East Council,CL038031,230091.28,Capital grants - Local Government
Department for Education,Core,20/07/2021,Grants Expenditure,Capital Directorate,CHESHIRE WEST & CHESTER COUNCIL,CL038032,514262.77,Capital grants - Local Government
Department for Education,Core,20/07/2021,Grants Expenditure,Capital Directorate,CITY OF YORK COUNCIL,CL037981,161229.69,Capital grants - Local Government
Department for Education,Core,20/07/2021,Grants Expenditure,Capital Directorate,CORNWALL COUNCIL,CL038033,229088.94,Capital grants - Local Government
Department for Education,Core,20/07/2021,Grants Expenditure,Capital Directorate,COVENTRY CITY COUNCIL,CL037933,420968.8,Capital grants - Local Government
Department for Education,Core,20/07/2021,Grants Expenditure,Capital Directorate,CROYDON LONDON BOROUGH COUNCIL,CL037917,357174.11,Capital grants - Local Government
Department for Education,Core,20/07/2021,Grants Expenditure,Capital Directorate,CUMBRIA COUNTY COUNCIL,CL038034,587909.81,Capital grants - Local Government
Department for Education,Core,20/07/2021,Grants Expenditure,Capital Directorate,DERBY CITY COUNCIL,CL037988,343309.17,Capital grants - Local Government
Department for Education,Core,20/07/2021,Grants Expenditure,Capital Directorate,DERBYSHIRE COUNTY COUNCIL,CL037987,1181767.09,Capital grants - Local Government
Department for Education,Core,20/07/2021,Grants Expenditure,Capital Directorate,DEVON COUNTY COUNCIL,CL038015,505588.07,Capital grants - Local Government
Department for Education,Core,20/07/2021,Grants Expenditure,Capital Directorate,DONCASTER METRO BOROUGH COUNCIL,CL037955,120547.48,Capital grants - Local Government
Department for Education,Core,20/07/2021,Grants Expenditure,Capital Directorate,DORSET COUNCIL,CL037989,323222.72,Capital grants - Local Government
Department for Education,Core,20/07/2021,Grants Expenditure,Capital Directorate,DUDLEY METRO BOROUGH COUNCIL,CL037934,458474.06,Capital grants - Local Government
Department for Education,Core,20/07/2021,Grants Expenditure,Capital Directorate,DURHAM COUNTY COUNCIL,CL037991,811277.24,Capital grants - Local Government
Department for Education,Core,20/07/2021,Grants Expenditure,Capital Directorate,EALING LONDON BOROUGH COUNCIL,CL037918,668901.39,Capital grants - Local Government
Department for Education,Core,20/07/2021,Grants Expenditure,Capital Directorate,EAST RIDING OF YORKSHIRE COUNCIL,CL037977,461419.66,Capital grants - Local Government
Department for Education,Core,20/07/2021,Grants Expenditure,Capital Directorate,EAST SUSSEX COUNTY COUNCIL,CL037993,562051.22,Capital grants - Local Government
Department for Education,Core,20/07/2021,Grants Expenditure,Capital Directorate,ENFIELD LONDON BOROUGH COUNCIL,CL037919,1097321.37,Capital grants - Local Government
Department for Education,Core,20/07/2021,Grants Expenditure,Capital Directorate,ESSEX COUNTY COUNCIL,CL038018,852281.67,Capital grants - Local Government
Department for Education,Core,20/07/2021,Grants Expenditure,Capital Directorate,GATESHEAD COUNCIL,CL037963,209391.11,Capital grants - Local Government
Department for Education,Core,20/07/2021,Grants Expenditure,Capital Directorate,Gloucestershire County Council,CL038035,511666.78,Capital grants - Local Government
Department for Education,Core,20/07/2021,Grants Expenditure,Capital Directorate,GREENWICH LONDON BOROUGH COUNCIL,CL037901,336724.36,Capital grants - Local Government
Department for Education,Core,20/07/2021,Grants Expenditure,Capital Directorate,HACKNEY LONDON BOROUGH COUNCIL,CL037902,395905.19,Capital grants - Local Government
Department for Education,Core,20/07/2021,Grants Expenditure,Capital Directorate,HALTON BOROUGH COUNCIL,CL038013,100427.43,Capital grants - Local Government
Department for Education,Core,20/07/2021,Grants Expenditure,Capital Directorate,HAMMERSMITH & FULHAM LONDON BOROUGH COUNCIL,CL037903,167516.78,Capital grants - Local Government
Department for Education,Core,20/07/2021,Grants Expenditure,Capital Directorate,HAMPSHIRE COUNTY COUNCIL,CL037995,2598948.78,Capital grants - Local Government
Department for Education,Core,20/07/2021,Grants Expenditure,Capital Directorate,HARINGEY LONDON BOROUGH COUNCIL,CL037920,514861.3,Capital grants - Local Government
Department for Education,Core,20/07/2021,Grants Expenditure,Capital Directorate,HARROW LONDON BOROUGH COUNCIL,CL037921,311160.43,Capital grants - Local Government
Department for Education,Core,20/07/2021,Grants Expenditure,Capital Directorate,HARTLEPOOL BOROUGH COUNCIL,CL037972,95514.96,Capital grants - Local Government
Department for Education,Core,20/07/2021,Grants Expenditure,Capital Directorate,HAVERING LONDON BOROUGH COUNCIL,CL037922,293773.23,Capital grants - Local Government
Department for Education,Core,20/07/2021,Grants Expenditure,Capital Directorate,HEREFORDSHIRE COUNCIL,CL038020,139975.11,Capital grants - Local Government
Department for Education,Core,20/07/2021,Grants Expenditure,Capital Directorate,HERTFORDSHIRE COUNTY COUNCIL,CL038036,1793430.33,Capital grants - Local Government
Department for Education,Core,20/07/2021,Grants Expenditure,Capital Directorate,HILLINGDON LONDON BOROUGH COUNCIL,CL037923,387443.53,Capital grants - Local Government
Department for Education,Core,20/07/2021,Grants Expenditure,Capital Directorate,HOUNSLOW LONDON BOROUGH COUNCIL,CL037924,486099.37,Capital grants - Local Government
Department for Education,Core,20/07/2021,Grants Expenditure,Capital Directorate,ISLE OF WIGHT COUNCIL,CL038037,242003.74,Capital grants - Local Government
Department for Education,Core,20/07/2021,Grants Expenditure,Capital Directorate,ISLINGTON LONDON BOROUGH COUNCIL,CL037904,232272.66,Capital grants - Local Government
Department for Education,Core,20/07/2021,Grants Expenditure,Capital Directorate,KENT COUNTY COUNCIL,CL038022,1710524.96,Capital grants - Local Government
Department for Education,Core,20/07/2021,Grants Expenditure,Capital Directorate,KIRKLEES METRO COUNCIL,CL037960,397281.02,Capital grants - Local Government
Department for Education,Core,20/07/2021,Grants Expenditure,Capital Directorate,KNOWSLEY METRO BOROUGH COUNCIL,CL037939,88523.49,Capital grants - Local Government
Department for Education,Core,20/07/2021,Grants Expenditure,Capital Directorate,LAMBETH LONDON BOROUGH COUNCIL,CL037906,376720.08,Capital grants - Local Government
Department for Education,Core,20/07/2021,Grants Expenditure,Capital Directorate,LANCASHIRE COUNTY COUNCIL,CL038024,1561466.4,Capital grants - Local Government
Department for Education,Core,20/07/2021,Grants Expenditure,Capital Directorate,LEEDS CITY COUNCIL,CL037961,769274.53,Capital grants - Local Government
Department for Education,Core,20/07/2021,Grants Expenditure,Capital Directorate,LEICESTER CITY COUNCIL,CL037999,756930.47,Capital grants - Local Government
Department for Education,Core,20/07/2021,Grants Expenditure,Capital Directorate,LEICESTERSHIRE COUNTY COUNCIL,CL037998,454526.23,Capital grants - Local Government
Department for Education,Core,20/07/2021,Grants Expenditure,Capital Directorate,LEWISHAM LONDON BOROUGH COUNCIL,CL037907,463618.15,Capital grants - Local Government
Department for Education,Core,20/07/2021,Grants Expenditure,Capital Directorate,LINCOLNSHIRE COUNTY COUNCIL,CL038038,549440.71,Capital grants - Local Government
Department for Education,Core,20/07/2021,Grants Expenditure,Capital Directorate,LIVERPOOL CITY COUNCIL,CL037940,405571.81,Capital grants - Local Government
Department for Education,Core,20/07/2021,Grants Expenditure,Capital Directorate,London Borough of Sutton,CL037930,112425.45,Capital grants - Local Government
Department for Education,Core,20/07/2021,Grants Expenditure,Capital Directorate,London Borough of Tower Hamlets,CL037909,529648.34,Capital grants - Local Government
Department for Education,Core,20/07/2021,Grants Expenditure,Capital Directorate,LUTON BOROUGH COUNCIL,CL037982,400530.51,Capital grants - Local Government
Department for Education,Core,20/07/2021,Grants Expenditure,Capital Directorate,MANCHESTER CITY COUNCIL,CL037946,442835.91,Capital grants - Local Government
Department for Education,Core,20/07/2021,Grants Expenditure,Capital Directorate,MEDWAY COUNCIL,CL038023,100210.08,Capital grants - Local Government
Department for Education,Core,20/07/2021,Grants Expenditure,Capital Directorate,MERTON BOROUGH COUNCIL,CL037926,275162.89,Capital grants - Local Government
Department for Education,Core,20/07/2021,Grants Expenditure,Capital Directorate,Middlesbrough Council,CL037973,72686.03,Capital grants - Local Government
Department for Education,Core,20/07/2021,Grants Expenditure,Capital Directorate,MILTON KEYNES COUNCIL,CL037986,331756.79,Capital grants - Local Government
Department for Education,Core,20/07/2021,Grants Expenditure,Capital Directorate,NEWCASTLE CITY COUNCIL,CL037964,243188.19,Capital grants - Local Government
Department for Education,Core,20/07/2021,Grants Expenditure,Capital Directorate,NEWHAM LONDON BOROUGH COUNCIL,CL037927,462393.62,Capital grants - Local Government
Department for Education,Core,20/07/2021,Grants Expenditure,Capital Directorate,NORFOLK COUNTY COUNCIL,CL038039,587598.77,Capital grants - Local Government
Department for Education,Core,20/07/2021,Grants Expenditure,Capital Directorate,North East Lincolnshire Council,CL037978,43312.56,Capital grants - Local Government
Department for Education,Core,20/07/2021,Grants Expenditure,Capital Directorate,NORTH LINCOLNSHIRE COUNCIL,CL037979,219142.08,Capital grants - Local Government
Department for Education,Core,20/07/2021,Grants Expenditure,Capital Directorate,North Northamptonshire Council,CL038047,215062.65,Capital grants - Local Government
Department for Education,Core,20/07/2021,Grants Expenditure,Capital Directorate,NORTH SOMERSET COUNCIL,CL037970,41171.46,Capital grants - Local Government
Department for Education,Core,20/07/2021,Grants Expenditure,Capital Directorate,NORTH TYNESIDE METRO BOROUGH COUNCIL,CL037965,432897.58,Capital grants - Local Government
Department for Education,Core,20/07/2021,Grants Expenditure,Capital Directorate,NORTH YORKSHIRE COUNTY COUNCIL,CL037980,1087047.62,Capital grants - Local Government
Department for Education,Core,20/07/2021,Grants Expenditure,Capital Directorate,NORTHUMBERLAND COUNTY COUNCIL,CL038040,866931.53,Capital grants - Local Government
Department for Education,Core,20/07/2021,Grants Expenditure,Capital Directorate,Nottingham City Council,CL038028,287122.56,Capital grants - Local Government
Department for Education,Core,20/07/2021,Grants Expenditure,Capital Directorate,NOTTINGHAMSHIRE COUNTY COUNCIL,CL038027,1052172.55,Capital grants - Local Government
Department for Education,Core,20/07/2021,Grants Expenditure,Capital Directorate,OLDHAM METRO BOROUGH COUNCIL,CL037947,214658.94,Capital grants - Local Government
Department for Education,Core,20/07/2021,Grants Expenditure,Capital Directorate,Oxfordshire County Council,CL038041,509908.37,Capital grants - Local Government
Department for Education,Core,20/07/2021,Grants Expenditure,Capital Directorate,PETERBOROUGH CITY COUNCIL,CL038012,112799.27,Capital grants - Local Government
Department for Education,Core,20/07/2021,Grants Expenditure,Capital Directorate,PLYMOUTH CITY COUNCIL,CL038016,74424.23,Capital grants - Local Government
Department for Education,Core,20/07/2021,Grants Expenditure,Capital Directorate,PORTSMOUTH CITY COUNCIL,CL037996,97026.5,Capital grants - Local Government
Department for Education,Core,20/07/2021,Grants Expenditure,Capital Directorate,Reading Borough Council,CL038008,243099.75,Capital grants - Local Government
Department for Education,Core,20/07/2021,Grants Expenditure,Capital Directorate,REDBRIDGE LONDON BOROUGH COUNCIL,CL037928,809820.2,Capital grants - Local Government
Department for Education,Core,20/07/2021,Grants Expenditure,Capital Directorate,REDCAR & CLEVELAND BOROUGH COUNCIL,CL037974,50697.77,Capital grants - Local Government
Department for Education,Core,20/07/2021,Grants Expenditure,Capital Directorate,RICHMOND UPON THAMES LONDON BOROUGH COUNCIL,CL037929,139857.87,Capital grants - Local Government
Department for Education,Core,20/07/2021,Grants Expenditure,Capital Directorate,ROCHDALE BOROUGH COUNCIL,CL037948,327882.46,Capital grants - Local Government
Department for Education,Core,20/07/2021,Grants Expenditure,Capital Directorate,ROTHERHAM BOROUGH COUNCIL,CL037956,132820.35,Capital grants - Local Government
Department for Education,Core,20/07/2021,Grants Expenditure,Capital Directorate,ROYAL BOROUGH OF KENSINGTON & CHELSEA COUNCIL,CL037905,79815.95,Capital grants - Local Government
Department for Education,Core,20/07/2021,Grants Expenditure,Capital Directorate,ROYAL BOROUGH OF KINGSTON UPON THAMES COUNCIL,CL037925,103035.55,Capital grants - Local Government
Department for Education,Core,20/07/2021,Grants Expenditure,Capital Directorate,ROYAL BOROUGH OF WINDSOR & MAIDENHEAD,CL038006,156061.98,Capital grants - Local Government
Department for Education,Core,20/07/2021,Grants Expenditure,Capital Directorate,Salford City Council,CL037949,215833.67,Capital grants - Local Government
Department for Education,Core,20/07/2021,Grants Expenditure,Capital Directorate,Sandwell Metro Borough Council,CL037935,594018.03,Capital grants - Local Government
Department for Education,Core,20/07/2021,Grants Expenditure,Capital Directorate,Sefton Metropolitan Borough Council,CL037942,244671.4,Capital grants - Local Government
Department for Education,Core,20/07/2021,Grants Expenditure,Capital Directorate,SHEFFIELD CITY COUNCIL,CL037957,400495.51,Capital grants - Local Government
Department for Education,Core,20/07/2021,Grants Expenditure,Capital Directorate,SHROPSHIRE COUNCIL,CL038029,236574.54,Capital grants - Local Government
Department for Education,Core,20/07/2021,Grants Expenditure,Capital Directorate,SLOUGH BOROUGH COUNCIL,CL038009,86212.67,Capital grants - Local Government
Department for Education,Core,20/07/2021,Grants Expenditure,Capital Directorate,SOLIHULL METRO BOROUGH COUNCIL,CL037936,232011.74,Capital grants - Local Government
Department for Education,Core,20/07/2021,Grants Expenditure,Capital Directorate,SOMERSET COUNTY COUNCIL,CL038042,369657.06,Capital grants - Local Government
Department for Education,Core,20/07/2021,Grants Expenditure,Capital Directorate,SOUTH GLOUCESTERSHIRE COUNCIL,CL037971,279475.82,Capital grants - Local Government
Department for Education,Core,20/07/2021,Grants Expenditure,Capital Directorate,SOUTH TYNESIDE COUNCIL,CL037966,184964.85,Capital grants - Local Government
Department for Education,Core,20/07/2021,Grants Expenditure,Capital Directorate,SOUTHAMPTON CITY COUNCIL,CL037997,478480.22,Capital grants - Local Government
Department for Education,Core,20/07/2021,Grants Expenditure,Capital Directorate,SOUTHEND ON SEA BOROUGH COUNCIL,CL038019,76074.66,Capital grants - Local Government
Department for Education,Core,20/07/2021,Grants Expenditure,Capital Directorate,SOUTHWARK LONDON BOROUGH COUNCIL,CL037908,349039.36,Capital grants - Local Government
Department for Education,Core,20/07/2021,Grants Expenditure,Capital Directorate,ST HELENS METRO BOROUGH COUNCIL,CL037941,199536.66,Capital grants - Local Government
Department for Education,Core,20/07/2021,Grants Expenditure,Capital Directorate,Staffordshire County Council,CL038001,1065138.02,Capital grants - Local Government
Department for Education,Core,20/07/2021,Grants Expenditure,Capital Directorate,STOCKPORT METRO BOROUGH COUNCIL,CL037950,497397.84,Capital grants - Local Government
Department for Education,Core,20/07/2021,Grants Expenditure,Capital Directorate,STOCKTON ON TEES BOROUGH COUNCIL,CL037975,147207.56,Capital grants - Local Government
Department for Education,Core,20/07/2021,Grants Expenditure,Capital Directorate,STOKE ON TRENT CITY COUNCIL,CL038002,77814.57,Capital grants - Local Government
Department for Education,Core,20/07/2021,Grants Expenditure,Capital Directorate,SUFFOLK COUNTY COUNCIL,CL038043,629405.04,Capital grants - Local Government
Department for Education,Core,20/07/2021,Grants Expenditure,Capital Directorate,SUNDERLAND CITY METRO BOROUGH COUNCIL,CL037967,181804.81,Capital grants - Local Government
Department for Education,Core,20/07/2021,Grants Expenditure,Capital Directorate,SURREY COUNTY COUNCIL,CL038044,977652.35,Capital grants - Local Government
Department for Education,Core,20/07/2021,Grants Expenditure,Capital Directorate,SWINDON BOROUGH COUNCIL,CL038004,103424.77,Capital grants - Local Government
Department for Education,Core,20/07/2021,Grants Expenditure,Capital Directorate,TAMESIDE METRO BOROUGH COUNCIL,CL037951,147556.99,Capital grants - Local Government
Department for Education,Core,20/07/2021,Grants Expenditure,Capital Directorate,Telford and Wrekin Council,CL038030,317285.79,Capital grants - Local Government
Department for Education,Core,20/07/2021,Grants Expenditure,Capital Directorate,TORBAY COUNCIL,CL038017,46431.94,Capital grants - Local Government
Department for Education,Core,20/07/2021,Grants Expenditure,Capital Directorate,Trafford Borough Council,CL037952,249442.66,Capital grants - Local Government
Department for Education,Core,20/07/2021,Grants Expenditure,Capital Directorate,Wakefield City Council,CL037962,302178.34,Capital grants - Local Government
Department for Education,Core,20/07/2021,Grants Expenditure,Capital Directorate,WALSALL METRO BOROUGH COUNCIL,CL037937,436686.16,Capital grants - Local Government
Department for Education,Core,20/07/2021,Grants Expenditure,Capital Directorate,WALTHAM FOREST LONDON BOROUGH COUNCIL,CL037931,340957.79,Capital grants - Local Government
Department for Education,Core,20/07/2021,Grants Expenditure,Capital Directorate,Wandsworth Borough Council,CL037910,228732.35,Capital grants - Local Government
Department for Education,Core,20/07/2021,Grants Expenditure,Capital Directorate,WARRINGTON BOROUGH COUNCIL,CL038014,97528.63,Capital grants - Local Government
Department for Education,Core,20/07/2021,Grants Expenditure,Capital Directorate,WARWICKSHIRE COUNTY COUNCIL,CL038045,596463.62,Capital grants - Local Government
Department for Education,Core,20/07/2021,Grants Expenditure,Capital Directorate,WEST BERKSHIRE COUNCIL,CL038007,295930.85,Capital grants - Local Government
Department for Education,Core,20/07/2021,Grants Expenditure,Capital Directorate,West Northamptonshire Council,CL038048,181060.72,Capital grants - Local Government
Department for Education,Core,20/07/2021,Grants Expenditure,Capital Directorate,West Sussex County Council,CL038046,994411.65,Capital grants - Local Government
Department for Education,Core,20/07/2021,Grants Expenditure,Capital Directorate,WESTMINSTER CITY COUNCIL,CL037911,47882.9,Capital grants - Local Government
Department for Education,Core,20/07/2021,Grants Expenditure,Capital Directorate,Wigan Metropolitan Borough Council,CL037953,296975.32,Capital grants - Local Government
Department for Education,Core,20/07/2021,Grants Expenditure,Capital Directorate,WILTSHIRE COUNTY COUNCIL,CL038003,322705.97,Capital grants - Local Government
Department for Education,Core,20/07/2021,Grants Expenditure,Capital Directorate,WIRRAL METRO BOROUGH COUNCIL,CL037943,413409.35,Capital grants - Local Government
Department for Education,Core,20/07/2021,Grants Expenditure,Capital Directorate,WOKINGHAM COUNCIL,CL038010,279348.32,Capital grants - Local Government
Department for Education,Core,20/07/2021,Grants Expenditure,Capital Directorate,WOLVERHAMPTON CITY COUNCIL,CL037938,347886.07,Capital grants - Local Government
Department for Education,Core,20/07/2021,Grants Expenditure,Capital Directorate,Worcestershire County Council,CL038021,448895.05,Capital grants - Local Government
Department for Education,Core,20/07/2021,Grants Expenditure,Capital Directorate,Archdiocese of Liverpool,CV012499,2954459.93,Capital grants - Local Government
Department for Education,Core,20/07/2021,Grants Expenditure,Capital Directorate,BATH & WELLS DIOCESAN BOARD OF FINANCE,CV012501,163646.16,Capital grants - Local Government
Department for Education,Core,20/07/2021,Grants Expenditure,Capital Directorate,BIRMINGHAM CHURCH SCHOOLS FUND,CV012502,202264.73,Capital grants - Local Government
Department for Education,Core,20/07/2021,Grants Expenditure,Capital Directorate,BIRMINGHAM RC DIOCESAN TRUSTEES REG. DEV,CV012497,1501841.29,Capital grants - Local Government
Department for Education,Core,20/07/2021,Grants Expenditure,Capital Directorate,BLACKBURN DIOCESAN BOARD OF EDUCATION BA,CV012503,1195571.29,Capital grants - Local Government
Department for Education,Core,20/07/2021,Grants Expenditure,Capital Directorate,BRENTWOOD ROMAN CATHOLIC DIOCESE TRUSTEE,CV012504,1027451.7,Capital grants - Local Government
Department for Education,Core,20/07/2021,Grants Expenditure,Capital Directorate,BRISTOL DIOCESAN BD OF FINANCE EDUC. FDN,CV012505,114169.59,Capital grants - Local Government
Department for Education,Core,20/07/2021,Grants Expenditure,Capital Directorate,CANTERBURY DIOCESAN BOARD OF EDUCATION,CV012506,157190.79,Capital grants - Local Government
Department for Education,Core,20/07/2021,Grants Expenditure,Capital Directorate,CCDTRClifton Catholic Diocesan Trustees Registered,CV012511,428554.26,Capital grants - Local Government
Department for Education,Core,20/07/2021,Grants Expenditure,Capital Directorate,CHELMSFORD DIOCESAN BOARD OF FINANCE,CV012508,398847.68,Capital grants - Local Government
Department for Education,Core,20/07/2021,Grants Expenditure,Capital Directorate,CHESTER DIOCESAN BOARD OF EDUCATION,CV012509,443396.61,Capital grants - Local Government
Department for Education,Core,20/07/2021,Grants Expenditure,Capital Directorate,CHICHESTER DIOCESAN BOARD OF FINANCE 11,CV012510,468196,Capital grants - Local Government
Department for Education,Core,20/07/2021,Grants Expenditure,Capital Directorate,COVENTRY DIOCESAN BOARD OF EDUCATION,CV012529,504680.04,Capital grants - Local Government
Department for Education,Core,20/07/2021,Grants Expenditure,Capital Directorate,DIOCESAN (BARCHESTER) SCHEME,CV012507,168068.46,Capital grants - Local Government
Department for Education,Core,20/07/2021,Grants Expenditure,Capital Directorate,Diocese of ARUNDEL AND BRIGHTON,CV012500,742732.82,Capital grants - Local Government
Department for Education,Core,20/07/2021,Grants Expenditure,Capital Directorate,DIOCESE OF HALLAM SCHOOLS PAYMENT ACCOUNT,CV012515,168517.61,Capital grants - Local Government
Department for Education,Core,20/07/2021,Grants Expenditure,Capital Directorate,Diocese of Portsmouth,CV012536,761366.64,Capital grants - Local Government
Department for Education,Core,20/07/2021,Grants Expenditure,Capital Directorate,Diocese of Salford,CV012538,2734323.91,Capital grants - Local Government
Department for Education,Core,20/07/2021,Grants Expenditure,Capital Directorate,ELY DIOCESAN BOARD OF EDUCATION BARCHEST,CV012512,141597.21,Capital grants - Local Government
Department for Education,Core,20/07/2021,Grants Expenditure,Capital Directorate,EXETER DIOCESAN BOARD OF FINANCE CHURCH,CV012531,358905.31,Capital grants - Local Government
Department for Education,Core,20/07/2021,Grants Expenditure,Capital Directorate,GLOUCESTER DIOCESAN BOARD OF FINANCE,CV012513,212502.62,Capital grants - Local Government
Department for Education,Core,20/07/2021,Grants Expenditure,Capital Directorate,GUILDFORD DIOCESAN BOARD OF FINANCE,CV012514,406610.45,Capital grants - Local Government
Department for Education,Core,20/07/2021,Grants Expenditure,Capital Directorate,HEREFORD DIOCESAN BOARD OF FINANCE,CV012516,209575.21,Capital grants - Local Government
Department for Education,Core,20/07/2021,Grants Expenditure,Capital Directorate,LANCASTER SCHOOL BUILDING FUND ACCOUNT,CV012518,847167.91,Capital grants - Local Government
Department for Education,Core,20/07/2021,Grants Expenditure,Capital Directorate,Leeds Diocesan Board of Finance,CV012539,558724.13,Capital grants - Local Government
Department for Education,Core,20/07/2021,Grants Expenditure,Capital Directorate,LICHFIELD DIOCESAN EDUCATION COUNCIL BAR,CV012519,332061.81,Capital grants - Local Government
Department for Education,Core,20/07/2021,Grants Expenditure,Capital Directorate,Lincoln Diocesan Board of Education,CV012533,235327.65,Capital grants - Local Government
Department for Education,Core,20/07/2021,Grants Expenditure,Capital Directorate,LIVERPOOL DIOCESAN BOARD OF FINANCE ( ST,CV012520,484625.75,Capital grants - Local Government
Department for Education,Core,20/07/2021,Grants Expenditure,Capital Directorate,LONDON DIOCESE BOARD SCHOOLS,CV012521,1537384.81,Capital grants - Local Government
Department for Education,Core,20/07/2021,Grants Expenditure,Capital Directorate,MANCHESTER DIOCESAN BOARD OF EDUCATION,CV012522,819400.86,Capital grants - Local Government
Department for Education,Core,20/07/2021,Grants Expenditure,Capital Directorate,Newcastle Diocesan Education Board,CV012530,251817.24,Capital grants - Local Government
Department for Education,Core,20/07/2021,Grants Expenditure,Capital Directorate,NORTHAMPTON ROMAN CATHOLIC DIOCESE TRUST,CV012523,475776.27,Capital grants - Local Government
Department for Education,Core,20/07/2021,Grants Expenditure,Capital Directorate,NORWICH DIOCESAN BOARD OF FINANCE LIMITE,CV012534,295569.44,Capital grants - Local Government
Department for Education,Core,20/07/2021,Grants Expenditure,Capital Directorate,OXFORD DIOCESAN COUNCIL OF EDUCATION AND,CV012535,808815.44,Capital grants - Local Government
Department for Education,Core,20/07/2021,Grants Expenditure,Capital Directorate,PORTSMOUTH DIOCESAN CHURCH SCHOOL GOVERNORS FUND,CV012537,329677.89,Capital grants - Local Government
Department for Education,Core,20/07/2021,Grants Expenditure,Capital Directorate,RC ARCHDIOCESE OF SOUTHWARK,CV012541,1946273.65,Capital grants - Local Government
Department for Education,Core,20/07/2021,Grants Expenditure,Capital Directorate,RCD HEXHAM & NEWCASTLE,CV012517,711117.13,Capital grants - Local Government
Department for Education,Core,20/07/2021,Grants Expenditure,Capital Directorate,ROCHESTER DIOCESAN BOARD OF EDUCATION,CV012524,325923.5,Capital grants - Local Government
Department for Education,Core,20/07/2021,Grants Expenditure,Capital Directorate,SALISBURY DIOCESAN BOARD OF EDUCATION,CV012525,362895.33,Capital grants - Local Government
Department for Education,Core,20/07/2021,Grants Expenditure,Capital Directorate,SHREWSBURY DIOCESAN SCHOOLS ACCOUNT,CV012540,1036688.25,Capital grants - Local Government
Department for Education,Core,20/07/2021,Grants Expenditure,Capital Directorate,SOUTHWARK DIOCESAN EDUCATION NO 2 A/C,CV012526,1326155.39,Capital grants - Local Government
Department for Education,Core,20/07/2021,Grants Expenditure,Capital Directorate,ST ALBANS DIOCESAN BOARD OF FINANCE,CV012527,561696.6,Capital grants - Local Government
Department for Education,Core,20/07/2021,Grants Expenditure,Capital Directorate,TRUSTEES OF THE DIOCESE OF LEEDS,CV012532,778095.66,Capital grants - Local Government
Department for Education,Core,20/07/2021,Grants Expenditure,Capital Directorate,WDBF EDUCATION GENERAL,CV012528,121813.27,Capital grants - Local Government
Department for Education,Core,20/07/2021,Grants Expenditure,Capital Directorate,WESTMINSTER RC DIOCESE TRUST SBF PROJECTS,CV012498,2998065.94,Capital grants - Local Government
Department for Education,Core,20/07/2021,Grants Expenditure,Capital Directorate,BARKING & DAGENHAM LONDON BOROUGH COUNCIL,CL038194,2159812.71,Capital grants - Local Government
Department for Education,Core,20/07/2021,Grants Expenditure,Capital Directorate,BARNET LONDON BOROUGH COUNCIL,CL038195,2928936.6,Capital grants - Local Government
Department for Education,Core,20/07/2021,Grants Expenditure,Capital Directorate,BARNSLEY METROPOLITAN BOROUGH COUNCIL,CL038236,1460729.06,Capital grants - Local Government
Department for Education,Core,20/07/2021,Grants Expenditure,Capital Directorate,BATH & NORTH EAST SOMERSET COUNCIL,CL038251,726954.52,Capital grants - Local Government
Department for Education,Core,20/07/2021,Grants Expenditure,Capital Directorate,BEDFORD BOROUGH COUNCIL,CL038266,517417.54,Capital grants - Local Government
Department for Education,Core,20/07/2021,Grants Expenditure,Capital Directorate,BEXLEY LONDON BOROUGH COUNCIL,CL038196,956587.48,Capital grants - Local Government
Department for Education,Core,20/07/2021,Grants Expenditure,Capital Directorate,BIRMINGHAM CITY COUNCIL,CL038214,6500323.78,Capital grants - Local Government
Department for Education,Core,20/07/2021,Grants Expenditure,Capital Directorate,Blackburn with Darwen Borough Council,CL038309,500000,Capital grants - Local Government
Department for Education,Core,20/07/2021,Grants Expenditure,Capital Directorate,BLACKPOOL BOROUGH COUNCIL,CL038310,500000,Capital grants - Local Government
Department for Education,Core,20/07/2021,Grants Expenditure,Capital Directorate,BOLTON METRO BOROUGH COUNCIL,CL038226,1327440.51,Capital grants - Local Government
Department for Education,Core,20/07/2021,Grants Expenditure,Capital Directorate,Bournemouth Christchurch and Poole Council,CL038273,2365961.51,Capital grants - Local Government
Department for Education,Core,20/07/2021,Grants Expenditure,Capital Directorate,BRACKNELL FOREST BOROUGH COUNCIL,CL038288,500000,Capital grants - Local Government
Department for Education,Core,20/07/2021,Grants Expenditure,Capital Directorate,BRADFORD CITY COUNCIL,CL038240,2144168.48,Capital grants - Local Government
Department for Education,Core,20/07/2021,Grants Expenditure,Capital Directorate,BRENT LONDON BOROUGH COUNCIL,CL038197,1923257.38,Capital grants - Local Government
Department for Education,Core,20/07/2021,Grants Expenditure,Capital Directorate,BRIGHTON & HOVE CITY COUNCIL,CL038277,1029704.8,Capital grants - Local Government
Department for Education,Core,20/07/2021,Grants Expenditure,Capital Directorate,BRISTOL CITY COUNCIL,CL038252,1840832.33,Capital grants - Local Government
Department for Education,Core,20/07/2021,Grants Expenditure,Capital Directorate,BROMLEY LONDON BOROUGH COUNCIL,CL038198,2450780.28,Capital grants - Local Government
Department for Education,Core,20/07/2021,Grants Expenditure,Capital Directorate,Buckinghamshire Council,CL038268,3555125.39,Capital grants - Local Government
Department for Education,Core,20/07/2021,Grants Expenditure,Capital Directorate,BURY METRO BOROUGH COUNCIL,CL038227,590432.66,Capital grants - Local Government
Department for Education,Core,20/07/2021,Grants Expenditure,Capital Directorate,CALDERDALE METRO BOROUGH COUNCIL,CL038241,551745.88,Capital grants - Local Government
Department for Education,Core,20/07/2021,Grants Expenditure,Capital Directorate,CAMBRIDGESHIRE COUNTY COUNCIL,CL038294,2709339.06,Capital grants - Local Government
Department for Education,Core,20/07/2021,Grants Expenditure,Capital Directorate,CAMDEN LONDON BOROUGH COUNCIL,CL038182,2659040.41,Capital grants - Local Government
Department for Education,Core,20/07/2021,Grants Expenditure,Capital Directorate,CENTRAL BEDFORDSHIRE COUNCIL,CL038267,1940603.89,Capital grants - Local Government
Department for Education,Core,20/07/2021,Grants Expenditure,Capital Directorate,Cheshire East Council,CL038315,1263815.33,Capital grants - Local Government
Department for Education,Core,20/07/2021,Grants Expenditure,Capital Directorate,CHESHIRE WEST & CHESTER COUNCIL,CL038316,1079140.93,Capital grants - Local Government
Department for Education,Core,20/07/2021,Grants Expenditure,Capital Directorate,CITY OF YORK COUNCIL,CL038264,627439.06,Capital grants - Local Government
Department for Education,Core,20/07/2021,Grants Expenditure,Capital Directorate,CORNWALL COUNCIL,CL038317,2442128.57,Capital grants - Local Government
Department for Education,Core,20/07/2021,Grants Expenditure,Capital Directorate,COUNCIL OF ISLES OF SCILLY,CL038250,500000,Capital grants - Local Government
Department for Education,Core,20/07/2021,Grants Expenditure,Capital Directorate,COVENTRY CITY COUNCIL,CL038215,2426212.34,Capital grants - Local Government
Department for Education,Core,20/07/2021,Grants Expenditure,Capital Directorate,CROYDON LONDON BOROUGH COUNCIL,CL038199,1583319.34,Capital grants - Local Government
Department for Education,Core,20/07/2021,Grants Expenditure,Capital Directorate,CUMBRIA COUNTY COUNCIL,CL038318,753286.89,Capital grants - Local Government
Department for Education,Core,20/07/2021,Grants Expenditure,Capital Directorate,DARLINGTON BOROUGH COUNCIL,CL038275,500000,Capital grants - Local Government
Department for Education,Core,20/07/2021,Grants Expenditure,Capital Directorate,DERBY CITY COUNCIL,CL038271,1565260.46,Capital grants - Local Government
Department for Education,Core,20/07/2021,Grants Expenditure,Capital Directorate,DERBYSHIRE COUNTY COUNCIL,CL038270,2489980,Capital grants - Local Government
Department for Education,Core,20/07/2021,Grants Expenditure,Capital Directorate,DEVON COUNTY COUNCIL,CL038298,2145040.68,Capital grants - Local Government
Department for Education,Core,20/07/2021,Grants Expenditure,Capital Directorate,DONCASTER METRO BOROUGH COUNCIL,CL038237,1064926.66,Capital grants - Local Government
Department for Education,Core,20/07/2021,Grants Expenditure,Capital Directorate,DORSET COUNCIL,CL038272,500000,Capital grants - Local Government
Department for Education,Core,20/07/2021,Grants Expenditure,Capital Directorate,DUDLEY METRO BOROUGH COUNCIL,CL038216,1416043.37,Capital grants - Local Government
Department for Education,Core,20/07/2021,Grants Expenditure,Capital Directorate,DURHAM COUNTY COUNCIL,CL038274,2354865.22,Capital grants - Local Government
Department for Education,Core,20/07/2021,Grants Expenditure,Capital Directorate,EALING LONDON BOROUGH COUNCIL,CL038200,2298819.98,Capital grants - Local Government
Department for Education,Core,20/07/2021,Grants Expenditure,Capital Directorate,EAST RIDING OF YORKSHIRE COUNCIL,CL038260,746801.38,Capital grants - Local Government
Department for Education,Core,20/07/2021,Grants Expenditure,Capital Directorate,EAST SUSSEX COUNTY COUNCIL,CL038276,1273987.46,Capital grants - Local Government
Department for Education,Core,20/07/2021,Grants Expenditure,Capital Directorate,ENFIELD LONDON BOROUGH COUNCIL,CL038201,1317955.79,Capital grants - Local Government
Department for Education,Core,20/07/2021,Grants Expenditure,Capital Directorate,ESSEX COUNTY COUNCIL,CL038301,5238295.05,Capital grants - Local Government
Department for Education,Core,20/07/2021,Grants Expenditure,Capital Directorate,GATESHEAD COUNCIL,CL038245,1343333.38,Capital grants - Local Government
Department for Education,Core,20/07/2021,Grants Expenditure,Capital Directorate,Gloucestershire County Council,CL038319,1988464.83,Capital grants - Local Government
Department for Education,Core,20/07/2021,Grants Expenditure,Capital Directorate,GREENWICH LONDON BOROUGH COUNCIL,CL038183,2784606.77,Capital grants - Local Government
Department for Education,Core,20/07/2021,Grants Expenditure,Capital Directorate,HACKNEY LONDON BOROUGH COUNCIL,CL038184,2724671.29,Capital grants - Local Government
Department for Education,Core,20/07/2021,Grants Expenditure,Capital Directorate,HALTON BOROUGH COUNCIL,CL038296,500000,Capital grants - Local Government
Department for Education,Core,20/07/2021,Grants Expenditure,Capital Directorate,HAMMERSMITH & FULHAM LONDON BOROUGH COUNCIL,CL038185,1109015.59,Capital grants - Local Government
Department for Education,Core,20/07/2021,Grants Expenditure,Capital Directorate,HAMPSHIRE COUNTY COUNCIL,CL038278,6789279.35,Capital grants - Local Government
Department for Education,Core,20/07/2021,Grants Expenditure,Capital Directorate,HARINGEY LONDON BOROUGH COUNCIL,CL038202,1023937.98,Capital grants - Local Government
Department for Education,Core,20/07/2021,Grants Expenditure,Capital Directorate,HARROW LONDON BOROUGH COUNCIL,CL038203,821789.71,Capital grants - Local Government
Department for Education,Core,20/07/2021,Grants Expenditure,Capital Directorate,HARTLEPOOL BOROUGH COUNCIL,CL038255,500000,Capital grants - Local Government
Department for Education,Core,20/07/2021,Grants Expenditure,Capital Directorate,HAVERING LONDON BOROUGH COUNCIL,CL038204,2206149.31,Capital grants - Local Government
Department for Education,Core,20/07/2021,Grants Expenditure,Capital Directorate,HEREFORDSHIRE COUNCIL,CL038304,648121.72,Capital grants - Local Government
Department for Education,Core,20/07/2021,Grants Expenditure,Capital Directorate,HERTFORDSHIRE COUNTY COUNCIL,CL038320,4761202.95,Capital grants - Local Government
Department for Education,Core,20/07/2021,Grants Expenditure,Capital Directorate,HILLINGDON LONDON BOROUGH COUNCIL,CL038205,2872215.63,Capital grants - Local Government
Department for Education,Core,20/07/2021,Grants Expenditure,Capital Directorate,HOUNSLOW LONDON BOROUGH COUNCIL,CL038206,2419088.63,Capital grants - Local Government
Department for Education,Core,20/07/2021,Grants Expenditure,Capital Directorate,ISLE OF WIGHT COUNCIL,CL038321,500000,Capital grants - Local Government
Department for Education,Core,20/07/2021,Grants Expenditure,Capital Directorate,ISLINGTON LONDON BOROUGH COUNCIL,CL038186,1834418.8,Capital grants - Local Government
Department for Education,Core,20/07/2021,Grants Expenditure,Capital Directorate,KENT COUNTY COUNCIL,CL038306,6638936.62,Capital grants - Local Government
Department for Education,Core,20/07/2021,Grants Expenditure,Capital Directorate,KINGSTON UPON HULL CITY COUNCIL,CL038259,1488666.89,Capital grants - Local Government
Department for Education,Core,20/07/2021,Grants Expenditure,Capital Directorate,KIRKLEES METRO COUNCIL,CL038242,1609971.75,Capital grants - Local Government
Department for Education,Core,20/07/2021,Grants Expenditure,Capital Directorate,KNOWSLEY METRO BOROUGH COUNCIL,CL038221,509167.24,Capital grants - Local Government
Department for Education,Core,20/07/2021,Grants Expenditure,Capital Directorate,LAMBETH LONDON BOROUGH COUNCIL,CL038188,2541861.32,Capital grants - Local Government
Department for Education,Core,20/07/2021,Grants Expenditure,Capital Directorate,LANCASHIRE COUNTY COUNCIL,CL038308,4724149.55,Capital grants - Local Government
Department for Education,Core,20/07/2021,Grants Expenditure,Capital Directorate,LEEDS CITY COUNCIL,CL038243,4574287.88,Capital grants - Local Government
Department for Education,Core,20/07/2021,Grants Expenditure,Capital Directorate,LEICESTER CITY COUNCIL,CL038282,2013815.67,Capital grants - Local Government
Department for Education,Core,20/07/2021,Grants Expenditure,Capital Directorate,LEICESTERSHIRE COUNTY COUNCIL,CL038281,3641554.5,Capital grants - Local Government
Department for Education,Core,20/07/2021,Grants Expenditure,Capital Directorate,LEWISHAM LONDON BOROUGH COUNCIL,CL038189,2550162.94,Capital grants - Local Government
Department for Education,Core,20/07/2021,Grants Expenditure,Capital Directorate,LINCOLNSHIRE COUNTY COUNCIL,CL038322,2986063.27,Capital grants - Local Government
Department for Education,Core,20/07/2021,Grants Expenditure,Capital Directorate,LIVERPOOL CITY COUNCIL,CL038222,3460315.08,Capital grants - Local Government
Department for Education,Core,20/07/2021,Grants Expenditure,Capital Directorate,London Borough of Sutton,CL038212,1924542.49,Capital grants - Local Government
Department for Education,Core,20/07/2021,Grants Expenditure,Capital Directorate,London Borough of Tower Hamlets,CL038191,2638807.37,Capital grants - Local Government
Department for Education,Core,20/07/2021,Grants Expenditure,Capital Directorate,LUTON BOROUGH COUNCIL,CL038265,1243963.04,Capital grants - Local Government
Department for Education,Core,20/07/2021,Grants Expenditure,Capital Directorate,MANCHESTER CITY COUNCIL,CL038228,2323799.63,Capital grants - Local Government
Department for Education,Core,20/07/2021,Grants Expenditure,Capital Directorate,MEDWAY COUNCIL,CL038307,1939762.41,Capital grants - Local Government
Department for Education,Core,20/07/2021,Grants Expenditure,Capital Directorate,MERTON BOROUGH COUNCIL,CL038208,2192304.74,Capital grants - Local Government
Department for Education,Core,20/07/2021,Grants Expenditure,Capital Directorate,Middlesbrough Council,CL038256,1159882.3,Capital grants - Local Government
Department for Education,Core,20/07/2021,Grants Expenditure,Capital Directorate,MILTON KEYNES COUNCIL,CL038269,2971552.17,Capital grants - Local Government
Department for Education,Core,20/07/2021,Grants Expenditure,Capital Directorate,NEWCASTLE CITY COUNCIL,CL038246,1461608.45,Capital grants - Local Government
Department for Education,Core,20/07/2021,Grants Expenditure,Capital Directorate,NEWHAM LONDON BOROUGH COUNCIL,CL038209,2611716.38,Capital grants - Local Government
Department for Education,Core,20/07/2021,Grants Expenditure,Capital Directorate,NORFOLK COUNTY COUNCIL,CL038323,4393596.96,Capital grants - Local Government
Department for Education,Core,20/07/2021,Grants Expenditure,Capital Directorate,North East Lincolnshire Council,CL038261,883215.54,Capital grants - Local Government
Department for Education,Core,20/07/2021,Grants Expenditure,Capital Directorate,NORTH LINCOLNSHIRE COUNCIL,CL038262,729278.21,Capital grants - Local Government
Department for Education,Core,20/07/2021,Grants Expenditure,Capital Directorate,NORTH SOMERSET COUNCIL,CL038253,1152776.08,Capital grants - Local Government
Department for Education,Core,20/07/2021,Grants Expenditure,Capital Directorate,NORTH TYNESIDE METRO BOROUGH COUNCIL,CL038247,663431.61,Capital grants - Local Government
Department for Education,Core,20/07/2021,Grants Expenditure,Capital Directorate,NORTH YORKSHIRE COUNTY COUNCIL,CL038263,716840.2,Capital grants - Local Government
Department for Education,Core,20/07/2021,Grants Expenditure,Capital Directorate,NORTHUMBERLAND COUNTY COUNCIL,CL038324,851301.82,Capital grants - Local Government
Department for Education,Core,20/07/2021,Grants Expenditure,Capital Directorate,Nottingham City Council,CL038312,2550244.97,Capital grants - Local Government
Department for Education,Core,20/07/2021,Grants Expenditure,Capital Directorate,NOTTINGHAMSHIRE COUNTY COUNCIL,CL038311,5316391.06,Capital grants - Local Government
Department for Education,Core,20/07/2021,Grants Expenditure,Capital Directorate,OLDHAM METRO BOROUGH COUNCIL,CL038229,830008.86,Capital grants - Local Government
Department for Education,Core,20/07/2021,Grants Expenditure,Capital Directorate,Oxfordshire County Council,CL038325,3520938.22,Capital grants - Local Government
Department for Education,Core,20/07/2021,Grants Expenditure,Capital Directorate,PETERBOROUGH CITY COUNCIL,CL038295,1777784.42,Capital grants - Local Government
Department for Education,Core,20/07/2021,Grants Expenditure,Capital Directorate,PLYMOUTH CITY COUNCIL,CL038299,1447787.32,Capital grants - Local Government
Department for Education,Core,20/07/2021,Grants Expenditure,Capital Directorate,PORTSMOUTH CITY COUNCIL,CL038279,1181280.62,Capital grants - Local Government
Department for Education,Core,20/07/2021,Grants Expenditure,Capital Directorate,Reading Borough Council,CL038291,954776.21,Capital grants - Local Government
Department for Education,Core,20/07/2021,Grants Expenditure,Capital Directorate,REDBRIDGE LONDON BOROUGH COUNCIL,CL038210,1847655.81,Capital grants - Local Government
Department for Education,Core,20/07/2021,Grants Expenditure,Capital Directorate,REDCAR & CLEVELAND BOROUGH COUNCIL,CL038257,807275.48,Capital grants - Local Government
Department for Education,Core,20/07/2021,Grants Expenditure,Capital Directorate,RICHMOND UPON THAMES LONDON BOROUGH COUNCIL,CL038211,2282870.28,Capital grants - Local Government
Department for Education,Core,20/07/2021,Grants Expenditure,Capital Directorate,ROCHDALE BOROUGH COUNCIL,CL038230,1156818.5,Capital grants - Local Government
Department for Education,Core,20/07/2021,Grants Expenditure,Capital Directorate,ROTHERHAM BOROUGH COUNCIL,CL038238,1059889.81,Capital grants - Local Government
Department for Education,Core,20/07/2021,Grants Expenditure,Capital Directorate,ROYAL BOROUGH OF KENSINGTON & CHELSEA COUNCIL,CL038187,2383501.3,Capital grants - Local Government
Department for Education,Core,20/07/2021,Grants Expenditure,Capital Directorate,ROYAL BOROUGH OF KINGSTON UPON THAMES COUNCIL,CL038207,1498043.33,Capital grants - Local Government
Department for Education,Core,20/07/2021,Grants Expenditure,Capital Directorate,ROYAL BOROUGH OF WINDSOR & MAIDENHEAD,CL038289,500000,Capital grants - Local Government
Department for Education,Core,20/07/2021,Grants Expenditure,Capital Directorate,RUTLAND COUNTY COUNCIL,CL038283,500000,Capital grants - Local Government
Department for Education,Core,20/07/2021,Grants Expenditure,Capital Directorate,Salford City Council,CL038231,2467910.75,Capital grants - Local Government
Department for Education,Core,20/07/2021,Grants Expenditure,Capital Directorate,Sandwell Metro Borough Council,CL038217,1488855.05,Capital grants - Local Government
Department for Education,Core,20/07/2021,Grants Expenditure,Capital Directorate,Sefton Metropolitan Borough Council,CL038224,675523.94,Capital grants - Local Government
Department for Education,Core,20/07/2021,Grants Expenditure,Capital Directorate,SHEFFIELD CITY COUNCIL,CL038239,1944425.94,Capital grants - Local Government
Department for Education,Core,20/07/2021,Grants Expenditure,Capital Directorate,SHROPSHIRE COUNCIL,CL038313,500000,Capital grants - Local Government
Department for Education,Core,20/07/2021,Grants Expenditure,Capital Directorate,SLOUGH BOROUGH COUNCIL,CL038292,2065765.64,Capital grants - Local Government
Department for Education,Core,20/07/2021,Grants Expenditure,Capital Directorate,SOLIHULL METRO BOROUGH COUNCIL,CL038218,1055762.06,Capital grants - Local Government
Department for Education,Core,20/07/2021,Grants Expenditure,Capital Directorate,SOMERSET COUNTY COUNCIL,CL038326,983283.28,Capital grants - Local Government
Department for Education,Core,20/07/2021,Grants Expenditure,Capital Directorate,SOUTH GLOUCESTERSHIRE COUNCIL,CL038254,1908231.29,Capital grants - Local Government
Department for Education,Core,20/07/2021,Grants Expenditure,Capital Directorate,SOUTH TYNESIDE COUNCIL,CL038248,632130.41,Capital grants - Local Government
Department for Education,Core,20/07/2021,Grants Expenditure,Capital Directorate,SOUTHAMPTON CITY COUNCIL,CL038280,2106601.46,Capital grants - Local Government
Department for Education,Core,20/07/2021,Grants Expenditure,Capital Directorate,SOUTHEND ON SEA BOROUGH COUNCIL,CL038302,1061569.94,Capital grants - Local Government
Department for Education,Core,20/07/2021,Grants Expenditure,Capital Directorate,SOUTHWARK LONDON BOROUGH COUNCIL,CL038190,1306335.56,Capital grants - Local Government
Department for Education,Core,20/07/2021,Grants Expenditure,Capital Directorate,ST HELENS METRO BOROUGH COUNCIL,CL038223,649444.03,Capital grants - Local Government
Department for Education,Core,20/07/2021,Grants Expenditure,Capital Directorate,Staffordshire County Council,CL038284,2441299.98,Capital grants - Local Government
Department for Education,Core,20/07/2021,Grants Expenditure,Capital Directorate,STOCKPORT METRO BOROUGH COUNCIL,CL038232,1274115.32,Capital grants - Local Government
Department for Education,Core,20/07/2021,Grants Expenditure,Capital Directorate,STOCKTON ON TEES BOROUGH COUNCIL,CL038258,876119.04,Capital grants - Local Government
Department for Education,Core,20/07/2021,Grants Expenditure,Capital Directorate,STOKE ON TRENT CITY COUNCIL,CL038285,2668316.46,Capital grants - Local Government
Department for Education,Core,20/07/2021,Grants Expenditure,Capital Directorate,SUFFOLK COUNTY COUNCIL,CL038327,2111925.19,Capital grants - Local Government
Department for Education,Core,20/07/2021,Grants Expenditure,Capital Directorate,SUNDERLAND CITY METRO BOROUGH COUNCIL,CL038249,520782.55,Capital grants - Local Government
Department for Education,Core,20/07/2021,Grants Expenditure,Capital Directorate,SURREY COUNTY COUNCIL,CL038328,6920304.22,Capital grants - Local Government
Department for Education,Core,20/07/2021,Grants Expenditure,Capital Directorate,SWINDON BOROUGH COUNCIL,CL038287,1598452.1,Capital grants - Local Government
Department for Education,Core,20/07/2021,Grants Expenditure,Capital Directorate,TAMESIDE METRO BOROUGH COUNCIL,CL038233,1223336.11,Capital grants - Local Government
Department for Education,Core,20/07/2021,Grants Expenditure,Capital Directorate,Telford and Wrekin Council,CL038314,1303857.87,Capital grants - Local Government
Department for Education,Core,20/07/2021,Grants Expenditure,Capital Directorate,THURROCK BOROUGH COUNCIL,CL038303,678526,Capital grants - Local Government
Department for Education,Core,20/07/2021,Grants Expenditure,Capital Directorate,TORBAY COUNCIL,CL038300,530149.55,Capital grants - Local Government
Department for Education,Core,20/07/2021,Grants Expenditure,Capital Directorate,Trafford Borough Council,CL038234,1676744.46,Capital grants - Local Government
Department for Education,Core,20/07/2021,Grants Expenditure,Capital Directorate,Wakefield City Council,CL038244,1473875.94,Capital grants - Local Government
Department for Education,Core,20/07/2021,Grants Expenditure,Capital Directorate,WALSALL METRO BOROUGH COUNCIL,CL038219,1419381.97,Capital grants - Local Government
Department for Education,Core,20/07/2021,Grants Expenditure,Capital Directorate,WALTHAM FOREST LONDON BOROUGH COUNCIL,CL038213,1434725.15,Capital grants - Local Government
Department for Education,Core,20/07/2021,Grants Expenditure,Capital Directorate,Wandsworth Borough Council,CL038192,4837414.07,Capital grants - Local Government
Department for Education,Core,20/07/2021,Grants Expenditure,Capital Directorate,WARRINGTON BOROUGH COUNCIL,CL038297,710210.47,Capital grants - Local Government
Department for Education,Core,20/07/2021,Grants Expenditure,Capital Directorate,WARWICKSHIRE COUNTY COUNCIL,CL038329,2747759.95,Capital grants - Local Government
Department for Education,Core,20/07/2021,Grants Expenditure,Capital Directorate,WEST BERKSHIRE COUNCIL,CL038290,500000,Capital grants - Local Government
Department for Education,Core,20/07/2021,Grants Expenditure,Capital Directorate,West Sussex County Council,CL038330,4095781.27,Capital grants - Local Government
Department for Education,Core,20/07/2021,Grants Expenditure,Capital Directorate,WESTMINSTER CITY COUNCIL,CL038193,1040039.03,Capital grants - Local Government
Department for Education,Core,20/07/2021,Grants Expenditure,Capital Directorate,Wigan Metropolitan Borough Council,CL038235,1625569.97,Capital grants - Local Government
Department for Education,Core,20/07/2021,Grants Expenditure,Capital Directorate,WILTSHIRE COUNTY COUNCIL,CL038286,2055333.02,Capital grants - Local Government
Department for Education,Core,20/07/2021,Grants Expenditure,Capital Directorate,WIRRAL METRO BOROUGH COUNCIL,CL038225,1046545.72,Capital grants - Local Government
Department for Education,Core,20/07/2021,Grants Expenditure,Capital Directorate,WOKINGHAM COUNCIL,CL038293,1266317.22,Capital grants - Local Government
Department for Education,Core,20/07/2021,Grants Expenditure,Capital Directorate,WOLVERHAMPTON CITY COUNCIL,CL038220,2254086.99,Capital grants - Local Government
Department for Education,Core,20/07/2021,Grants Expenditure,Capital Directorate,Worcestershire County Council,CL038305,1539043.81,Capital grants - Local Government
Department for Education,Core,27/07/2021,Other Goods & Services,Capital Directorate,GT Neps Limited,D-PINV037780,-64.01,Service element of lease
Department for Education,Core,27/07/2021,Other Goods & Services,Capital Directorate,GT Neps Limited,D-PINV037780,536.22,Service element of lease
Department for Education,Core,27/07/2021,Other Goods & Services,Capital Directorate,GT Neps Limited,D-PINV037780,618.74,Service element of lease
Department for Education,Core,27/07/2021,Other Goods & Services,Capital Directorate,GT Neps Limited,D-PINV037780,1102550.81,Service element of lease
Department for Education,Core,27/07/2021,Other Goods & Services,Capital Directorate,HLR Schools Limited,D-PINV037781,-16594.45,Service element of lease
Department for Education,Core,27/07/2021,Other Goods & Services,Capital Directorate,HLR Schools Limited,D-PINV037781,-5615.4,Service element of lease
Department for Education,Core,27/07/2021,Other Goods & Services,Capital Directorate,HLR Schools Limited,D-PINV037781,2326.97,Service element of lease
Department for Education,Core,27/07/2021,Other Goods & Services,Capital Directorate,HLR Schools Limited,D-PINV037781,2631.85,Service element of lease
Department for Education,Core,27/07/2021,Other Goods & Services,Capital Directorate,HLR Schools Limited,D-PINV037781,1214707.66,Service element of lease
Department for Education,Core,27/07/2021,Other Goods & Services,Capital Directorate,PSBP Midlands Limited,D-PINV037782,-4383.41,Service element of lease
Department for Education,Core,27/07/2021,Other Goods & Services,Capital Directorate,PSBP Midlands Limited,D-PINV037782,-4259.52,Service element of lease
Department for Education,Core,27/07/2021,Other Goods & Services,Capital Directorate,PSBP Midlands Limited,D-PINV037782,3066.89,Service element of lease
Department for Education,Core,27/07/2021,Other Goods & Services,Capital Directorate,PSBP Midlands Limited,D-PINV037782,1240394.17,Service element of lease
Department for Education,Core,27/07/2021,Other Goods & Services,Capital Directorate,PSBP NW PROJECTCO LIMITED,D-PINV037779,-35061.71,Service element of lease
Department for Education,Core,27/07/2021,Other Goods & Services,Capital Directorate,PSBP NW PROJECTCO LIMITED,D-PINV037779,-10421.05,Service element of lease
Department for Education,Core,27/07/2021,Other Goods & Services,Capital Directorate,PSBP NW PROJECTCO LIMITED,D-PINV037779,-207.36,Service element of lease
Department for Education,Core,27/07/2021,Other Goods & Services,Capital Directorate,PSBP NW PROJECTCO LIMITED,D-PINV037779,1014103.13,Service element of lease
Department for Education,Core,20/07/2021,Grants Expenditure,Capital Directorate,Sandwell Metro Borough Council,PSAD002744,120000,Capital grants - Academy Trust
Department for Education,Core,27/07/2021,Other Goods & Services,Capital Directorate,Yorkshire Learning Partnership (Project Co) Ltd,D-PINV037778,-20072.64,Service element of lease
Department for Education,Core,27/07/2021,Other Goods & Services,Capital Directorate,Yorkshire Learning Partnership (Project Co) Ltd,D-PINV037778,896.06,Service element of lease
Department for Education,Core,27/07/2021,Other Goods & Services,Capital Directorate,Yorkshire Learning Partnership (Project Co) Ltd,D-PINV037778,1087949.54,Service element of lease
Department for Education,Core,23/07/2021,Grants Expenditure,Capital Directorate,CARDINAL HEENAN SCHOOL SERVICES LTD (JAR,D-CINV001794,71262.09,Current grants - Local Government
Department for Education,Core,02/07/2021,Grants Expenditure,Capital Directorate,JFS - UNITARY CHARGE ACCOUNT,D-CINV001711,285011.33,Current grants - Local Government
Department for Education,Core,02/07/2021,Grants Expenditure,Capital Directorate,JFS - UNITARY CHARGE ACCOUNT,D-CINV001712,285011.33,Current grants - Local Government
Department for Education,Core,09/07/2021,Grants Expenditure,Capital Directorate,RCD HEXHAM & NEWCASTLE - ST JOSEPHS,D-CINV001737,67390.06,Current grants - Local Government
Department for Education,Core,23/07/2021,Grants Expenditure,Capital Directorate,REDCAR PFI,D-CINV001793,189355.07,Current grants - Local Government
Department for Education,Core,09/07/2021,Grants Expenditure,Capital Directorate,STMC BIRMINGHAM DIOCESE ACCOUNT,D-CINV001735,90108.45,Current grants - Local Government
Department for Education,Core,30/07/2021,Grants Expenditure,Capital Directorate,STMC BIRMINGHAM DIOCESE ACCOUNT,D-CINV001813,90052.79,Current grants - Local Government
Department for Education,Core,30/07/2021,Grants Expenditure,Capital Directorate,Stockton Borough Council - All Saints Academy,D-CINV001814,85765.13,Current grants - Local Government
Department for Education,Core,19/07/2021,Grants Expenditure,Capital Directorate,Wates Construction Ltd,D-PINV037834,463599.11,Capital grants - Private Sector
Department for Education,Core,20/07/2021,IS/IT,Capital Directorate,Accruent UK Ltd ,D-PINV037589,40830,Systems Development
Department for Education,Core,19/07/2021,Other Goods & Services,Capital Directorate,Aecom Ltd,D-PINV037844,30775.01,Professional Services - Property Services
Department for Education,Core,21/07/2021,Other Goods & Services,Capital Directorate,ARCADIS CONSULTING (UK) LIMITED,D-PINV037877,54908.1,Professional Services - Property Services
Department for Education,Core,27/07/2021,Grants Expenditure,Capital Directorate,Eric Wright Construction Ltd,D-PINV037706,57614.82,Capital grants - Academy Trust
Department for Education,Core,06/07/2021,Grants Expenditure,Capital Directorate,Kier Construction Southern,D-PINV037298,775115.8,Capital grants - Academy Trust
Department for Education,Core,16/07/2021,Grants Expenditure,Capital Directorate,Tilbury Douglas Construction Limited,D-PINV037805,2887409.81,Capital grants - Academy Trust
Department for Education,Core,06/07/2021,Grants Expenditure,Capital Directorate,BAM Construction Ltd,D-PINV037358,202211,Capital grants - Academy Trust
Department for Education,Core,09/07/2021,Grants Expenditure,Capital Directorate,BAM Construction Ltd,D-PINV037630,349195.73,Capital grants - Academy Trust
Department for Education,Core,13/07/2021,Grants Expenditure,Capital Directorate,Bouygues UK,D-PINV037718,63505.14,Capital grants - Academy Trust
Department for Education,Core,23/07/2021,Grants Expenditure,Capital Directorate,Bouygues UK,D-PINV037898,246960.05,Capital grants - Academy Trust
Department for Education,Core,01/07/2021,Grants Expenditure,Capital Directorate,Bowmer & Kirkland Ltd,D-PINV036628,746405.09,Capital grants - Academy Trust
Department for Education,Core,01/07/2021,Grants Expenditure,Capital Directorate,Bowmer & Kirkland Ltd,D-PINV037271,31766.84,Capital grants - Academy Trust
Department for Education,Core,08/07/2021,Grants Expenditure,Capital Directorate,Bowmer & Kirkland Ltd,D-PINV037619,552227.47,Capital grants - Academy Trust
Department for Education,Core,09/07/2021,Grants Expenditure,Capital Directorate,Bowmer & Kirkland Ltd,D-PINV037677,1451441.16,Capital grants - Academy Trust
Department for Education,Core,12/07/2021,Grants Expenditure,Capital Directorate,Bowmer & Kirkland Ltd,D-PINV037711,2841010.74,Capital grants - Academy Trust
Department for Education,Core,13/07/2021,Grants Expenditure,Capital Directorate,Bowmer & Kirkland Ltd,D-PINV037320,272920.33,Capital grants - Academy Trust
Department for Education,Core,22/07/2021,Grants Expenditure,Capital Directorate,Bowmer & Kirkland Ltd,D-PINV037818,599648.56,Capital grants - Academy Trust
Department for Education,Core,22/07/2021,Grants Expenditure,Capital Directorate,Bowmer & Kirkland Ltd,D-PINV037891,51798,Capital grants - Academy Trust
Department for Education,Core,22/07/2021,Grants Expenditure,Capital Directorate,Bowmer & Kirkland Ltd,D-PINV037897,109218.12,Capital grants - Academy Trust
Department for Education,Core,07/07/2021,Grants Expenditure,Capital Directorate,Cadman Construction Limited,D-PINV037427,118637.52,Capital grants - Academy Trust
Department for Education,Core,01/07/2021,Grants Expenditure,Capital Directorate,Elliott Group Ltd,D-PINV037258,81632.44,Capital grants - Academy Trust
Department for Education,Core,20/07/2021,Grants Expenditure,Capital Directorate,Elmwey Learning Trust,CAY082263,176198.25,Capital grants - Academy Trust
Department for Education,Core,22/07/2021,Grants Expenditure,Capital Directorate,Engie Regeneration Ltd,D-PINV037901,67665.02,Capital grants - Academy Trust
Department for Education,Core,02/07/2021,Grants Expenditure,Capital Directorate,Faithful & Gould,D-PINV037020,45918.85,Capital grants - Academy Trust
Department for Education,Core,07/07/2021,Grants Expenditure,Capital Directorate,Farrans Construction t/a a division of Northstone ,D-PINV037332,149089.7,Capital grants - Academy Trust
Department for Education,Core,12/07/2021,Grants Expenditure,Capital Directorate,G.F.Tomlinson Building Ltd,D-PINV037716,48414.56,Capital grants - Academy Trust
Department for Education,Core,15/07/2021,Grants Expenditure,Capital Directorate,G.F.Tomlinson Building Ltd,D-PINV037799,655901.74,Capital grants - Academy Trust
Department for Education,Core,01/07/2021,Grants Expenditure,Capital Directorate,Galliford Try Building Ltd,D-PINV037170,193499.78,Capital grants - Academy Trust
Department for Education,Core,09/07/2021,Grants Expenditure,Capital Directorate,Galliford Try Building Ltd,D-PINV037616,41370,Capital grants - Academy Trust
Department for Education,Core,13/07/2021,Grants Expenditure,Capital Directorate,Galliford Try Building Ltd,D-PINV037710,355687.67,Capital grants - Academy Trust
Department for Education,Core,16/07/2021,Grants Expenditure,Capital Directorate,Galliford Try Building Ltd,D-PINV037807,118531.5,Capital grants - Academy Trust
Department for Education,Core,21/07/2021,Grants Expenditure,Capital Directorate,Galliford Try Building Ltd,D-PINV037841,164958.17,Capital grants - Academy Trust
Department for Education,Core,14/07/2021,Grants Expenditure,Capital Directorate,Henry Boot Construction Limited,D-PINV037760,267203.35,Capital grants - Academy Trust
Department for Education,Core,05/07/2021,Grants Expenditure,Capital Directorate,ISG Construction Ltd,D-PINV037349,245955.08,Capital grants - Academy Trust
Department for Education,Core,30/07/2021,Grants Expenditure,Capital Directorate,ISG Construction Ltd,D-PINV038019,387379.96,Capital grants - Academy Trust
Department for Education,Core,09/07/2021,Grants Expenditure,Capital Directorate,Kier Construction Central,D-PINV037065,161167.03,Capital grants - Academy Trust
Department for Education,Core,09/07/2021,Grants Expenditure,Capital Directorate,Kier Construction Central,D-PCR000879,-161167.03,Capital grants - Academy Trust
Department for Education,Core,09/07/2021,Grants Expenditure,Capital Directorate,Kier Construction Central,D-PINV037485,219363.96,Capital grants - Academy Trust
Department for Education,Core,22/07/2021,Grants Expenditure,Capital Directorate,Kier Construction Central,D-PINV037866,58661.69,Capital grants - Academy Trust
Department for Education,Core,07/07/2021,Grants Expenditure,Capital Directorate,Kier Construction Southern,D-PINV037348,122967.18,Capital grants - Academy Trust
Department for Education,Core,22/07/2021,Grants Expenditure,Capital Directorate,Kier Construction Southern,D-PINV037889,82673.33,Capital grants - Academy Trust
Department for Education,Core,30/07/2021,Grants Expenditure,Capital Directorate,Kier Construction Southern,D-PINV038010,239149.75,Capital grants - Academy Trust
Department for Education,Core,07/07/2021,Grants Expenditure,Capital Directorate,Kier London,D-PINV037444,49235.27,Capital grants - Academy Trust
Department for Education,Core,06/07/2021,Grants Expenditure,Capital Directorate,Kier Western & Wales,D-PINV037404,202074.56,Capital grants - Academy Trust
Department for Education,Core,21/07/2021,Grants Expenditure,Capital Directorate,McAvoy Group Ltd,D-PINV037858,1314114.13,Capital grants - Academy Trust
Department for Education,Core,19/07/2021,Grants Expenditure,Capital Directorate,Midas Construction Limited,D-PINV037831,50664.94,Capital grants - Academy Trust
Department for Education,Core,02/07/2021,Grants Expenditure,Capital Directorate,Morgan Sindall Construction & Infrastructure Ltd,D-PINV037334,427613.56,Capital grants - Academy Trust
Department for Education,Core,14/07/2021,Grants Expenditure,Capital Directorate,Morgan Sindall Construction & Infrastructure Ltd,D-PINV037742,356844.55,Capital grants - Academy Trust
Department for Education,Core,19/07/2021,Grants Expenditure,Capital Directorate,Morgan Sindall Construction & Infrastructure Ltd,D-PINV037808,65518.74,Capital grants - Academy Trust
Department for Education,Core,22/07/2021,Grants Expenditure,Capital Directorate,Morgan Sindall Construction & Infrastructure Ltd,D-PINV037890,1420835.71,Capital grants - Academy Trust
Department for Education,Core,22/07/2021,Grants Expenditure,Capital Directorate,Morgan Sindall Construction & Infrastructure Ltd,D-PINV037915,369360.25,Capital grants - Academy Trust
Department for Education,Core,29/07/2021,Grants Expenditure,Capital Directorate,Mott MacDonald Ltd,D-PINV037980,38301.66,Capital grants - Academy Trust
Department for Education,Core,20/07/2021,Grants Expenditure,Capital Directorate,Queensmead School,CAY082264,429090.32,Capital grants - Academy Trust
Department for Education,Core,01/07/2021,Grants Expenditure,Capital Directorate,Spatial Initiative Ltd,D-PINV036389,45978.71,Capital grants - Academy Trust
Department for Education,Core,12/07/2021,Grants Expenditure,Capital Directorate,Spatial Initiative Ltd,D-PINV037529,549817.62,Capital grants - Academy Trust
Department for Education,Core,14/07/2021,Grants Expenditure,Capital Directorate,Spatial Initiative Ltd,D-PINV037734,69513.36,Capital grants - Academy Trust
Department for Education,Core,19/07/2021,Grants Expenditure,Capital Directorate,Spatial Initiative Ltd,D-PINV037798,202629.95,Capital grants - Academy Trust
Department for Education,Core,19/07/2021,Grants Expenditure,Capital Directorate,Spatial Initiative Ltd,D-PINV037835,92946.38,Capital grants - Academy Trust
Department for Education,Core,22/07/2021,Grants Expenditure,Capital Directorate,Spatial Initiative Ltd,D-PINV037900,111924.73,Capital grants - Academy Trust
Department for Education,Core,07/07/2021,Grants Expenditure,Capital Directorate,T&B (CONTRACTORS) LTD,D-PINV037558,362260.55,Capital grants - Academy Trust
Department for Education,Core,22/07/2021,Grants Expenditure,Capital Directorate,T&B (CONTRACTORS) LTD,D-PINV037803,172574.65,Capital grants - Academy Trust
Department for Education,Core,29/07/2021,Grants Expenditure,Capital Directorate,The Barnes Group Limited,D-PINV037827,98862.77,Capital grants - Academy Trust
Department for Education,Core,01/07/2021,Grants Expenditure,Capital Directorate,Tilbury Douglas Construction Limited,D-PINV037299,366675.82,Capital grants - Academy Trust
Department for Education,Core,19/07/2021,Grants Expenditure,Capital Directorate,Tilbury Douglas Construction Limited,D-PINV037819,371115.53,Capital grants - Academy Trust
Department for Education,Core,27/07/2021,Grants Expenditure,Capital Directorate,Tilbury Douglas Construction Limited,D-PINV037965,343371.7,Capital grants - Academy Trust
Department for Education,Core,29/07/2021,Grants Expenditure,Capital Directorate,Tilbury Douglas Construction Limited,D-PINV037967,530506.37,Capital grants - Academy Trust
Department for Education,Core,01/07/2021,Grants Expenditure,Capital Directorate,Wates Construction Ltd,D-PINV037300,169552.85,Capital grants - Academy Trust
Department for Education,Core,14/07/2021,Grants Expenditure,Capital Directorate,Wates Construction Ltd,D-PINV037707,1356152.12,Capital grants - Academy Trust
Department for Education,Core,27/07/2021,Grants Expenditure,Capital Directorate,Wates Construction Ltd,D-PINV037806,274155.76,Capital grants - Academy Trust
Department for Education,Core,30/07/2021,Grants Expenditure,Capital Directorate,Wates Construction Ltd,D-PINV037989,181840.03,Capital grants - Academy Trust
Department for Education,Core,29/07/2021,Grants Expenditure,Capital Directorate,Willmott Dixon Construction Limited,D-PINV037804,372646.37,Capital grants - Academy Trust
Department for Education,Core,12/07/2021,Grants Expenditure,Capital Directorate,BAM Construction Ltd,D-PINV037714,240000,Capital grants - Academy Trust
Department for Education,Core,20/07/2021,Grants Expenditure,Capital Directorate,Bowmer & Kirkland Ltd,D-PINV037815,457956,Capital grants - Academy Trust
Department for Education,Core,20/07/2021,Grants Expenditure,Capital Directorate,Bowmer & Kirkland Ltd,D-PINV037854,305304,Capital grants - Academy Trust
Department for Education,Core,02/07/2021,Grants Expenditure,Capital Directorate,Caledonian Modular Limited,D-PINV037328,372750.24,Capital grants - Academy Trust
Department for Education,Core,02/07/2021,Grants Expenditure,Capital Directorate,Caledonian Modular Limited,D-PINV037329,269520.31,Capital grants - Academy Trust
Department for Education,Core,08/07/2021,Grants Expenditure,Capital Directorate,Mott MacDonald Ltd,D-PINV037431,41240.11,Capital grants - Academy Trust
Department for Education,Core,08/07/2021,Grants Expenditure,Capital Directorate,Mott MacDonald Ltd,D-PINV037430,41349.6,Capital grants - Academy Trust
Department for Education,Core,08/07/2021,Grants Expenditure,Capital Directorate,Mott MacDonald Ltd,D-PINV037422,32459.3,Capital grants - Academy Trust
Department for Education,Core,08/07/2021,Grants Expenditure,Capital Directorate,Mott MacDonald Ltd,D-PINV037160,30719.28,Capital grants - Academy Trust
Department for Education,Core,19/07/2021,Grants Expenditure,Capital Directorate,Mott MacDonald Ltd,D-PINV037161,30719.28,Capital grants - Academy Trust
Department for Education,Core,30/07/2021,Grants Expenditure,Capital Directorate,Mott MacDonald Ltd,D-PINV037979,39211.2,Capital grants - Academy Trust
Department for Education,Core,30/07/2021,Grants Expenditure,Capital Directorate,Mott MacDonald Ltd,D-PINV037981,44964,Capital grants - Academy Trust
Department for Education,Core,30/07/2021,Grants Expenditure,Capital Directorate,Net Zero Buildings Limited,D-PINV037968,335906.94,Capital grants - Academy Trust
Department for Education,Core,15/07/2021,Grants Expenditure,Capital Directorate,REDS10 UK Limited,D-PINV037813,102951.8,Capital grants - Academy Trust
Department for Education,Core,20/07/2021,Grants Expenditure,Capital Directorate,CROYDON LONDON BOROUGH COUNCIL,CL037892,663729.82,Capital grants - Local Government
Department for Education,Core,20/07/2021,Grants Expenditure,Capital Directorate,KENT COUNTY COUNCIL,CL037894,1135897.2,Capital grants - Local Government
Department for Education,Core,20/07/2021,Grants Expenditure,Capital Directorate,PETERBOROUGH CITY COUNCIL,CL037896,541832.3,Capital grants - Local Government
Department for Education,Core,20/07/2021,Grants Expenditure,Capital Directorate,PETERBOROUGH CITY COUNCIL,CL037897,1264275.38,Capital grants - Local Government
Department for Education,Core,20/07/2021,Grants Expenditure,Capital Directorate,WESTMINSTER CITY COUNCIL,CL037891,867235,Capital grants - Local Government
Department for Education,Core,29/07/2021,Grants Expenditure,Capital Directorate,Aecom Ltd,D-PINV037908,26371.2,Capital grants - Academy Trust
Department for Education,Core,02/07/2021,Grants Expenditure,Capital Directorate,ARCADIS CONSULTING (UK) LIMITED,D-PINV037301,63366.12,Capital grants - Academy Trust
Department for Education,Core,15/07/2021,Grants Expenditure,Capital Directorate,Arcadis LLP,D-PINV037250,160731.12,Capital grants - Academy Trust
Department for Education,Core,23/07/2021,Grants Expenditure,Capital Directorate,Arcadis LLP,D-PINV037920,173417.54,Capital grants - Academy Trust
Department for Education,Core,21/07/2021,Grants Expenditure,Capital Directorate,Ark Atwood School,D-CINV001781,398053.18,Capital grants - Academy Trust
Department for Education,Core,30/07/2021,Grants Expenditure,Capital Directorate,Ark Blake Academy,D-CINV001800,117247.52,Capital grants - Academy Trust
Department for Education,Core,08/07/2021,Grants Expenditure,Capital Directorate,BAM Construction Ltd,D-PINV037615,278550.19,Capital grants - Academy Trust
Department for Education,Core,08/07/2021,Grants Expenditure,Capital Directorate,BAM Construction Ltd,D-PINV036919,41315.05,Capital grants - Academy Trust
Department for Education,Core,08/07/2021,Grants Expenditure,Capital Directorate,BAM Construction Ltd,D-PINV037356,1270301.17,Capital grants - Academy Trust
Department for Education,Core,12/07/2021,Grants Expenditure,Capital Directorate,BAM Construction Ltd,D-PINV037700,3801056.99,Capital grants - Academy Trust
Department for Education,Core,14/07/2021,Grants Expenditure,Capital Directorate,BAM Construction Ltd,D-PINV037766,1106212.42,Capital grants - Academy Trust
Department for Education,Core,19/07/2021,Grants Expenditure,Capital Directorate,BAM Construction Ltd,D-PINV037830,1446326.94,Capital grants - Academy Trust
Department for Education,Core,22/07/2021,Grants Expenditure,Capital Directorate,BAM Construction Ltd,D-PINV037850,2139150.5,Capital grants - Academy Trust
Department for Education,Core,19/07/2021,Grants Expenditure,Capital Directorate,BAM Construction Ltd,D-PINV037855,1462932.92,Capital grants - Academy Trust
Department for Education,Core,22/07/2021,Grants Expenditure,Capital Directorate,BAM Construction Ltd,D-PINV037229,59529.89,Capital grants - Academy Trust
Department for Education,Core,27/07/2021,Grants Expenditure,Capital Directorate,Berkeley Homes (South East London) Limited,D-PINV037962,480000,Capital grants - Academy Trust
Department for Education,Core,27/07/2021,Grants Expenditure,Capital Directorate,Berkeley Homes (South East London) Limited,D-PINV037961,1941480,Capital grants - Academy Trust
Department for Education,Core,28/07/2021,IS/IT,Capital Directorate,Bolder Academy,D-CINV001684,50820.51, ICT  - Equipment /Hardware
Department for Education,Core,28/07/2021,Grants Expenditure,Capital Directorate,Bolder Academy,D-CINV001684,254102.53,Capital grants - Academy Trust
Department for Education,Core,06/07/2021,Grants Expenditure,Capital Directorate,Bowmer & Kirkland Ltd,D-PINV037357,155326.66,Capital grants - Academy Trust
Department for Education,Core,16/07/2021,Grants Expenditure,Capital Directorate,Bowmer & Kirkland Ltd,D-PINV037744,1583986.3,Capital grants - Academy Trust
Department for Education,Core,14/07/2021,Grants Expenditure,Capital Directorate,Bowmer & Kirkland Ltd,D-PINV037745,1622781.64,Capital grants - Academy Trust
Department for Education,Core,15/07/2021,Grants Expenditure,Capital Directorate,Bowmer & Kirkland Ltd,D-PINV037731,1572761.81,Capital grants - Academy Trust
Department for Education,Core,19/07/2021,Grants Expenditure,Capital Directorate,Bowmer & Kirkland Ltd,D-PINV037846,873448.68,Capital grants - Academy Trust
Department for Education,Core,19/07/2021,Grants Expenditure,Capital Directorate,Bowmer & Kirkland Ltd,D-PINV037828,29743.91,Capital grants - Academy Trust
Department for Education,Core,21/07/2021,Grants Expenditure,Capital Directorate,Bowmer & Kirkland Ltd,D-PINV037840,1409610.98,Capital grants - Academy Trust
Department for Education,Core,27/07/2021,Grants Expenditure,Capital Directorate,Bowmer & Kirkland Ltd,D-PINV037848,773537.93,Capital grants - Academy Trust
Department for Education,Core,21/07/2021,Grants Expenditure,Capital Directorate,Bowmer & Kirkland Ltd,D-PINV037847,517866.31,Capital grants - Academy Trust
Department for Education,Core,21/07/2021,Grants Expenditure,Capital Directorate,Bowmer & Kirkland Ltd,D-PINV037887,675658.84,Capital grants - Academy Trust
Department for Education,Core,26/07/2021,Grants Expenditure,Capital Directorate,Bowmer & Kirkland Ltd,D-PINV037930,277671.41,Capital grants - Academy Trust
Department for Education,Core,26/07/2021,Grants Expenditure,Capital Directorate,Bowmer & Kirkland Ltd,D-PINV037941,650718.22,Capital grants - Academy Trust
Department for Education,Core,02/07/2021,Grants Expenditure,Capital Directorate,Caledonian Modular Limited,D-PINV037324,530051.94,Capital grants - Academy Trust
Department for Education,Core,13/07/2021,Grants Expenditure,Capital Directorate,Caledonian Modular Limited,D-PINV037729,514277.32,Capital grants - Academy Trust
Department for Education,Core,14/07/2021,Grants Expenditure,Capital Directorate,Caledonian Modular Limited,D-PINV037730,198785.09,Capital grants - Academy Trust
Department for Education,Core,21/07/2021,Grants Expenditure,Capital Directorate,Caledonian Modular Limited,D-PINV037838,516194.56,Capital grants - Academy Trust
Department for Education,Core,29/07/2021,Grants Expenditure,Capital Directorate,Caledonian Modular Limited,D-PINV037970,203256.5,Capital grants - Academy Trust
Department for Education,Core,09/07/2021,Grants Expenditure,Capital Directorate,CityAxis Ltd,D-PINV037614,532732.86,Capital grants - Academy Trust
Department for Education,Core,16/07/2021,Grants Expenditure,Capital Directorate,CityAxis Ltd,D-PINV037800,37909.19,Capital grants - Academy Trust
Department for Education,Core,14/07/2021,Grants Expenditure,Capital Directorate,Cityheart Limited,D-PINV037726,595152.74,Capital grants - Academy Trust
Department for Education,Core,02/07/2021,IS/IT,Capital Directorate,Clearwater C of E Primary Academy,D-CINV001601,26713.56, ICT  - Equipment /Hardware
Department for Education,Core,02/07/2021,Grants Expenditure,Capital Directorate,Clearwater C of E Primary Academy,D-CINV001601,133567.81,Capital grants - Academy Trust
Department for Education,Core,30/07/2021,IS/IT,Capital Directorate,Cobham Free School Trust,D-CINV001708,8438.16, ICT  - Equipment /Hardware
Department for Education,Core,30/07/2021,Grants Expenditure,Capital Directorate,Cobham Free School Trust,D-CINV001708,42190.8,Capital grants - Academy Trust
Department for Education,Core,07/07/2021,IS/IT,Capital Directorate,Cornerstone Academy Trust,D-CINV001724,46312.75, ICT  - Equipment /Hardware
Department for Education,Core,07/07/2021,Grants Expenditure,Capital Directorate,Cornerstone Academy Trust,D-CINV001724,231563.91,Capital grants - Academy Trust
Department for Education,Core,21/07/2021,IS/IT,Capital Directorate,Cornwall Education Learning Trust,D-CINV001738,4389.66, ICT  - Equipment /Hardware
Department for Education,Core,21/07/2021,Grants Expenditure,Capital Directorate,Cornwall Education Learning Trust,D-CINV001738,21948.28,Capital grants - Academy Trust
Department for Education,Core,21/07/2021,Grants Expenditure,Capital Directorate,Countryside Properties (UK) Ltd,D-PINV037832,661213.93,Capital grants - Academy Trust
Department for Education,Core,21/07/2021,Grants Expenditure,Capital Directorate,Countryside Properties (UK) Ltd,D-PINV037833,1163975.58,Capital grants - Academy Trust
Department for Education,Core,15/07/2021,Grants Expenditure,Capital Directorate,Currie & Brown Group Ltd,D-PINV037715,55415.7,Capital grants - Academy Trust
Department for Education,Core,28/07/2021,IS/IT,Capital Directorate,DERBY CATHEDRAL SCHOOL,D-CINV001802,5480.24, ICT  - Equipment /Hardware
Department for Education,Core,28/07/2021,Grants Expenditure,Capital Directorate,DERBY CATHEDRAL SCHOOL,D-CINV001802,27401.21,Capital grants - Academy Trust
Department for Education,Core,23/07/2021,Grants Expenditure,Capital Directorate,DIAMOND BUILD PLC,D-PINV037936,37831.86,Capital grants - Academy Trust
Department for Education,Core,21/07/2021,IS/IT,Capital Directorate,Dixons Sixth Form,D-CINV001732,8771.56, ICT  - Equipment /Hardware
Department for Education,Core,21/07/2021,Grants Expenditure,Capital Directorate,Dixons Sixth Form,D-CINV001732,43857.8,Capital grants - Academy Trust
Department for Education,Core,07/07/2021,Grants Expenditure,Capital Directorate,Eco Modular Buildings Limited,D-PINV037536,149119.02,Capital grants - Academy Trust
Department for Education,Core,07/07/2021,Grants Expenditure,Capital Directorate,Elliott Group Ltd,D-PINV037512,265029.66,Capital grants - Academy Trust
Department for Education,Core,30/07/2021,Grants Expenditure,Capital Directorate,Elliott Group Ltd,D-PINV037843,485621.7,Capital grants - Academy Trust
Department for Education,Core,20/07/2021,Grants Expenditure,Capital Directorate,Elliott Group Ltd,D-PINV037857,152021.52,Capital grants - Academy Trust
Department for Education,Core,23/07/2021,Grants Expenditure,Capital Directorate,Elliott Group Ltd,D-PINV037892,227627.64,Capital grants - Academy Trust
Department for Education,Core,22/07/2021,Grants Expenditure,Capital Directorate,Engie Regeneration Ltd,D-PINV037882,166306.12,Capital grants - Academy Trust
Department for Education,Core,29/07/2021,Grants Expenditure,Capital Directorate,Faithful & Gould,D-PINV037950,73388.04,Capital grants - Academy Trust
Department for Education,Core,27/07/2021,Grants Expenditure,Capital Directorate,Fergal Contracting Company Limited,D-PINV037963,224914.67,Capital grants - Academy Trust
Department for Education,Core,02/07/2021,IS/IT,Capital Directorate,Friars Academy,D-CINV001682,17029.5, ICT  - Equipment /Hardware
Department for Education,Core,02/07/2021,Grants Expenditure,Capital Directorate,Friars Academy,D-CINV001682,85147.49,Capital grants - Academy Trust
Department for Education,Core,02/07/2021,IS/IT,Capital Directorate,Friars Academy,D-CINV001683,4340, ICT  - Equipment /Hardware
Department for Education,Core,02/07/2021,Grants Expenditure,Capital Directorate,Friars Academy,D-CINV001683,21700,Capital grants - Academy Trust
Department for Education,Core,07/07/2021,Grants Expenditure,Capital Directorate,Galliford Try Building Ltd,D-PINV037419,393800.64,Capital grants - Academy Trust
Department for Education,Core,13/07/2021,Grants Expenditure,Capital Directorate,Galliford Try Building Ltd,D-PINV037709,36903.67,Capital grants - Academy Trust
Department for Education,Core,14/07/2021,Grants Expenditure,Capital Directorate,Galliford Try Building Ltd,D-PINV037767,107854.31,Capital grants - Academy Trust
Department for Education,Core,16/07/2021,Grants Expenditure,Capital Directorate,Galliford Try Building Ltd,D-PINV037821,431331.84,Capital grants - Academy Trust
Department for Education,Core,20/07/2021,Grants Expenditure,Capital Directorate,Galliford Try Building Ltd,D-PINV037870,870541.62,Capital grants - Academy Trust
Department for Education,Core,20/07/2021,Grants Expenditure,Capital Directorate,Gleeds Management Services Ltd,D-PINV036595,63106.55,Capital grants - Academy Trust
Department for Education,Core,30/07/2021,Grants Expenditure,Capital Directorate,Hadston Southwark Limited,D-PINV037922,1759466.09,Capital grants - Academy Trust
Department for Education,Core,16/07/2021,Construction,Capital Directorate,Harris Federation,D-CINV001753,10012,Free School - Construction
Department for Education,Core,16/07/2021,Grants Expenditure,Capital Directorate,Harris Federation,D-CINV001753,50060,Capital grants - Academy Trust
Department for Education,Core,13/07/2021,Grants Expenditure,Capital Directorate,ISG Construction Ltd,D-PINV037739,35991.13,Capital grants - Academy Trust
Department for Education,Core,16/07/2021,Grants Expenditure,Capital Directorate,ISG Construction Ltd,D-PINV037786,936344.17,Capital grants - Academy Trust
Department for Education,Core,29/07/2021,Grants Expenditure,Capital Directorate,ISG Construction Ltd,D-PINV037888,773020.36,Capital grants - Academy Trust
Department for Education,Core,08/07/2021,Grants Expenditure,Capital Directorate,Jacobs UK Ltd,D-PINV037593,25456.01,Capital grants - Academy Trust
Department for Education,Core,12/07/2021,Grants Expenditure,Capital Directorate,John D Wood,D-PINV037695,108387.6,Capital grants - Academy Trust
Department for Education,Core,20/07/2021,Grants Expenditure,Capital Directorate,Kier Construction Central,D-PINV037864,176760.76,Capital grants - Academy Trust
Department for Education,Core,01/07/2021,Grants Expenditure,Capital Directorate,Kier Construction Southern,D-PINV037268,105603.2,Capital grants - Academy Trust
Department for Education,Core,01/07/2021,Grants Expenditure,Capital Directorate,Kier Construction Southern,D-PINV037269,136582.04,Capital grants - Academy Trust
Department for Education,Core,08/07/2021,Grants Expenditure,Capital Directorate,Laing O'Rourke Construction   Ltd,D-PINV037418,355975.36,Capital grants - Academy Trust
Department for Education,Core,26/07/2021,Grants Expenditure,Capital Directorate,Laing O'Rourke Construction   Ltd,D-PINV037917,1261744.7,Capital grants - Academy Trust
Department for Education,Core,21/07/2021,IS/IT,Capital Directorate,Langley Park Primary School,D-CINV001759,8245.16, ICT  - Equipment /Hardware
Department for Education,Core,21/07/2021,Grants Expenditure,Capital Directorate,Langley Park Primary School,D-CINV001759,41225.81,Capital grants - Academy Trust
Department for Education,Core,21/07/2021,IS/IT,Capital Directorate,Launceston College MAT,D-CINV001736,4329.94, ICT  - Equipment /Hardware
Department for Education,Core,21/07/2021,Grants Expenditure,Capital Directorate,Launceston College MAT,D-CINV001736,21649.68,Capital grants - Academy Trust
Department for Education,Core,28/07/2021,IS/IT,Capital Directorate,Leigh Academies Trust,D-CINV001807,16791.49, ICT  - Equipment /Hardware
Department for Education,Core,28/07/2021,Grants Expenditure,Capital Directorate,Leigh Academies Trust,D-CINV001807,83957.41,Capital grants - Academy Trust
Department for Education,Core,07/07/2021,IS/IT,Capital Directorate,Leigh Academy Blackheath,D-CINV001690,36102.51, ICT  - Equipment /Hardware
Department for Education,Core,07/07/2021,Grants Expenditure,Capital Directorate,Leigh Academy Blackheath,D-CINV001690,180512.52,Capital grants - Academy Trust
Department for Education,Core,07/07/2021,IS/IT,Capital Directorate,Leigh Academy Blackheath,D-CINV001691,63303.75, ICT  - Equipment /Hardware
Department for Education,Core,07/07/2021,Grants Expenditure,Capital Directorate,Leigh Academy Blackheath,D-CINV001691,316518.73,Capital grants - Academy Trust
Department for Education,Core,09/07/2021,Construction,Capital Directorate,London Design and Engineering UTC,D-CINV001554,56535.8,UTC - Building Work
Department for Education,Core,09/07/2021,Grants Expenditure,Capital Directorate,London Design and Engineering UTC,D-CINV001554,282679,Capital grants - Academy Trust
Department for Education,Core,14/07/2021,Construction,Capital Directorate,LONDON DIOCESE BOARD SCHOOLS,D-CINV001755,92735.6,Free School - Construction
Department for Education,Core,14/07/2021,Grants Expenditure,Capital Directorate,LONDON DIOCESE BOARD SCHOOLS,D-CINV001755,473678,Capital grants - Academy Trust
Department for Education,Core,15/07/2021,Grants Expenditure,Capital Directorate,Mace Ltd,D-PINV037246,192756.6,Capital grants - Academy Trust
Department for Education,Core,23/07/2021,Grants Expenditure,Capital Directorate,Mace Ltd,D-PINV037899,200230.2,Capital grants - Academy Trust
Department for Education,Core,23/07/2021,Grants Expenditure,Capital Directorate,Mace Ltd,D-PINV036446,62077.85,Capital grants - Academy Trust
Department for Education,Core,29/07/2021,Grants Expenditure,Capital Directorate,McAvoy Group Ltd,D-PINV037876,906501.73,Capital grants - Academy Trust
Department for Education,Core,12/07/2021,Grants Expenditure,Capital Directorate,Midas Construction Limited,D-PINV037717,394763.81,Capital grants - Academy Trust
Department for Education,Core,21/07/2021,Grants Expenditure,Capital Directorate,Midas Construction Limited,D-PINV037859,377961.58,Capital grants - Academy Trust
Department for Education,Core,02/07/2021,Grants Expenditure,Capital Directorate,Morgan Sindall Construction & Infrastructure Ltd,D-PINV037282,310671.6,Capital grants - Academy Trust
Department for Education,Core,14/07/2021,Grants Expenditure,Capital Directorate,Morgan Sindall Construction & Infrastructure Ltd,D-PINV037743,706825.51,Capital grants - Academy Trust
Department for Education,Core,19/07/2021,Grants Expenditure,Capital Directorate,Morgan Sindall Construction & Infrastructure Ltd,D-PINV037837,881241.3,Capital grants - Academy Trust
Department for Education,Core,21/07/2021,Grants Expenditure,Capital Directorate,Morgan Sindall Construction & Infrastructure Ltd,D-PINV037851,821768.87,Capital grants - Academy Trust
Department for Education,Core,30/07/2021,Grants Expenditure,Capital Directorate,Morgan Sindall Construction & Infrastructure Ltd,D-PINV037896,884982.64,Capital grants - Academy Trust
Department for Education,Core,26/07/2021,Grants Expenditure,Capital Directorate,Morgan Sindall Construction & Infrastructure Ltd,D-PINV037907,2173873.51,Capital grants - Academy Trust
Department for Education,Core,01/07/2021,Grants Expenditure,Capital Directorate,Mott MacDonald Ltd,D-PINV036448,49420.45,Capital grants - Academy Trust
Department for Education,Core,16/07/2021,Grants Expenditure,Capital Directorate,Mott MacDonald Ltd,D-PINV037162,55875.55,Capital grants - Academy Trust
Department for Education,Core,16/07/2021,Grants Expenditure,Capital Directorate,Mott MacDonald Ltd,D-PINV037141,72491.48,Capital grants - Academy Trust
Department for Education,Core,20/07/2021,Grants Expenditure,Capital Directorate,Mott MacDonald Ltd,D-PINV037089,77553,Capital grants - Academy Trust
Department for Education,Core,06/07/2021,Grants Expenditure,Capital Directorate,Net Zero Buildings Limited,D-PINV037270,40471.75,Capital grants - Academy Trust
Department for Education,Core,15/07/2021,Grants Expenditure,Capital Directorate,Net Zero Buildings Limited,D-PINV037728,390323.02,Capital grants - Academy Trust
Department for Education,Core,16/07/2021,Grants Expenditure,Capital Directorate,Net Zero Buildings Limited,D-PINV037417,156701.41,Capital grants - Academy Trust
Department for Education,Core,23/07/2021,Grants Expenditure,Capital Directorate,Net Zero Buildings Limited,D-PINV037871,93328.8,Capital grants - Academy Trust
Department for Education,Core,23/07/2021,Grants Expenditure,Capital Directorate,Net Zero Buildings Limited,D-PINV037873,92179.2,Capital grants - Academy Trust
Department for Education,Core,07/07/2021,Grants Expenditure,Capital Directorate,Oasis Academy Byron,D-CINV001717,49583.31,Capital grants - Academy Trust
Department for Education,Core,21/07/2021,IS/IT,Capital Directorate,Pix Brook Academy,D-CINV001774,16446.97, ICT  - Equipment /Hardware
Department for Education,Core,21/07/2021,Grants Expenditure,Capital Directorate,Pix Brook Academy,D-CINV001774,82234.9,Capital grants - Academy Trust
Department for Education,Core,29/07/2021,Grants Expenditure,Capital Directorate,Portakabin Ltd,D-PINV037969,65740.8,Capital grants - Academy Trust
Department for Education,Core,28/07/2021,IS/IT,Capital Directorate,REAch2 Academy Trust,D-CINV001803,4595.1, ICT  - Equipment /Hardware
Department for Education,Core,28/07/2021,Grants Expenditure,Capital Directorate,REAch2 Academy Trust,D-CINV001803,22975.48,Capital grants - Academy Trust
Department for Education,Core,15/07/2021,Grants Expenditure,Capital Directorate,REDS10 UK Limited,D-PINV037765,209202.65,Capital grants - Academy Trust
Department for Education,Core,22/07/2021,Grants Expenditure,Capital Directorate,REDS10 UK Limited,D-PINV037784,343505.4,Capital grants - Academy Trust
Department for Education,Core,16/07/2021,Grants Expenditure,Capital Directorate,REDS10 UK Limited,D-PINV037801,120474.17,Capital grants - Academy Trust
Department for Education,Core,22/07/2021,Grants Expenditure,Capital Directorate,REDS10 UK Limited,D-PINV037849,425867.34,Capital grants - Academy Trust
Department for Education,Core,15/07/2021,Grants Expenditure,Capital Directorate,Ridge Partnership,D-PINV037249,38736,Capital grants - Academy Trust
Department for Education,Core,23/07/2021,Grants Expenditure,Capital Directorate,Ridge Partnership,D-PINV037905,43176,Capital grants - Academy Trust
Department for Education,Core,14/07/2021,Grants Expenditure,Capital Directorate,Robertson Construction Group Limited ,D-PINV037762,106177.25,Capital grants - Academy Trust
Department for Education,Core,21/07/2021,Grants Expenditure,Capital Directorate,Rydon Maintenance Limited,D-PINV035923,25687.08,Capital grants - Academy Trust
Department for Education,Core,19/07/2021,Grants Expenditure,Capital Directorate,Soilfix Limited,D-PINV037783,354358.85,Capital grants - Academy Trust
Department for Education,Core,19/07/2021,Grants Expenditure,Capital Directorate,Soilfix Limited,D-PINV037839,408735.11,Capital grants - Academy Trust
Department for Education,Core,02/07/2021,IS/IT,Capital Directorate,Star Academies,D-CINV001699,4725.2, ICT  - Equipment /Hardware
Department for Education,Core,02/07/2021,Grants Expenditure,Capital Directorate,Star Academies,D-CINV001699,23626,Capital grants - Academy Trust
Department for Education,Core,23/07/2021,IS/IT,Capital Directorate,Star Academies,D-CINV001721,20354.29, ICT  - Equipment /Hardware
Department for Education,Core,23/07/2021,Grants Expenditure,Capital Directorate,Star Academies,D-CINV001721,101771.44,Capital grants - Academy Trust
Department for Education,Core,12/07/2021,Grants Expenditure,Capital Directorate,SUE GP LLP,D-PINV037719,1339430.94,Capital grants - Academy Trust
Department for Education,Core,28/07/2021,Grants Expenditure,Capital Directorate,The Kingston Academy,D-CINV001796,45926.33,Capital grants - Academy Trust
Department for Education,Core,30/07/2021,Grants Expenditure,Capital Directorate,The Lindfield School ,D-CINV001810,43100,Capital grants - Academy Trust
Department for Education,Core,13/07/2021,Grants Expenditure,Capital Directorate,The McAvoy Group Limited,D-PINV037735,578454.76,Capital grants - Academy Trust
Department for Education,Core,23/07/2021,IS/IT,Capital Directorate,The Mead Educational Trust,D-CINV001787,55238.47, ICT  - Equipment /Hardware
Department for Education,Core,23/07/2021,Grants Expenditure,Capital Directorate,The Mead Educational Trust,D-CINV001787,276192.35,Capital grants - Academy Trust
Department for Education,Core,30/07/2021,IS/IT,Capital Directorate,The Mead Educational Trust,D-CINV001779,8996.62, ICT  - Equipment /Hardware
Department for Education,Core,30/07/2021,Grants Expenditure,Capital Directorate,The Mead Educational Trust,D-CINV001779,44983.11,Capital grants - Academy Trust
Department for Education,Core,20/07/2021,Grants Expenditure,Capital Directorate,The Park Community Centre Ltd,D-PINV037875,25096.15,Capital grants - Academy Trust
Department for Education,Core,06/07/2021,Grants Expenditure,Capital Directorate,Tilbury Douglas Construction Limited,D-PINV037416,500781.52,Capital grants - Academy Trust
Department for Education,Core,21/07/2021,Grants Expenditure,Capital Directorate,Tilbury Douglas Construction Limited,D-PINV037867,669121.91,Capital grants - Academy Trust
Department for Education,Core,22/07/2021,Grants Expenditure,Capital Directorate,Tilbury Douglas Construction Limited,D-PINV037903,380605.8,Capital grants - Academy Trust
Department for Education,Core,22/07/2021,Grants Expenditure,Capital Directorate,Tilbury Douglas Construction Limited,D-PINV037904,577014.55,Capital grants - Academy Trust
Department for Education,Core,27/07/2021,Grants Expenditure,Capital Directorate,Tilbury Douglas Construction Limited,D-PINV037902,809605.92,Capital grants - Academy Trust
Department for Education,Core,23/07/2021,Grants Expenditure,Capital Directorate,Tilbury Douglas Construction Limited,D-PINV037916,858504.58,Capital grants - Academy Trust
Department for Education,Core,27/07/2021,Grants Expenditure,Capital Directorate,Tilbury Douglas Construction Limited,D-PINV037947,899069.08,Capital grants - Academy Trust
Department for Education,Core,28/07/2021,IS/IT,Capital Directorate,Transforming Lives Educational Trust,D-CINV001798,51876.48, ICT  - Equipment /Hardware
Department for Education,Core,28/07/2021,Grants Expenditure,Capital Directorate,Transforming Lives Educational Trust,D-CINV001798,259382.4,Capital grants - Academy Trust
Department for Education,Core,09/07/2021,Grants Expenditure,Capital Directorate,Trowers & Hamlins LLP,D-PINV037340,61034,Capital grants - Academy Trust
Department for Education,Core,15/07/2021,Grants Expenditure,Capital Directorate,Turner & Townsend,D-PINV037446,103972.32,Capital grants - Academy Trust
Department for Education,Core,28/07/2021,IS/IT,Capital Directorate,Turner Free School,D-CINV001716,71289.96, ICT  - Equipment /Hardware
Department for Education,Core,28/07/2021,Grants Expenditure,Capital Directorate,Turner Free School,D-CINV001716,356449.92,Capital grants - Academy Trust
Department for Education,Core,14/07/2021,Grants Expenditure,Capital Directorate,Wates Construction Ltd,D-PINV037724,879163.2,Capital grants - Academy Trust
Department for Education,Core,15/07/2021,Grants Expenditure,Capital Directorate,Wates Construction Ltd,D-PINV037795,1511983.2,Current grants - Academy Trust
Department for Education,Core,15/07/2021,Grants Expenditure,Capital Directorate,Wates Construction Ltd,D-PINV037796,422389.92,Current grants - Academy Trust
Department for Education,Core,20/07/2021,Grants Expenditure,Capital Directorate,Wates Construction Ltd,D-PINV037865,928874.7,Capital grants - Academy Trust
Department for Education,Core,01/07/2021,Grants Expenditure,Capital Directorate,Willmott Dixon Construction Limited,D-PINV037281,231544.06,Capital grants - Academy Trust
Department for Education,Core,13/07/2021,Grants Expenditure,Capital Directorate,Willmott Dixon Construction Limited,D-PINV037732,474275.33,Capital grants - Academy Trust
Department for Education,Core,07/07/2021,Grants Expenditure,Capital Directorate,Womble Bond Dickinson (UK) LLP (Client Account) ,D-PINV037530,29580,Capital grants - Academy Trust
Department for Education,Core,01/07/2021,Grants Expenditure,Capital Directorate,Eric Wright Construction Ltd,D-PINV037025,91945.22,Current grants - Academy Trust
Department for Education,Core,14/07/2021,Grants Expenditure,Capital Directorate,Eric Wright Construction Ltd,D-PINV037773,48470.84,Current grants - Academy Trust
Department for Education,Core,02/07/2021,Grants Expenditure,Capital Directorate,Morgan Sindall Construction & Infrastructure Ltd,D-PINV037096,287149.94,Capital grants - Academy Trust
Department for Education,Core,16/07/2021,Grants Expenditure,Capital Directorate,Morgan Sindall Construction & Infrastructure Ltd,D-PINV037733,253367.6,Capital grants - Academy Trust
Department for Education,Core,15/07/2021,Grants Expenditure,Capital Directorate,Portakabin Ltd,D-PINV037547,35848.69,Current grants - Academy Trust
Department for Education,Core,21/07/2021,Grants Expenditure,Capital Directorate,REDS10 UK Limited,D-PINV037885,247089.79,Current grants - Academy Trust
Department for Education,Core,22/07/2021,Grants Expenditure,Capital Directorate,REDS10 UK Limited,D-PINV037886,227983.73,Current grants - Academy Trust
Department for Education,Core,06/07/2021,Grants Expenditure,Capital Directorate,Scape Construct Ltd,D-PINV037420,138705,Current grants - Academy Trust
Department for Education,Core,20/07/2021,Grants Expenditure,Capital Directorate,Scape Construct Ltd,D-PINV037853,71589.22,Current grants - Academy Trust
Department for Education,Core,01/07/2021,Grants Expenditure,Capital Directorate,Bolder Academy,DU00063887,63405.99,Current grants - Academy Trust
Department for Education,Core,01/07/2021,Grants Expenditure,Capital Directorate,Brook House Primary School,DU00063879,129146.1,Current grants - Academy Trust
Department for Education,Core,20/07/2021,Grants Expenditure,Capital Directorate,Bullers Wood School for Boys,DU00064831,135670,Current grants - Academy Trust
Department for Education,Core,01/07/2021,Grants Expenditure,Capital Directorate,Compass School Southwark,DU00063885,42332.62,Current grants - Academy Trust
Department for Education,Core,01/07/2021,Grants Expenditure,Capital Directorate,Fulham Boys School ,DU00063891,50325.92,Current grants - Academy Trust
Department for Education,Core,20/07/2021,Grants Expenditure,Capital Directorate,Grove Academy,DU00064834,58800,Current grants - Academy Trust
Department for Education,Core,01/07/2021,Grants Expenditure,Capital Directorate,London Academy of Excellence,DU00063880,138845,Current grants - Academy Trust
Department for Education,Core,20/07/2021,Grants Expenditure,Capital Directorate,Turing House School,DU00064829,72110.26,Current grants - Academy Trust
Department for Education,Core,01/07/2021,Grants Expenditure,Capital Directorate,Westside Academy Trust,DU00063881,68750,Current grants - Academy Trust
Department for Education,Core,02/07/2021,Grants Expenditure,Capital Directorate,Portakabin Ltd,D-PINV037016,164721.63,Current grants - Academy Trust
Department for Education,Core,30/07/2021,Grants Expenditure,Capital Directorate,Portakabin Ltd,D-PINV037863,41879.35,Current grants - Academy Trust
Department for Education,Core,30/07/2021,Grants Expenditure,Capital Directorate,Portakabin Ltd,D-PINV037708,189201.86,Current grants - Academy Trust
Department for Education,Core,28/07/2021,Grants Expenditure,Capital Directorate,Trowers & Hamlins LLP,D-PINV037959,7500000,Capital grants - Academy Trust
Department for Education,Core,14/07/2021,Grants Expenditure,Capital Directorate,VINCI CONSTRUCTION UK LIMITED,D-PINV037694,1065420.1,Capital grants - Academy Trust
Department for Education,Core,20/07/2021,Grants Expenditure,Capital Directorate,Abbey Hill Academy,CAY082870,55769,Capital grants - Academy Trust
Department for Education,Core,20/07/2021,Grants Expenditure,Capital Directorate,Alameda Middle School,CAY082647,99701,Capital grants - Academy Trust
Department for Education,Core,20/07/2021,Grants Expenditure,Capital Directorate,Alban Wood Primary School and Nursery,CAY082619,50652,Capital grants - Academy Trust
Department for Education,Core,20/07/2021,Grants Expenditure,Capital Directorate,Alderwood Primary School ,CAY082903,61465,Capital grants - Academy Trust
Department for Education,Core,20/07/2021,Grants Expenditure,Capital Directorate,Alexandra Park School,CAY082648,134534,Capital grants - Academy Trust
Department for Education,Core,20/07/2021,Grants Expenditure,Capital Directorate,Alma Primary School,CAY082621,33015,Capital grants - Academy Trust
Department for Education,Core,20/07/2021,Grants Expenditure,Capital Directorate,Anglo European School,CAY082649,76298,Capital grants - Academy Trust
Department for Education,Core,20/07/2021,Grants Expenditure,Capital Directorate,Armthorpe Shaw Wood Academy ,CAY082606,85231,Capital grants - Academy Trust
Department for Education,Core,20/07/2021,Grants Expenditure,Capital Directorate,Aspire Academy Bexley,CAY082910,71558,Capital grants - Academy Trust
Department for Education,Core,20/07/2021,Grants Expenditure,Capital Directorate,ASTOR COLLEGE (A Specialist College for the Arts),CAY082214,123420,Capital grants - Academy Trust
Department for Education,Core,20/07/2021,Grants Expenditure,Capital Directorate,Attleborough Academy Norfolk,CAY082874,25614,Capital grants - Academy Trust
Department for Education,Core,20/07/2021,Grants Expenditure,Capital Directorate,Bader Primary School,CAY082904,123778,Capital grants - Academy Trust
Department for Education,Core,20/07/2021,Grants Expenditure,Capital Directorate,Barr Beacon School,CAY082597,408017,Capital grants - Academy Trust
Department for Education,Core,20/07/2021,Grants Expenditure,Capital Directorate,BEDELSFORD SCHOOL,CAY082894,93266,Capital grants - Academy Trust
Department for Education,Core,20/07/2021,Grants Expenditure,Capital Directorate,Bedford Free School ,CAY082853,72466,Capital grants - Academy Trust
Department for Education,Core,20/07/2021,Grants Expenditure,Capital Directorate,Belmont Academy,CAY082625,51177,Capital grants - Academy Trust
Department for Education,Core,20/07/2021,Grants Expenditure,Capital Directorate,Bennerley Fields School,CAY082929,49000,Capital grants - Academy Trust
Department for Education,Core,20/07/2021,Grants Expenditure,Capital Directorate,BIGGIN HILL PRIMARY SCHOOL,CAY082868,36378,Capital grants - Academy Trust
Department for Education,Core,20/07/2021,Grants Expenditure,Capital Directorate,Bishop Rawle CE(A) Primary School,CAY082848,49265,Capital grants - Academy Trust
Department for Education,Core,20/07/2021,Grants Expenditure,Capital Directorate,Bishop Wordsworth's Grammar School,CAY082182,41884,Capital grants - Academy Trust
Department for Education,Core,20/07/2021,Grants Expenditure,Capital Directorate,Bishopshalt School,CAY082207,86315,Capital grants - Academy Trust
Department for Education,Core,20/07/2021,Grants Expenditure,Capital Directorate,Blowers Green Academy,CAY082176,45031,Capital grants - Academy Trust
Department for Education,Core,20/07/2021,Grants Expenditure,Capital Directorate,Bloxwich Academy,CAY082921,178919,Capital grants - Academy Trust
Department for Education,Core,20/07/2021,Grants Expenditure,Capital Directorate,Bowness Primary School,CAY082657,46072,Capital grants - Academy Trust
Department for Education,Core,20/07/2021,Grants Expenditure,Capital Directorate,Bracebridge Heath St John's Primary Academy,CAY082845,182030,Capital grants - Academy Trust
Department for Education,Core,20/07/2021,Grants Expenditure,Capital Directorate,BRADFORD GIRLS' GRAMMAR SCHOOL ,CAY082223,235603,Capital grants - Academy Trust
Department for Education,Core,20/07/2021,Grants Expenditure,Capital Directorate,Brays School,CAY082618,88064,Capital grants - Academy Trust
Department for Education,Core,20/07/2021,Grants Expenditure,Capital Directorate,Brentwood Ursuline Convent High School,CAY082607,39047,Capital grants - Academy Trust
Department for Education,Core,20/07/2021,Grants Expenditure,Capital Directorate,Bridge Academy,CAY082804,45780,Capital grants - Academy Trust
Department for Education,Core,20/07/2021,Grants Expenditure,Capital Directorate,Brixham College ,CAY082605,50316,Capital grants - Academy Trust
Department for Education,Core,20/07/2021,Grants Expenditure,Capital Directorate,BROCKHILL PARK PERFORMING ARTS COLLEGE,CAY082799,40029,Capital grants - Academy Trust
Department for Education,Core,20/07/2021,Grants Expenditure,Capital Directorate,Brooke School,CAY082239,161044,Capital grants - Academy Trust
Department for Education,Core,20/07/2021,Grants Expenditure,Capital Directorate,Camborne Science and International Academy,CAY082183,118414,Capital grants - Academy Trust
Department for Education,Core,20/07/2021,Grants Expenditure,Capital Directorate,Cambridge Park Academy,CAY082601,190775,Capital grants - Academy Trust
Department for Education,Core,20/07/2021,Grants Expenditure,Capital Directorate,Castle Hill Academy,CAY082919,35910,Capital grants - Academy Trust
Department for Education,Core,20/07/2021,Grants Expenditure,Capital Directorate,Castledon School ,CAY082229,86284,Capital grants - Academy Trust
Department for Education,Core,20/07/2021,Grants Expenditure,Capital Directorate,Central Lancaster High School,CAY082254,106291,Capital grants - Academy Trust
Department for Education,Core,20/07/2021,Grants Expenditure,Capital Directorate,Chatham Grammar School For Girls,CAY082204,52307,Capital grants - Academy Trust
Department for Education,Core,20/07/2021,Grants Expenditure,Capital Directorate,Cherry Tree Hill Primary School,CAY082257,51046,Capital grants - Academy Trust
Department for Education,Core,20/07/2021,Grants Expenditure,Capital Directorate,Cherry Tree School,CAY082242,47176,Capital grants - Academy Trust
Department for Education,Core,20/07/2021,Grants Expenditure,Capital Directorate,Cheshire East Council,CL038334,426479,Capital grants - Local Government
Department for Education,Core,20/07/2021,Grants Expenditure,Capital Directorate,Chiswick School,CAY082945,137981,Capital grants - Academy Trust
